Workbook

Sheet 16.03.2024
B1: Согласовано Начальник МКУ "Управление образования" Муслюмовского района РТ ________________ /Л.Я. Хабибуллина/ | H1: Согласовано Заведующий МБДОУ _ Ташлиярский детский сад "Ляйсан" /Музипова Д.Г. ___________________ | CL1: Утверждаю Индивидуальный предприниматель Ибрагимова Э.И. ______________ /Э.И. Ибрагимова/
A2: ЦИКЛИЧНОЕ ВЕСЕННЕЕ ДВУХНЕДЕЛЬНОЕ МЕНЮ ДЛЯ ОРГАНИЗАЦИИ ПИТАНИЯ ДЕТЕЙ В ВОЗРАСТЕ ОТ 3 ДО 7 ЛЕТ, ПОСЕЩАЮЩИХ ДОШКОЛЬНЫЕ ОБРАЗОВАТЕЛЬНЫЕ УЧРЕЖДЕНИЯ И ДОШКОЛЬНЫЕ ГРУППЫ ОБРАЗОВАТЕЛЬНЫХ УЧРЕЖДЕНИЙ МУСЛЮМОВСКОГО МУНИЦИПАЛЬНОГО РАЙОНА РТ НА 2024 г.
A6: =IF(Dop!B3<>"",Dop!B3,"") -> Сад | AI6: =IF(Дата_Сост<>"",Дата_Сост,"") -> 2024-03-04
A8: Но-мер рец. | B8: Прием пищи, наименование изделий (блюд) | C8: Вы-ход, г | D8: Белки, г | F8: Жиры, г | H8: Угле-воды, г | I8: ЭЦ, ккал | J8: НЖК | K8: ПНЖК | L8: МЖК | M8: Холестерин | N8: МД | O8: Крахмал | P8: ПВ | Q8: РПВ | R8: НПВ | S8: Органические кислоты | T8: Зола | U8: Na | V8: K | W8: Минеральные элементы, мг | AA8: Витамины, мг | AI8: Вита-мин С, мг | AJ8: Алкоголь, г | AK8: Валин | AL8: изолейцин | AM8: лейцин | AN8: лизин | AO8: метионин | AP8: треонин | AQ8: триптофан | AR8: фенилаланин | AS8: аланин | AT8: аргинин | AU8: аспарагиновая | AV8: гистидин | AW8: глицин | AX8: глутаминовая | AY8: оксипролин | AZ8: пролин | BA8: серин | BB8: тирозин | BC8: цистин | BD8: масляная | BE8: капроновая | BF8: каприловая | BG8: каприновая | BH8: лауриновая | BI8: миристиновая | BJ8: пентадекановая | BK8: пальмитиновая | BL8: маргариновая | BM8: стеариновая | BN8: арахиновая | BO8: бегеновая | BP8: лигноцериновая | BQ8: миристолеиновая | BR8: пальмитолеиновая | BS8: олеиновая | BT8: гадолеиновая | BU8: эруковая | BV8: линолевая | BW8: линоленовая | BX8: арахидоновая | BY8: Аденин | BZ8: Гуанин | CA8: Ph | CC8: Цена, руб | CD8: Доля, % | CG8: I (макс.), мкг | CH8: I (мин.), мкг | CI8: I (сред.), мкг | CJ8: Zn (макс.), мкг | CK8: Zn (мин.), мкг | CL8: Zn (сред.), мкг | CM8: Se (макс.), мкг | CN8: Se (мин.), мкг | CO8: Se (сред.), мкг | CP8: Вложен-ный сахар, г | CQ8: Вложен-ная соль, г
D9: всего | E9: в т.ч. жив. | F9: всего | G9: в т.ч. раст. | W9: Ca | X9: Mg | Y9: P | Z9: Fe | AA9: А,мг | AB9: B | AC9: РЭ,мкг | AD9: ТЭ,мг | AE9: В1 | AF9: В2 | AG9: РР | AH9: НЭ
B10: 1 НЕДЕЛЯ
B11: 1 день
B12: Завтрак
A13: ="-" -> - | B13: Батон | C13: 40 | D13: 3.08 | E13: 0 | F13: 1.2 | G13: 1.2 | H13: 21.32 | I13: 107.808 | J13: 0.2 | K13: 0 | L13: 0 | M13: 0 | N13: 1.32 | O13: 18.72 | P13: 1.28 | Q13: 0 | R13: 0 | S13: 0.12 | T13: 0.64 | U13: 171.6 | V13: 52.4 | W13: 8.8 | X13: 13.2 | Y13: 34 | Z13: 0.8 | AA13: 0 | AB13: 0 | AC13: 0 | AD13: 0.68 | AE13: 0.06 | AF13: 0.02 | AG13: 0.64 | AH13: 1.2 | AI13: 0 | AJ13: 0 | AK13: 148.8 | AL13: 154.4 | AM13: 236.4 | AN13: 79.6 | AO13: 46.8 | AP13: 93.6 | AQ13: 35.2 | AR13: 168 | AS13: 104.4 | AT13: 145.2 | AU13: 120.4 | AV13: 64.4 | AW13: 112 | AX13: 930 | AY13: 0 | AZ13: 302.8 | BA13: 132.4 | BB13: 88.8 | BC13: 69.2 | BD13: 0 | BE13: 0 | BF13: 0 | BG13: 0 | BH13: 0 | BI13: 0.01 | BJ13: 0 | BK13: 0.13 | BL13: 0 | BM13: 0.06 | BN13: 0 | BO13: 0 | BP13: 0 | BQ13: 0 | BR13: 0 | BS13: 0.47 | BT13: 0 | BU13: 0 | BV13: 0.35 | BW13: 0.01 | BX13: 0 | BY13: 0 | BZ13: 0 | CA13: 0 | CB13: 13.64 | CE13: 0 | CG13: 0 | CH13: 0 | CI13: 0 | CJ13: 665 | CK13: 256.2 | CL13: 460.6 | CM13: 5.32 | CN13: 5.32 | CO13: 5.32 | CP13: 0 | CQ13: 0
A14: ="" ->  | B14: Масло сливочное | C14: 5 | D14: 0.04 | E14: 0.04 | F14: 3.63 | G14: 0 | H14: 0.07 | I14: 33.032 | J14: 2.36 | K14: 0.11 | L14: 0 | M14: 0 | N14: 0.07 | O14: 0 | P14: 0 | Q14: 0 | R14: 0 | S14: 0 | T14: 0.07 | U14: 0.75 | V14: 1.5 | W14: 1.2 | X14: 0 | Y14: 1.5 | Z14: 0.01 | AA14: 20 | AB14: 15 | AC14: 22.5 | AD14: 0.05 | AE14: 0 | AF14: 0.01 | AG14: 0.01 | AH14: 0.01 | AI14: 0 | AJ14: 0 | AK14: 2.1 | AL14: 2.05 | AM14: 3.8 | AN14: 2.25 | AO14: 0.85 | AP14: 2.35 | AQ14: 2.15 | AR14: 2.1 | AS14: 1.8 | AT14: 1.3 | AU14: 2.85 | AV14: 1.75 | AW14: 1.2 | AX14: 7.1 | AY14: 0 | AZ14: 2.4 | BA14: 2.7 | BB14: 2.1 | BC14: 0.5 | BD14: 0.13 | BE14: 0.06 | BF14: 0.03 | BG14: 0.08 | BH14: 0.09 | BI14: 0.4 | BJ14: 0 | BK14: 1.1 | BL14: 0 | BM14: 0.34 | BN14: 0 | BO14: 0 | BP14: 0 | BQ14: 0.08 | BR14: 0.12 | BS14: 0.9 | BT14: 0 | BU14: 0 | BV14: 0.05 | BW14: 0 | BX14: 0 | BY14: 0 | BZ14: 0 | CA14: 0 | CB14: 1.25 | CE14: 22.5 | CG14: 0.2 | CH14: 0.05 | CI14: 0.13 | CJ14: 10 | CK14: 4.1 | CL14: 7.05 | CM14: 0.86 | CN14: 0.44 | CO14: 0.65 | CP14: 0 | CQ14: 0
A15: ="-" -> - | B15: Печенье | C15: 20 | D15: 1.5 | E15: 0 | F15: 1.96 | G15: 0 | H15: 15.34 | I15: 84.452 | J15: 0.42 | K15: 0 | L15: 0 | M15: 0 | N15: 4.72 | O15: 10.16 | P15: 0.46 | Q15: 0 | R15: 0 | S15: 0.1 | T15: 0.2 | U15: 66 | V15: 22 | W15: 5.8 | X15: 4 | Y15: 18 | Z15: 0.42 | AA15: 2 | AB15: 1.6 | AC15: 2.2 | AD15: 0.7 | AE15: 0.02 | AF15: 0.01 | AG15: 0.14 | AH15: 0.38 | AI15: 0 | AJ15: 0 | AK15: 249.4 | AL15: 185.2 | AM15: 318.8 | AN15: 286.6 | AO15: 87.6 | AP15: 162.4 | AQ15: 47.6 | AR15: 185.6 | AS15: 0 | AT15: 0 | AU15: 0 | AV15: 87.8 | AW15: 0 | AX15: 0 | AY15: 0 | AZ15: 0 | BA15: 0 | BB15: 0 | BC15: 0 | BD15: 0 | BE15: 0 | BF15: 0 | BG15: 0 | BH15: 0 | BI15: 0 | BJ15: 0 | BK15: 0 | BL15: 0 | BM15: 0 | BN15: 0 | BO15: 0 | BP15: 0 | BQ15: 0 | BR15: 0 | BS15: 0 | BT15: 0 | BU15: 0 | BV15: 0 | BW15: 0 | BX15: 0 | BY15: 0 | BZ15: 0 | CA15: 0 | CB15: 0.9 | CE15: 2.27 | CG15: 1.26 | CH15: 1.26 | CI15: 1.26 | CJ15: 648 | CK15: 414 | CL15: 531 | CM15: 6.16 | CN15: 6.16 | CO15: 6.16 | CP15: 0 | CQ15: 0
A16: ="27/10" -> 27/10 | B16: Чай (вариант 2) | C16: 180 | D16: 0.18 | E16: 0 | F16: 0.04 | G16: 0.04 | H16: 4.53 | I16: 18.157086 | J16: 0 | K16: 0 | L16: 0 | M16: 0 | N16: 4.44 | O16: 0 | P16: 0.09 | Q16: 0 | R16: 0 | S16: 0 | T16: 0.05 | U16: 0.04 | V16: 0.13 | W16: 0.13 | X16: 0 | Y16: 0 | Z16: 0.01 | AA16: 0 | AB16: 0 | AC16: 0 | AD16: 0 | AE16: 0 | AF16: 0 | AG16: 0 | AH16: 0 | AI16: 0 | AJ16: 0 | AK16: 0 | AL16: 0 | AM16: 0 | AN16: 0 | AO16: 0 | AP16: 0 | AQ16: 0 | AR16: 0 | AS16: 0 | AT16: 0 | AU16: 0 | AV16: 0 | AW16: 0 | AX16: 0 | AY16: 0 | AZ16: 0 | BA16: 0 | BB16: 0 | BC16: 0 | BD16: 0 | BE16: 0 | BF16: 0 | BG16: 0 | BH16: 0 | BI16: 0 | BJ16: 0 | BK16: 0 | BL16: 0 | BM16: 0 | BN16: 0 | BO16: 0 | BP16: 0 | BQ16: 0 | BR16: 0 | BS16: 0 | BT16: 0 | BU16: 0 | BV16: 0 | BW16: 0 | BX16: 0 | BY16: 0 | BZ16: 0 | CA16: 0 | CB16: 180.08 | CE16: 0 | CG16: 3.07 | CH16: 3.07 | CI16: 3.07 | CJ16: 331.88 | CK16: 130.5 | CL16: 231.19 | CM16: 33.01 | CN16: 19.51 | CO16: 26.26 | CP16: 4.5 | CQ16: 0
A17: ="15/4" -> 15/4 | B17: Каша ячневая молочная с маслом сливочным | C17: 180 | D17: 5.37 | E17: 2.12 | F17: 4.29 | G17: 0.47 | H17: 30.37 | I17: 177.2516088 | J17: 3.06 | K17: 0.08 | L17: 0 | M17: 0 | N17: 6.82 | O17: 20.9 | P17: 2.65 | Q17: 0 | R17: 0 | S17: 0.07 | T17: 1.44 | U17: 216.17 | V17: 158.53 | W17: 103.69 | X17: 24.52 | Y17: 165.04 | Z17: 0.65 | AA17: 17.28 | AB17: 14.4 | AC17: 32.04 | AD17: 0.58 | AE17: 0.09 | AF17: 0.11 | AG17: 0.84 | AH17: 2.28 | AI17: 0.37 | AJ17: 0 | AK17: 163.85 | AL17: 158.74 | AM17: 175.16 | AN17: 119.96 | AO17: 54.72 | AP17: 86.19 | AQ17: 42.06 | AR17: 177.39 | AS17: 138.27 | AT17: 166.7 | AU17: 216.81 | AV17: 79.02 | AW17: 139.56 | AX17: 815.27 | AY17: 0 | AZ17: 444.93 | BA17: 133.8 | BB17: 102.94 | BC17: 68.02 | BD17: 0.09 | BE17: 0.04 | BF17: 0.02 | BG17: 0.05 | BH17: 0.05 | BI17: 0.25 | BJ17: 0 | BK17: 0.7 | BL17: 0 | BM17: 0.22 | BN17: 0 | BO17: 0 | BP17: 0 | BQ17: 0.05 | BR17: 0.07 | BS17: 0.57 | BT17: 0 | BU17: 0 | BV17: 0.03 | BW17: 0 | BX17: 0 | BY17: 0 | BZ17: 0 | CA17: 0 | CB17: 160.02 | CE17: 19.68 | CG17: 25.68 | CH17: 10.89 | CI17: 18.28 | CJ17: 1610.75 | CK17: 737.21 | CL17: 1173.98 | CM17: 33.91 | CN17: 17.91 | CO17: 25.91 | CP17: 3.6 | CQ17: 0.45
B18: Итого за 'Завтрак' | C18: =SUM(C13:C17) -> 425 | D18: =SUM(D13:D17) -> 10.17 | E18: 2.16 | F18: 11.12 | G18: 1.71 | H18: 71.63 | I18: 420.7006948 | J18: 6.04 | K18: 0.19 | L18: 0 | M18: 0 | N18: 17.37 | O18: 49.78 | P18: 4.48 | Q18: 0 | R18: 0 | S18: 0.29 | T18: 2.4 | U18: 454.56 | V18: 234.56 | W18: 119.62 | X18: 41.72 | Y18: 218.54 | Z18: 1.89 | AA18: 39.28 | AB18: 31 | AC18: 56.74 | AD18: 2.01 | AE18: 0.17 | AF18: 0.15 | AG18: 1.63 | AH18: 3.87 | AI18: 0.37 | AJ18: 0 | AK18: 564.15 | AL18: 500.39 | AM18: 734.16 | AN18: 488.41 | AO18: 189.97 | AP18: 344.54 | AQ18: 127.01 | AR18: 533.09 | AS18: 244.47 | AT18: 313.2 | AU18: 340.06 | AV18: 232.97 | AW18: 252.76 | AX18: 1752.37 | AY18: 0 | AZ18: 750.13 | BA18: 268.9 | BB18: 193.84 | BC18: 137.72 | BD18: 0.22 | BE18: 0.1 | BF18: 0.05 | BG18: 0.13 | BH18: 0.14 | BI18: 0.66 | BJ18: 0 | BK18: 1.93 | BL18: 0 | BM18: 0.62 | BN18: 0 | BO18: 0 | BP18: =SUM(BP13:BP17) -> 0 | BQ18: 0.13 | BR18: 0.19 | BS18: 1.94 | BT18: 0 | BU18: 0 | BV18: 0.43 | BW18: 0.01 | BX18: 0 | BY18: 0 | BZ18: 0 | CA18: 0 | CB18: 355.89 | CC18: 0 | CD18: 0 | CE18: 44.45 | CF18: 0 | CG18: 30.21 | CH18: 15.27 | CI18: 22.74 | CJ18: 3265.63 | CK18: 1542.01 | CL18: 2403.82 | CM18: 79.26 | CN18: 49.34 | CO18: 64.3 | CP18: 8.1 | CQ18: 0.45
B19: 10:00
A20: ="-" -> - | B20: Сок | C20: 100 | D20: 0.5 | E20: 0 | F20: 0.1 | G20: 0 | H20: 10.3 | I20: 43.24 | J20: 0 | K20: 0 | L20: 0 | M20: 0 | N20: 9.9 | O20: 0.2 | P20: 0.2 | Q20: 0 | R20: 0 | S20: 0.5 | T20: 0.3 | U20: 6 | V20: 120 | W20: 7 | X20: 4 | Y20: 7 | Z20: 1.4 | AA20: 0 | AB20: 0 | AC20: 0 | AD20: 0.1 | AE20: 0.01 | AF20: 0.01 | AG20: 0.1 | AH20: 0.2 | AI20: 2 | AJ20: 0.2 | AK20: 8 | AL20: 10 | AM20: 14 | AN20: 14 | AO20: 2 | AP20: 8 | AQ20: 2 | AR20: 7 | AS20: 13 | AT20: 8 | AU20: 58 | AV20: 5 | AW20: 11 | AX20: 32 | AY20: 0 | AZ20: 10 | BA20: 12 | BB20: 5 | BC20: 4 | BD20: 0 | BE20: 0 | BF20: 0 | BG20: 0 | BH20: 0 | BI20: 0 | BJ20: 0 | BK20: 0 | BL20: 0 | BM20: 0 | BN20: 0 | BO20: 0 | BP20: 0 | BQ20: 0 | BR20: 0 | BS20: 0 | BT20: 0 | BU20: 0 | BV20: 0 | BW20: 0 | BX20: 0 | BY20: 0 | BZ20: 0 | CA20: 0 | CB20: 88.1 | CE20: 0 | CG20: 4 | CH20: 4 | CI20: 4 | CJ20: 400 | CK20: 182 | CL20: 291 | CM20: 0.6 | CN20: 0.6 | CO20: 0.6 | CP20: 0 | CQ20: 0
B21: Итого за '10:00' | C21: =SUM(C20) -> 100 | D21: =SUM(D20) -> 0.5 | E21: 0 | F21: 0.1 | G21: 0 | H21: 10.3 | I21: 43.24 | J21: 0 | K21: 0 | L21: 0 | M21: 0 | N21: 9.9 | O21: 0.2 | P21: 0.2 | Q21: 0 | R21: 0 | S21: 0.5 | T21: 0.3 | U21: 6 | V21: 120 | W21: 7 | X21: 4 | Y21: 7 | Z21: 1.4 | AA21: 0 | AB21: 0 | AC21: 0 | AD21: 0.1 | AE21: 0.01 | AF21: 0.01 | AG21: 0.1 | AH21: 0.2 | AI21: 2 | AJ21: 0.2 | AK21: 8 | AL21: 10 | AM21: 14 | AN21: 14 | AO21: 2 | AP21: 8 | AQ21: 2 | AR21: 7 | AS21: 13 | AT21: 8 | AU21: 58 | AV21: 5 | AW21: 11 | AX21: 32 | AY21: 0 | AZ21: 10 | BA21: 12 | BB21: 5 | BC21: 4 | BD21: 0 | BE21: 0 | BF21: 0 | BG21: 0 | BH21: 0 | BI21: 0 | BJ21: 0 | BK21: 0 | BL21: 0 | BM21: 0 | BN21: 0 | BO21: 0 | BP21: =SUM(BP20) -> 0 | BQ21: 0 | BR21: 0 | BS21: 0 | BT21: 0 | BU21: 0 | BV21: 0 | BW21: 0 | BX21: 0 | BY21: 0 | BZ21: 0 | CA21: 0 | CB21: 88.1 | CC21: 0 | CD21: 0 | CE21: 0 | CF21: 0 | CG21: 4 | CH21: 4 | CI21: 4 | CJ21: 400 | CK21: 182 | CL21: 291 | CM21: 0.6 | CN21: 0.6 | CO21: 0.6 | CP21: 0 | CQ21: 0
B22: Обед
A23: ="-" -> - | B23: Хлеб пшеничный | C23: 20 | D23: 1.32 | E23: 0 | F23: 0.13 | G23: 0.13 | H23: 9.38 | I23: 44.7802 | J23: 0 | K23: 0 | L23: 0 | M23: 0 | N23: 0.22 | O23: 9.12 | P23: 0.04 | Q23: 0 | R23: 0 | S23: 0 | T23: 0.36 | U23: 0 | V23: 0 | W23: 0 | X23: 0 | Y23: 0 | Z23: 0 | AA23: 0 | AB23: 0 | AC23: 0 | AD23: 0 | AE23: 0 | AF23: 0 | AG23: 0 | AH23: 0 | AI23: 0 | AJ23: 0 | AK23: 63.86 | AL23: 66.47 | AM23: 101.79 | AN23: 33.76 | AO23: 20.01 | AP23: 40.02 | AQ23: 15.14 | AR23: 72.38 | AS23: 44.89 | AT23: 62.64 | AU23: 51.68 | AV23: 27.14 | AW23: 48.02 | AX23: 401.59 | AY23: 0 | AZ23: 130.85 | BA23: 56.9 | BB23: 37.76 | BC23: 29.93 | BD23: 0 | BE23: 0 | BF23: 0 | BG23: 0 | BH23: 0 | BI23: 0 | BJ23: 0 | BK23: 0.02 | BL23: 0 | BM23: 0 | BN23: 0 | BO23: 0 | BP23: 0 | BQ23: 0 | BR23: 0 | BS23: 0.01 | BT23: 0 | BU23: 0 | BV23: 0.06 | BW23: 0 | BX23: 0 | BY23: 0 | BZ23: 0 | CA23: 0 | CB23: 7.82 | CE23: 0 | CG23: 0 | CH23: 0 | CI23: 0 | CJ23: 380 | CK23: 146.4 | CL23: 263.2 | CM23: 3.04 | CN23: 3.04 | CO23: 3.04 | CP23: 0 | CQ23: 0
A24: ="-" -> - | B24: Хлеб ржаной | C24: 20 | D24: 1.32 | E24: 0 | F24: 0.24 | G24: 0.24 | H24: 8.34 | I24: 38.676 | J24: 0.04 | K24: 0 | L24: 0 | M24: 0 | N24: 0.24 | O24: 6.44 | P24: 1.66 | Q24: 0 | R24: 0 | S24: 0.2 | T24: 0.5 | U24: 122 | V24: 49 | W24: 7 | X24: 9.4 | Y24: 31.6 | Z24: 0.78 | AA24: 0 | AB24: 1 | AC24: 0.2 | AD24: 0.28 | AE24: 0.04 | AF24: 0.02 | AG24: 0.14 | AH24: 0.4 | AI24: 0 | AJ24: 0 | AK24: 64.4 | AL24: 49.6 | AM24: 85.4 | AN24: 44.6 | AO24: 18.6 | AP24: 39.6 | AQ24: 16 | AR24: 74.2 | AS24: 59.4 | AT24: 58.2 | AU24: 92.8 | AV24: 24.8 | AW24: 62 | AX24: 311.8 | AY24: 0 | AZ24: 105.2 | BA24: 58.2 | BB24: 36 | BC24: 26 | BD24: 0 | BE24: 0 | BF24: 0 | BG24: 0 | BH24: 0 | BI24: 0 | BJ24: 0 | BK24: 0.03 | BL24: 0 | BM24: 0 | BN24: 0 | BO24: 0 | BP24: 0 | BQ24: 0 | BR24: 0 | BS24: 0.02 | BT24: 0 | BU24: 0 | BV24: 0.1 | BW24: 0.02 | BX24: 0 | BY24: 0 | BZ24: 0 | CA24: 0 | CB24: 9.4 | CE24: 0.17 | CG24: 1 | CH24: 1 | CI24: 1 | CJ24: 190 | CK24: 73.2 | CL24: 131.6 | CM24: 1.9 | CN24: 1.58 | CO24: 1.74 | CP24: 0 | CQ24: 0
A25: ="3/10" -> 3/10 | B25: Компот из яблок | C25: 180 | D25: 0.14 | E25: 0 | F25: 0.14 | G25: 0.14 | H25: 21.67 | I25: 84.015216 | J25: 0.04 | K25: 0 | L25: 0 | M25: 0 | N25: 20.78 | O25: 0.27 | P25: 0.62 | Q25: 0 | R25: 0 | S25: 0.29 | T25: 0.2 | U25: 9.44 | V25: 99.61 | W25: 6.11 | X25: 3.08 | Y25: 3.68 | Z25: 0.82 | AA25: 0 | AB25: 9.72 | AC25: 1.8 | AD25: 0.07 | AE25: 0.01 | AF25: 0.01 | AG25: 0.09 | AH25: 0.14 | AI25: 1.44 | AJ25: 0 | AK25: 4.23 | AL25: 4.59 | AM25: 6.7 | AN25: 6.35 | AO25: 1.06 | AP25: 3.88 | AQ25: 1.06 | AR25: 3.18 | AS25: 6 | AT25: 3.53 | AU25: 27.52 | AV25: 2.47 | AW25: 4.94 | AX25: 14.82 | AY25: 0 | AZ25: 4.59 | BA25: 5.64 | BB25: 2.12 | BC25: 1.76 | BD25: 0 | BE25: 0 | BF25: 0 | BG25: 0 | BH25: 0 | BI25: 0 | BJ25: 0 | BK25: 0 | BL25: 0 | BM25: 0 | BN25: 0 | BO25: 0 | BP25: 0 | BQ25: 0 | BR25: 0 | BS25: 0 | BT25: 0 | BU25: 0 | BV25: 0 | BW25: 0 | BX25: 0 | BY25: 0 | BZ25: 0 | CA25: 0 | CB25: 220.09 | CE25: 1.62 | CG25: 3.75 | CH25: 3.75 | CI25: 3.75 | CJ25: 360 | CK25: 174.15 | CL25: 267.08 | CM25: 34.34 | CN25: 20.16 | CO25: 27.25 | CP25: 18 | CQ25: 0
A26: ="3/1" -> 3/1 | B26: Салат из белокочанной капусты с растительным маслом | C26: 50 | D26: 0.8 | E26: 0 | F26: 2.98 | G26: 2.98 | H26: 4.45 | I26: 45.782219 | J26: 0.38 | K26: 1.95 | L26: 0 | M26: 0 | N26: 3.52 | O26: 0.04 | P26: 0.89 | Q26: 0 | R26: 0 | S26: 0.13 | T26: 0.56 | U26: 100.65 | V26: 133.84 | W26: 22.35 | X26: 7.19 | Y26: 14.07 | Z26: 0.28 | AA26: 0 | AB26: 8.92 | AC26: 1.37 | AD26: 1.37 | AE26: 0.01 | AF26: 0.02 | AG26: 0.31 | AH26: 0.41 | AI26: 20.07 | AJ26: 0 | AK26: 25.86 | AL26: 22.3 | AM26: 28.54 | AN26: 27.2 | AO26: 9.81 | AP26: 20.07 | AQ26: 4.46 | AR26: 24.97 | AS26: 31.66 | AT26: 37.9 | AU26: 76.69 | AV26: 12.49 | AW26: 20.96 | AX26: 122.62 | AY26: 0 | AZ26: 26.31 | BA26: 26.31 | BB26: 22.3 | BC26: 8.92 | BD26: 0 | BE26: 0 | BF26: 0 | BG26: 0 | BH26: 0 | BI26: 0 | BJ26: 0 | BK26: 0.18 | BL26: 0 | BM26: 0.12 | BN26: 0.01 | BO26: 0.02 | BP26: 0 | BQ26: 0 | BR26: 0 | BS26: 0.7 | BT26: 0 | BU26: 0 | BV26: 1.73 | BW26: 0 | BX26: 0 | BY26: 0 | BZ26: 0 | CA26: 0 | CB26: 41.14 | CE26: 1.49 | CG26: 11.03 | CH26: 4.77 | CI26: 7.9 | CJ26: 325.07 | CK26: 77.83 | CL26: 201.45 | CM26: 5.97 | CN26: 5.77 | CO26: 5.87 | CP26: 1.5 | CQ26: 0.25
A27: ="16/2" -> 16/2 | B27: Суп картофельный с бобовыми на говяжьем бульоне | C27: 180 | D27: 3.79 | E27: 5.74 | F27: 2.21 | G27: 2.21 | H27: 15.83 | I27: 94.580352 | J27: 0.29 | K27: 1.17 | L27: 0 | M27: 0 | N27: 2.15 | O27: 11.29 | P27: 2.38 | Q27: 0 | R27: 0 | S27: 0.11 | T27: 1.3 | U27: 146.23 | V27: 353.65 | W27: 24.89 | X27: 26.14 | Y27: 71.33 | Z27: 1.38 | AA27: 0 | AB27: 785.38 | AC27: 145.37 | AD27: 0.97 | AE27: 0.14 | AF27: 0.05 | AG27: 0.74 | AH27: 1.7 | AI27: 3.31 | AJ27: 0 | AK27: 154.39 | AL27: 170.41 | AM27: 253.6 | AN27: 242.59 | AO27: 33.09 | AP27: 134.91 | AQ27: 44.31 | AR27: 159.19 | AS27: 152.27 | AT27: 287.4 | AU27: 348.5 | AV27: 70.86 | AW27: 150.58 | AX27: 541.98 | AY27: 0 | AZ27: 105.84 | BA27: 129.97 | BB27: 109.23 | BC27: 40.71 | BD27: 0 | BE27: 0 | BF27: 0 | BG27: 0 | BH27: 0 | BI27: 0 | BJ27: 0 | BK27: 0.16 | BL27: 0 | BM27: 0.08 | BN27: 0.01 | BO27: 0.01 | BP27: 0 | BQ27: 0 | BR27: 0 | BS27: 0.53 | BT27: 0 | BU27: 0 | BV27: 1.2 | BW27: 0.02 | BX27: 0 | BY27: 0 | BZ27: 0 | CA27: 0 | CB27: 165.24 | CE27: 130.9 | CG27: 19.96 | CH27: 12.76 | CI27: 16.36 | CJ27: 1017.84 | CK27: 519.17 | CL27: 768.5 | CM27: 36.16 | CN27: 19.04 | CO27: 27.6 | CP27: 0 | CQ27: 0.36
A28: ="4/9" -> 4/9 | B28: Плов из мяса цыплят-бройлеров | C28: 180 | D28: 16.18 | E28: 13.33 | F28: 17.63 | G28: 6.4 | H28: 33.82 | I28: 358.026462 | J28: 4.72 | K28: 5.27 | L28: 0 | M28: 0 | N28: 1.61 | O28: 30.47 | P28: 1.73 | Q28: 0 | R28: 0 | S28: 0.05 | T28: 1.48 | U28: 122.23 | V28: 128.48 | W28: 18.29 | X28: 30.38 | Y28: 145.22 | Z28: 1.49 | AA28: 28.48 | AB28: 1196.14 | AC28: 256.58 | AD28: 4.19 | AE28: 0.06 | AF28: 0.09 | AG28: 5.64 | AH28: 11.7 | AI28: 0.83 | AJ28: 0 | AK28: 803.86 | AL28: 634.59 | AM28: 1270.87 | AN28: 1258.78 | AO28: 405.82 | AP28: 719.12 | AQ28: 252.84 | AR28: 686.61 | AS28: 995.86 | AT28: 1092.34 | AU28: 1409.27 | AV28: 421.02 | AW28: 1128.95 | AX28: 2361.87 | AY28: 110.57 | AZ28: 768.88 | BA28: 755.96 | BB28: 579.97 | BC28: 216.58 | BD28: 0 | BE28: 0 | BF28: 0 | BG28: 0 | BH28: 0 | BI28: 0 | BJ28: 0 | BK28: 0.43 | BL28: 0 | BM28: 0.26 | BN28: 0.02 | BO28: 0.04 | BP28: 0 | BQ28: 0 | BR28: 0 | BS28: 1.54 | BT28: 0 | BU28: 0 | BV28: 3.65 | BW28: 0 | BX28: 0 | BY28: 0 | BZ28: 0 | CA28: 0 | CB28: 158.86 | CE28: 227.83 | CG28: 21.96 | CH28: 11.1 | CI28: 16.53 | CJ28: 4297.8 | CK28: 2473.03 | CL28: 3385.41 | CM28: 22.31 | CN28: 14.18 | CO28: 18.24 | CP28: 0 | CQ28: 0.36
B29: Итого за 'Обед' | C29: =SUM(C23:C28) -> 630 | D29: =SUM(D23:D28) -> 23.55 | E29: 19.07 | F29: 23.33 | G29: 12.1 | H29: 93.49 | I29: 665.860449 | J29: 5.47 | K29: 8.39 | L29: 0 | M29: 0 | N29: 28.52 | O29: 57.63 | P29: 7.32 | Q29: 0 | R29: 0 | S29: 0.78 | T29: 4.4 | U29: 500.55 | V29: 764.58 | W29: 78.64 | X29: 76.19 | Y29: 265.9 | Z29: 4.75 | AA29: 28.48 | AB29: 2001.16 | AC29: 405.32 | AD29: 6.88 | AE29: 0.26 | AF29: 0.19 | AG29: 6.92 | AH29: 14.35 | AI29: 25.65 | AJ29: 0 | AK29: 1116.6 | AL29: 947.96 | AM29: 1746.9 | AN29: 1613.28 | AO29: 488.39 | AP29: 957.6 | AQ29: 333.81 | AR29: 1020.53 | AS29: 1290.08 | AT29: 1542.01 | AU29: 2006.46 | AV29: 558.78 | AW29: 1415.45 | AX29: 3754.68 | AY29: 110.57 | AZ29: 1141.67 | BA29: 1032.98 | BB29: 787.38 | BC29: 323.9 | BD29: 0 | BE29: 0 | BF29: 0 | BG29: 0 | BH29: 0 | BI29: 0 | BJ29: 0 | BK29: 0.82 | BL29: 0 | BM29: 0.46 | BN29: 0.04 | BO29: 0.07 | BP29: =SUM(BP23:BP28) -> 0 | BQ29: 0 | BR29: 0 | BS29: 2.8 | BT29: 0 | BU29: 0 | BV29: 6.74 | BW29: 0.04 | BX29: 0 | BY29: 0 | BZ29: 0 | CA29: 0 | CB29: 602.55 | CC29: 0 | CD29: 0 | CE29: 362.01 | CF29: 0 | CG29: 57.7 | CH29: 33.38 | CI29: 45.54 | CJ29: 6570.71 | CK29: 3463.78 | CL29: 5017.24 | CM29: 103.72 | CN29: 63.77 | CO29: 83.74 | CP29: 19.5 | CQ29: 0.97
B30: Ужин
A31: ="-" -> - | B31: Хлеб пшеничный | C31: 20 | D31: 1.32 | E31: 0 | F31: 0.13 | G31: 0.13 | H31: 9.38 | I31: 44.7802 | J31: 0 | K31: 0 | L31: 0 | M31: 0 | N31: 0.22 | O31: 9.12 | P31: 0.04 | Q31: 0 | R31: 0 | S31: 0 | T31: 0.36 | U31: 0 | V31: 0 | W31: 0 | X31: 0 | Y31: 0 | Z31: 0 | AA31: 0 | AB31: 0 | AC31: 0 | AD31: 0 | AE31: 0 | AF31: 0 | AG31: 0 | AH31: 0 | AI31: 0 | AJ31: 0 | AK31: 63.86 | AL31: 66.47 | AM31: 101.79 | AN31: 33.76 | AO31: 20.01 | AP31: 40.02 | AQ31: 15.14 | AR31: 72.38 | AS31: 44.89 | AT31: 62.64 | AU31: 51.68 | AV31: 27.14 | AW31: 48.02 | AX31: 401.59 | AY31: 0 | AZ31: 130.85 | BA31: 56.9 | BB31: 37.76 | BC31: 29.93 | BD31: 0 | BE31: 0 | BF31: 0 | BG31: 0 | BH31: 0 | BI31: 0 | BJ31: 0 | BK31: 0.02 | BL31: 0 | BM31: 0 | BN31: 0 | BO31: 0 | BP31: 0 | BQ31: 0 | BR31: 0 | BS31: 0.01 | BT31: 0 | BU31: 0 | BV31: 0.06 | BW31: 0 | BX31: 0 | BY31: 0 | BZ31: 0 | CA31: 0 | CB31: 7.82 | CE31: 0 | CG31: 0 | CH31: 0 | CI31: 0 | CJ31: 665 | CK31: 256.2 | CL31: 460.6 | CM31: 5.32 | CN31: 5.32 | CO31: 5.32 | CP31: 0 | CQ31: 0
A32: ="-" -> - | B32: Хлеб ржаной | C32: 20 | D32: 1.32 | E32: 0 | F32: 0.24 | G32: 0.24 | H32: 8.34 | I32: 38.676 | J32: 0.04 | K32: 0 | L32: 0 | M32: 0 | N32: 0.24 | O32: 6.44 | P32: 1.66 | Q32: 0 | R32: 0 | S32: 0.2 | T32: 0.5 | U32: 122 | V32: 49 | W32: 7 | X32: 9.4 | Y32: 31.6 | Z32: 0.78 | AA32: 0 | AB32: 1 | AC32: 0.2 | AD32: 0.28 | AE32: 0.04 | AF32: 0.02 | AG32: 0.14 | AH32: 0.4 | AI32: 0 | AJ32: 0 | AK32: 64.4 | AL32: 49.6 | AM32: 85.4 | AN32: 44.6 | AO32: 18.6 | AP32: 39.6 | AQ32: 16 | AR32: 74.2 | AS32: 59.4 | AT32: 58.2 | AU32: 92.8 | AV32: 24.8 | AW32: 62 | AX32: 311.8 | AY32: 0 | AZ32: 105.2 | BA32: 58.2 | BB32: 36 | BC32: 26 | BD32: 0 | BE32: 0 | BF32: 0 | BG32: 0 | BH32: 0 | BI32: 0 | BJ32: 0 | BK32: 0.03 | BL32: 0 | BM32: 0 | BN32: 0 | BO32: 0 | BP32: 0 | BQ32: 0 | BR32: 0 | BS32: 0.02 | BT32: 0 | BU32: 0 | BV32: 0.1 | BW32: 0.02 | BX32: 0 | BY32: 0 | BZ32: 0 | CA32: 0 | CB32: 9.4 | CE32: 0.17 | CG32: 1.5 | CH32: 1.5 | CI32: 1.5 | CJ32: 285 | CK32: 109.8 | CL32: 197.4 | CM32: 2.85 | CN32: 2.37 | CO32: 2.61 | CP32: 0 | CQ32: 0
A33: ="27/10" -> 27/10 | B33: Чай | C33: 180 | D33: 0.18 | E33: 0 | F33: 0.04 | G33: 0.04 | H33: 8.93 | I33: 34.88157 | J33: 0 | K33: 0 | L33: 0 | M33: 0 | N33: 8.84 | O33: 0 | P33: 0.09 | Q33: 0 | R33: 0 | S33: 0 | T33: 0.06 | U33: 0.09 | V33: 0.27 | W33: 0.26 | X33: 0 | Y33: 0 | Z33: 0.03 | AA33: 0 | AB33: 0 | AC33: 0 | AD33: 0 | AE33: 0 | AF33: 0 | AG33: 0 | AH33: 0 | AI33: 0 | AJ33: 0 | AK33: 0 | AL33: 0 | AM33: 0 | AN33: 0 | AO33: 0 | AP33: 0 | AQ33: 0 | AR33: 0 | AS33: 0 | AT33: 0 | AU33: 0 | AV33: 0 | AW33: 0 | AX33: 0 | AY33: 0 | AZ33: 0 | BA33: 0 | BB33: 0 | BC33: 0 | BD33: 0 | BE33: 0 | BF33: 0 | BG33: 0 | BH33: 0 | BI33: 0 | BJ33: 0 | BK33: 0 | BL33: 0 | BM33: 0 | BN33: 0 | BO33: 0 | BP33: 0 | BQ33: 0 | BR33: 0 | BS33: 0 | BT33: 0 | BU33: 0 | BV33: 0 | BW33: 0 | BX33: 0 | BY33: 0 | BZ33: 0 | CA33: 0 | CB33: 180.09 | CE33: 0 | CG33: 3.14 | CH33: 3.14 | CI33: 3.14 | CJ33: 363.75 | CK33: 138 | CL33: 250.88 | CM33: 33.32 | CN33: 19.82 | CO33: 26.57 | CP33: 9 | CQ33: 0
A34: ="3/9" -> 3/9 | B34: Рагу из мяса цыплят-бройлеров | C34: 180 | D34: 17.78 | E34: 16.28 | F34: 19.63 | G34: 9.51 | H34: 19.19 | I34: 322.4899431 | J34: 5.74 | K34: 6.55 | L34: 0 | M34: 0 | N34: 2.73 | O34: 14.55 | P34: 1.91 | Q34: 0 | R34: 0 | S34: 0.28 | T34: 2.67 | U34: 234.15 | V34: 589.19 | W34: 28.57 | X34: 36.82 | Y34: 178.8 | Z34: 1.97 | AA34: 25.04 | AB34: 1310.95 | AC34: 391.45 | AD34: 5.17 | AE34: 0.11 | AF34: 0.16 | AG34: 6.26 | AH34: 14.6 | AI34: 5.12 | AJ34: 0 | AK34: 779.37 | AL34: 636.31 | AM34: 1261.44 | AN34: 1396.84 | AO34: 410.63 | AP34: 768.83 | AQ34: 268.69 | AR34: 681.42 | AS34: 1039.68 | AT34: 1194.68 | AU34: 1464.72 | AV34: 428.96 | AW34: 1206.64 | AX34: 2490.93 | AY34: 126.93 | AZ34: 795.61 | BA34: 765.42 | BB34: 575.99 | BC34: 207.5 | BD34: 0 | BE34: 0 | BF34: 0 | BG34: 0 | BH34: 0 | BI34: 0 | BJ34: 0 | BK34: 0.56 | BL34: 0 | BM34: 0.34 | BN34: 0.02 | BO34: 0.06 | BP34: 0 | BQ34: 0 | BR34: 0 | BS34: 2.03 | BT34: 0 | BU34: 0 | BV34: 5.45 | BW34: 0 | BX34: 0 | BY34: 0 | BZ34: 0 | CA34: 0 | CB34: 218.35 | CE34: 243.53 | CG34: 32.93 | CH34: 19.16 | CI34: 26.04 | CJ34: 4005.13 | CK34: 2555.97 | CL34: 3280.55 | CM34: 52.66 | CN34: 26.08 | CO34: 39.4 | CP34: 0 | CQ34: 0.45
A35: ="-" -> - | B35: Фрукты | C35: 100 | D35: 0.4 | E35: 0 | F35: 0.4 | G35: 0.4 | H35: 11.6 | I35: 48.68 | J35: 0.1 | K35: 0 | L35: 0 | M35: 0 | N35: 9 | O35: 0.8 | P35: 1.8 | Q35: 0 | R35: 0 | S35: 0.8 | T35: 0.5 | U35: 26 | V35: 278 | W35: 16 | X35: 9 | Y35: 11 | Z35: 2.2 | AA35: 0 | AB35: 30 | AC35: 5 | AD35: 0.2 | AE35: 0.03 | AF35: 0.02 | AG35: 0.3 | AH35: 0.4 | AI35: 10 | AJ35: 0 | AK35: 12 | AL35: 13 | AM35: 19 | AN35: 18 | AO35: 3 | AP35: 11 | AQ35: 3 | AR35: 9 | AS35: 17 | AT35: 10 | AU35: 78 | AV35: 7 | AW35: 14 | AX35: 42 | AY35: 0 | AZ35: 13 | BA35: 16 | BB35: 6 | BC35: 5 | BD35: 0 | BE35: 0 | BF35: 0 | BG35: 0 | BH35: 0 | BI35: 0 | BJ35: 0 | BK35: 0 | BL35: 0 | BM35: 0 | BN35: 0 | BO35: 0 | BP35: 0 | BQ35: 0 | BR35: 0 | BS35: 0 | BT35: 0 | BU35: 0 | BV35: 0 | BW35: 0 | BX35: 0 | BY35: 0 | BZ35: 0 | CA35: 0 | CB35: 86.3 | CE35: 5 | CG35: 2 | CH35: 2 | CI35: 2 | CJ35: 150 | CK35: 150 | CL35: 150 | CM35: 46.8 | CN35: 46.8 | CO35: 46.8 | CP35: 0 | CQ35: 0
B36: Итого за 'Ужин' | C36: =SUM(C31:C35) -> 500 | D36: =SUM(D31:D35) -> 21 | E36: 16.28 | F36: 20.44 | G36: 10.32 | H36: 57.44 | I36: 489.5077131 | J36: 5.88 | K36: 6.55 | L36: 0 | M36: 0 | N36: 21.03 | O36: 30.91 | P36: 5.5 | Q36: 0 | R36: 0 | S36: 1.28 | T36: 4.09 | U36: 382.24 | V36: 916.46 | W36: 51.83 | X36: 55.22 | Y36: 221.4 | Z36: 4.98 | AA36: 25.04 | AB36: 1341.95 | AC36: 396.65 | AD36: 5.65 | AE36: 0.18 | AF36: 0.2 | AG36: 6.7 | AH36: 15.4 | AI36: 15.12 | AJ36: 0 | AK36: 919.63 | AL36: 765.38 | AM36: 1467.63 | AN36: 1493.2 | AO36: 452.24 | AP36: 859.45 | AQ36: 302.83 | AR36: 837 | AS36: 1160.97 | AT36: 1325.52 | AU36: 1687.2 | AV36: 487.9 | AW36: 1330.66 | AX36: 3246.32 | AY36: 126.93 | AZ36: 1044.66 | BA36: 896.52 | BB36: 655.75 | BC36: 268.43 | BD36: 0 | BE36: 0 | BF36: 0 | BG36: 0 | BH36: 0 | BI36: 0 | BJ36: 0 | BK36: 0.61 | BL36: 0 | BM36: 0.34 | BN36: 0.02 | BO36: 0.06 | BP36: =SUM(BP31:BP35) -> 0 | BQ36: 0 | BR36: 0 | BS36: 2.06 | BT36: 0 | BU36: 0 | BV36: 5.61 | BW36: 0.02 | BX36: 0 | BY36: 0 | BZ36: 0 | CA36: 0 | CB36: 501.96 | CC36: 0 | CD36: 0 | CE36: 248.7 | CF36: 0 | CG36: 39.57 | CH36: 25.8 | CI36: 32.68 | CJ36: 5468.88 | CK36: 3209.97 | CL36: 4339.43 | CM36: 140.95 | CN36: 100.39 | CO36: 120.7 | CP36: 9 | CQ36: 0.45
B37: Итого за день | C37: =C18+C21+C29+C36 -> 1655 | D37: =D18+D21+D29+D36 -> 55.22 | E37: 37.51 | F37: 54.99 | G37: 24.13 | H37: 232.86 | I37: 1619.308857 | J37: 17.39 | K37: 15.13 | L37: 0 | M37: 0 | N37: 76.82 | O37: 138.52 | P37: 17.5 | Q37: 0 | R37: 0 | S37: 2.85 | T37: 11.19 | U37: 1343.35 | V37: 2035.6 | W37: 257.09 | X37: 177.13 | Y37: 712.84 | Z37: 13.02 | AA37: 92.8 | AB37: 3374.11 | AC37: 858.71 | AD37: 14.64 | AE37: 0.62 | AF37: 0.55 | AG37: 15.35 | AH37: 33.82 | AI37: 43.14 | AJ37: 0.2 | AK37: 2608.38 | AL37: 2223.73 | AM37: 3962.69 | AN37: 3608.89 | AO37: 1132.6 | AP37: 2169.59 | AQ37: 765.65 | AR37: 2397.62 | AS37: 2708.52 | AT37: 3188.73 | AU37: 4091.72 | AV37: 1284.65 | AW37: 3009.87 | AX37: 8785.37 | AY37: 237.5 | AZ37: 2946.46 | BA37: 2210.4 | BB37: 1641.97 | BC37: 734.05 | BD37: 0.22 | BE37: 0.1 | BF37: 0.05 | BG37: 0.13 | BH37: 0.14 | BI37: 0.66 | BJ37: 0 | BK37: 3.36 | BL37: 0 | BM37: 1.42 | BN37: 0.06 | BO37: 0.13 | BP37: =BP18+BP21+BP29+BP36 -> 0 | BQ37: 0.13 | BR37: 0.19 | BS37: 6.8 | BT37: 0 | BU37: 0 | BV37: 12.78 | BW37: 0.07 | BX37: 0 | BY37: 0 | BZ37: 0 | CA37: 0 | CB37: 1548.5 | CC37: 0 | CD37: 0 | CE37: 655.16 | CF37: 0 | CG37: 131.48 | CH37: 78.45 | CI37: 104.96 | CJ37: 15705.22 | CK37: 8397.76 | CL37: 12051.49 | CM37: 324.53 | CN37: 214.1 | CO37: 269.34 | CP37: 36.6 | CQ37: 1.87
B39: 2 день
B40: Завтрак
A41: ="-" -> - | B41: Батон | C41: 40 | D41: 3.08 | E41: 0 | F41: 1.2 | G41: 1.2 | H41: 21.32 | I41: 107.808 | J41: 0.2 | K41: 0 | L41: 0 | M41: 0 | N41: 1.32 | O41: 18.72 | P41: 1.28 | Q41: 0 | R41: 0 | S41: 0.12 | T41: 0.64 | U41: 171.6 | V41: 52.4 | W41: 8.8 | X41: 13.2 | Y41: 34 | Z41: 0.8 | AA41: 0 | AB41: 0 | AC41: 0 | AD41: 0.68 | AE41: 0.06 | AF41: 0.02 | AG41: 0.64 | AH41: 1.2 | AI41: 0 | AJ41: 0 | AK41: 148.8 | AL41: 154.4 | AM41: 236.4 | AN41: 79.6 | AO41: 46.8 | AP41: 93.6 | AQ41: 35.2 | AR41: 168 | AS41: 104.4 | AT41: 145.2 | AU41: 120.4 | AV41: 64.4 | AW41: 112 | AX41: 930 | AY41: 0 | AZ41: 302.8 | BA41: 132.4 | BB41: 88.8 | BC41: 69.2 | BD41: 0 | BE41: 0 | BF41: 0 | BG41: 0 | BH41: 0 | BI41: 0.01 | BJ41: 0 | BK41: 0.13 | BL41: 0 | BM41: 0.06 | BN41: 0 | BO41: 0 | BP41: 0 | BQ41: 0 | BR41: 0 | BS41: 0.47 | BT41: 0 | BU41: 0 | BV41: 0.35 | BW41: 0.01 | BX41: 0 | BY41: 0 | BZ41: 0 | CA41: 0 | CB41: 13.64 | CE41: 0 | CG41: 0 | CH41: 0 | CI41: 0 | CJ41: 665 | CK41: 256.2 | CL41: 460.6 | CM41: 5.32 | CN41: 5.32 | CO41: 5.32 | CP41: 0 | CQ41: 0
A42: ="" ->  | B42: Масло сливочное | C42: 5 | D42: 0.04 | E42: 0.04 | F42: 3.63 | G42: 0 | H42: 0.07 | I42: 33.032 | J42: 2.36 | K42: 0.11 | L42: 0 | M42: 0 | N42: 0.07 | O42: 0 | P42: 0 | Q42: 0 | R42: 0 | S42: 0 | T42: 0.07 | U42: 0.75 | V42: 1.5 | W42: 1.2 | X42: 0 | Y42: 1.5 | Z42: 0.01 | AA42: 20 | AB42: 15 | AC42: 22.5 | AD42: 0.05 | AE42: 0 | AF42: 0.01 | AG42: 0.01 | AH42: 0.01 | AI42: 0 | AJ42: 0 | AK42: 2.1 | AL42: 2.05 | AM42: 3.8 | AN42: 2.25 | AO42: 0.85 | AP42: 2.35 | AQ42: 2.15 | AR42: 2.1 | AS42: 1.8 | AT42: 1.3 | AU42: 2.85 | AV42: 1.75 | AW42: 1.2 | AX42: 7.1 | AY42: 0 | AZ42: 2.4 | BA42: 2.7 | BB42: 2.1 | BC42: 0.5 | BD42: 0.13 | BE42: 0.06 | BF42: 0.03 | BG42: 0.08 | BH42: 0.09 | BI42: 0.4 | BJ42: 0 | BK42: 1.1 | BL42: 0 | BM42: 0.34 | BN42: 0 | BO42: 0 | BP42: 0 | BQ42: 0.08 | BR42: 0.12 | BS42: 0.9 | BT42: 0 | BU42: 0 | BV42: 0.05 | BW42: 0 | BX42: 0 | BY42: 0 | BZ42: 0 | CA42: 0 | CB42: 1.25 | CE42: 22.5 | CG42: 0.2 | CH42: 0.05 | CI42: 0.13 | CJ42: 10 | CK42: 4.1 | CL42: 7.05 | CM42: 0.86 | CN42: 0.44 | CO42: 0.65 | CP42: 0 | CQ42: 0
A43: ="" ->  | B43: Вафли | C43: 20 | D43: 0.64 | E43: 0 | F43: 4.21 | G43: 0 | H43: 0 | I43: 40.414 | J43: 0 | K43: 0 | L43: 0 | M43: 0 | N43: 0 | O43: 0 | P43: 0 | Q43: 0 | R43: 0 | S43: 0 | T43: 0 | U43: 0 | V43: 0 | W43: 0 | X43: 0 | Y43: 0 | Z43: 0 | AA43: 0 | AB43: 0 | AC43: 0 | AD43: 0 | AE43: 0 | AF43: 0 | AG43: 0 | AH43: 0 | AI43: 0 | AJ43: 0 | AK43: 0 | AL43: 0 | AM43: 0 | AN43: 0 | AO43: 0 | AP43: 0 | AQ43: 0 | AR43: 0 | AS43: 0 | AT43: 0 | AU43: 0 | AV43: 0 | AW43: 0 | AX43: 0 | AY43: 0 | AZ43: 0 | BA43: 0 | BB43: 0 | BC43: 0 | BD43: 0 | BE43: 0 | BF43: 0 | BG43: 0 | BH43: 0 | BI43: 0 | BJ43: 0 | BK43: 0 | BL43: 0 | BM43: 0 | BN43: 0 | BO43: 0 | BP43: 0 | BQ43: 0 | BR43: 0 | BS43: 0 | BT43: 0 | BU43: 0 | BV43: 0 | BW43: 0 | BX43: 0 | BY43: 0 | BZ43: 0 | CA43: 0 | CB43: 16.22 | CE43: 0 | CG43: 0 | CH43: 0 | CI43: 0 | CJ43: 0 | CK43: 0 | CL43: 0 | CM43: 0 | CN43: 0 | CO43: 0 | CP43: 0 | CQ43: 0
A44: ="29/10" -> 29/10 | B44: Чай с лимоном | C44: 180 | D44: 0.21 | E44: 0 | F44: 0.05 | G44: 0.05 | H44: 8.93 | I44: 35.63244878 | J44: 0 | K44: 0 | L44: 0 | M44: 0 | N44: 8.75 | O44: 0 | P44: 0.18 | Q44: 0 | R44: 0 | S44: 0.25 | T44: 0.08 | U44: 0.57 | V44: 7.35 | W44: 1.96 | X44: 0.5 | Y44: 0.9 | Z44: 0.05 | AA44: 0 | AB44: 0.4 | AC44: 0.09 | AD44: 0.01 | AE44: 0 | AF44: 0 | AG44: 0 | AH44: 0.01 | AI44: 0.7 | AJ44: 0 | AK44: 0.6 | AL44: 0.69 | AM44: 0.56 | AN44: 1.03 | AO44: 0.26 | AP44: 1.08 | AQ44: 0 | AR44: 1.38 | AS44: 0 | AT44: 0 | AU44: 0 | AV44: 0.77 | AW44: 0 | AX44: 0 | AY44: 0 | AZ44: 0 | BA44: 0 | BB44: 0 | BC44: 0 | BD44: 0 | BE44: 0 | BF44: 0 | BG44: 0 | BH44: 0 | BI44: 0 | BJ44: 0 | BK44: 0 | BL44: 0 | BM44: 0 | BN44: 0 | BO44: 0 | BP44: 0 | BQ44: 0 | BR44: 0 | BS44: 0 | BT44: 0 | BU44: 0 | BV44: 0 | BW44: 0 | BX44: 0 | BY44: 0 | BZ44: 0 | CA44: 0 | CB44: 179.55 | CE44: 0.07 | CG44: 3.21 | CH44: 3.1 | CI44: 3.16 | CJ44: 362.2 | CK44: 137.63 | CL44: 249.91 | CM44: 33.27 | CN44: 19.89 | CO44: 26.58 | CP44: 8.78 | CQ44: 0
A45: ="11/4" -> 11/4 | B45: Каша пшенная молочная с маслом сливочным | C45: 180 | D45: 5.89 | E45: 2.12 | F45: 5.5 | G45: 1.19 | H45: 29.37 | I45: 189.0927954 | J45: 3.45 | K45: 0.1 | L45: 0 | M45: 0 | N45: 7.02 | O45: 21.16 | P45: 1.18 | Q45: 0 | R45: 0 | S45: 0.07 | T45: 1.42 | U45: 214.51 | V45: 160.67 | W45: 87.09 | X45: 34.85 | Y45: 130.82 | Z45: 0.94 | AA45: 19.44 | AB45: 22.32 | AC45: 37.17 | AD45: 0.15 | AE45: 0.13 | AF45: 0.1 | AG45: 0.52 | AH45: 2.24 | AI45: 0.37 | AJ45: 0 | AK45: 160.82 | AL45: 147.25 | AM45: 522.32 | AN45: 99.36 | AO45: 100.89 | AP45: 137.35 | AQ45: 62.73 | AR45: 198.05 | AS45: 365.3 | AT45: 144.92 | AU45: 222.37 | AV45: 89.46 | AW45: 102.54 | AX45: 757.25 | AY45: 0 | AZ45: 276.13 | BA45: 239.16 | BB45: 140.52 | BC45: 61.34 | BD45: 0.11 | BE45: 0.05 | BF45: 0.03 | BG45: 0.06 | BH45: 0.07 | BI45: 0.32 | BJ45: 0 | BK45: 0.95 | BL45: 0 | BM45: 0.29 | BN45: 0.01 | BO45: 0 | BP45: 0 | BQ45: 0.06 | BR45: 0.1 | BS45: 0.88 | BT45: 0 | BU45: 0 | BV45: 0.7 | BW45: 0.01 | BX45: 0 | BY45: 0 | BZ45: 0 | CA45: 0 | CB45: 149.45 | CE45: 23.16 | CG45: 23.28 | CH45: 11.46 | CI45: 17.37 | CJ45: 1594.25 | CK45: 730.44 | CL45: 1162.35 | CM45: 27.55 | CN45: 14.21 | CO45: 20.88 | CP45: 3.6 | CQ45: 0.45
B46: Итого за 'Завтрак' | C46: =SUM(C41:C45) -> 425 | D46: =SUM(D41:D45) -> 9.86 | E46: 2.16 | F46: 14.59 | G46: 2.44 | H46: 59.69 | I46: 405.9792442 | J46: 6.01 | K46: 0.21 | L46: 0 | M46: 0 | N46: 17.16 | O46: 39.88 | P46: 2.64 | Q46: 0 | R46: 0 | S46: 0.44 | T46: 2.21 | U46: 387.43 | V46: 221.92 | W46: 99.05 | X46: 48.55 | Y46: 167.22 | Z46: 1.8 | AA46: 39.44 | AB46: 37.72 | AC46: 59.76 | AD46: 0.89 | AE46: 0.19 | AF46: 0.13 | AG46: 1.17 | AH46: 3.46 | AI46: 1.07 | AJ46: 0 | AK46: 312.32 | AL46: 304.39 | AM46: 763.08 | AN46: 182.24 | AO46: 148.8 | AP46: 234.38 | AQ46: 100.08 | AR46: 369.53 | AS46: 471.5 | AT46: 291.42 | AU46: 345.62 | AV46: 156.38 | AW46: 215.74 | AX46: 1694.35 | AY46: 0 | AZ46: 581.33 | BA46: 374.26 | BB46: 231.42 | BC46: 131.04 | BD46: 0.24 | BE46: 0.11 | BF46: 0.06 | BG46: 0.14 | BH46: 0.16 | BI46: 0.73 | BJ46: 0 | BK46: 2.18 | BL46: 0 | BM46: 0.69 | BN46: 0.01 | BO46: 0 | BP46: =SUM(BP41:BP45) -> 0 | BQ46: 0.14 | BR46: 0.22 | BS46: 2.25 | BT46: 0 | BU46: 0 | BV46: 1.1 | BW46: 0.02 | BX46: 0 | BY46: 0 | BZ46: 0 | CA46: 0 | CB46: 360.11 | CC46: 0 | CD46: 0 | CE46: 45.73 | CF46: 0 | CG46: 26.69 | CH46: 14.61 | CI46: 20.66 | CJ46: 2631.45 | CK46: 1128.37 | CL46: 1879.91 | CM46: 67 | CN46: 39.86 | CO46: 53.43 | CP46: 12.38 | CQ46: 0.45
B47: 10:00
A48: ="-" -> - | B48: Ряженка | C48: 100 | D48: 0.6 | E48: 0 | F48: 0.3 | G48: 0.3 | H48: 5.6 | I48: 24.88 | J48: 0.1 | K48: 0 | L48: 0 | M48: 0 | N48: 4.6 | O48: 0 | P48: 1 | Q48: 0 | R48: 0 | S48: 0.1 | T48: 0.4 | U48: 2 | V48: 238 | W48: 15 | X48: 9 | Y48: 12 | Z48: 0.4 | AA48: 0 | AB48: 30 | AC48: 5 | AD48: 0.1 | AE48: 0.03 | AF48: 0.03 | AG48: 0.6 | AH48: 0.7 | AI48: 15 | AJ48: 0 | AK48: 0 | AL48: 0 | AM48: 450 | AN48: 387 | AO48: 115 | AP48: 216 | AQ48: 72 | AR48: 225 | AS48: 160 | AT48: 174 | AU48: 344 | AV48: 156 | AW48: 93 | AX48: 897 | AY48: 0 | AZ48: 518 | BA48: 278 | BB48: 242 | BC48: 50 | BD48: 0.1 | BE48: 0.07 | BF48: 0.04 | BG48: 0.08 | BH48: 0.09 | BI48: 0.45 | BJ48: 0.03 | BK48: 0.56 | BL48: 0.02 | BM48: 0.31 | BN48: 0.04 | BO48: 0 | BP48: 0 | BQ48: 0.04 | BR48: 0.08 | BS48: 0.69 | BT48: 0.01 | BU48: 0 | BV48: 0.02 | BW48: 0.03 | BX48: 0.08 | BY48: 0 | BZ48: 0 | CA48: 0 | CB48: 93 | CE48: 5 | CG48: 0 | CH48: 0 | CI48: 0 | CJ48: 0 | CK48: 0 | CL48: 0 | CM48: 0 | CN48: 0 | CO48: 0 | CP48: 0 | CQ48: 0
B49: Итого за '10:00' | C49: =SUM(C48) -> 100 | D49: =SUM(D48) -> 0.6 | E49: 0 | F49: 0.3 | G49: 0.3 | H49: 5.6 | I49: 24.88 | J49: 0.1 | K49: 0 | L49: 0 | M49: 0 | N49: 4.6 | O49: 0 | P49: 1 | Q49: 0 | R49: 0 | S49: 0.1 | T49: 0.4 | U49: 2 | V49: 238 | W49: 15 | X49: 9 | Y49: 12 | Z49: 0.4 | AA49: 0 | AB49: 30 | AC49: 5 | AD49: 0.1 | AE49: 0.03 | AF49: 0.03 | AG49: 0.6 | AH49: 0.7 | AI49: 15 | AJ49: 0 | AK49: 0 | AL49: 0 | AM49: 450 | AN49: 387 | AO49: 115 | AP49: 216 | AQ49: 72 | AR49: 225 | AS49: 160 | AT49: 174 | AU49: 344 | AV49: 156 | AW49: 93 | AX49: 897 | AY49: 0 | AZ49: 518 | BA49: 278 | BB49: 242 | BC49: 50 | BD49: 0.1 | BE49: 0.07 | BF49: 0.04 | BG49: 0.08 | BH49: 0.09 | BI49: 0.45 | BJ49: 0.03 | BK49: 0.56 | BL49: 0.02 | BM49: 0.31 | BN49: 0.04 | BO49: 0 | BP49: =SUM(BP48) -> 0 | BQ49: 0.04 | BR49: 0.08 | BS49: 0.69 | BT49: 0.01 | BU49: 0 | BV49: 0.02 | BW49: 0.03 | BX49: 0.08 | BY49: 0 | BZ49: 0 | CA49: 0 | CB49: 93 | CC49: 0 | CD49: 0 | CE49: 5 | CF49: 0 | CG49: 0 | CH49: 0 | CI49: 0 | CJ49: 0 | CK49: 0 | CL49: 0 | CM49: 0 | CN49: 0 | CO49: 0 | CP49: 0 | CQ49: 0
B50: Обед
A51: ="-" -> - | B51: Хлеб пшеничный | C51: 20 | D51: 1.32 | E51: 0 | F51: 0.13 | G51: 0.13 | H51: 9.38 | I51: 44.7802 | J51: 0 | K51: 0 | L51: 0 | M51: 0 | N51: 0.22 | O51: 9.12 | P51: 0.04 | Q51: 0 | R51: 0 | S51: 0 | T51: 0.36 | U51: 0 | V51: 0 | W51: 0 | X51: 0 | Y51: 0 | Z51: 0 | AA51: 0 | AB51: 0 | AC51: 0 | AD51: 0 | AE51: 0 | AF51: 0 | AG51: 0 | AH51: 0 | AI51: 0 | AJ51: 0 | AK51: 63.86 | AL51: 66.47 | AM51: 101.79 | AN51: 33.76 | AO51: 20.01 | AP51: 40.02 | AQ51: 15.14 | AR51: 72.38 | AS51: 44.89 | AT51: 62.64 | AU51: 51.68 | AV51: 27.14 | AW51: 48.02 | AX51: 401.59 | AY51: 0 | AZ51: 130.85 | BA51: 56.9 | BB51: 37.76 | BC51: 29.93 | BD51: 0 | BE51: 0 | BF51: 0 | BG51: 0 | BH51: 0 | BI51: 0 | BJ51: 0 | BK51: 0.02 | BL51: 0 | BM51: 0 | BN51: 0 | BO51: 0 | BP51: 0 | BQ51: 0 | BR51: 0 | BS51: 0.01 | BT51: 0 | BU51: 0 | BV51: 0.06 | BW51: 0 | BX51: 0 | BY51: 0 | BZ51: 0 | CA51: 0 | CB51: 7.82 | CE51: 0 | CG51: 0 | CH51: 0 | CI51: 0 | CJ51: 380 | CK51: 146.4 | CL51: 263.2 | CM51: 3.04 | CN51: 3.04 | CO51: 3.04 | CP51: 0 | CQ51: 0
A52: ="-" -> - | B52: Хлеб ржаной | C52: 20 | D52: 1.32 | E52: 0 | F52: 0.24 | G52: 0.24 | H52: 8.34 | I52: 38.676 | J52: 0.04 | K52: 0 | L52: 0 | M52: 0 | N52: 0.24 | O52: 6.44 | P52: 1.66 | Q52: 0 | R52: 0 | S52: 0.2 | T52: 0.5 | U52: 122 | V52: 49 | W52: 7 | X52: 9.4 | Y52: 31.6 | Z52: 0.78 | AA52: 0 | AB52: 1 | AC52: 0.2 | AD52: 0.28 | AE52: 0.04 | AF52: 0.02 | AG52: 0.14 | AH52: 0.4 | AI52: 0 | AJ52: 0 | AK52: 64.4 | AL52: 49.6 | AM52: 85.4 | AN52: 44.6 | AO52: 18.6 | AP52: 39.6 | AQ52: 16 | AR52: 74.2 | AS52: 59.4 | AT52: 58.2 | AU52: 92.8 | AV52: 24.8 | AW52: 62 | AX52: 311.8 | AY52: 0 | AZ52: 105.2 | BA52: 58.2 | BB52: 36 | BC52: 26 | BD52: 0 | BE52: 0 | BF52: 0 | BG52: 0 | BH52: 0 | BI52: 0 | BJ52: 0 | BK52: 0.03 | BL52: 0 | BM52: 0 | BN52: 0 | BO52: 0 | BP52: 0 | BQ52: 0 | BR52: 0 | BS52: 0.02 | BT52: 0 | BU52: 0 | BV52: 0.1 | BW52: 0.02 | BX52: 0 | BY52: 0 | BZ52: 0 | CA52: 0 | CB52: 9.4 | CE52: 0.17 | CG52: 1 | CH52: 1 | CI52: 1 | CJ52: 190 | CK52: 73.2 | CL52: 131.6 | CM52: 1.9 | CN52: 1.58 | CO52: 1.74 | CP52: 0 | CQ52: 0
A53: ="6/10" -> 6/10 | B53: Компот из сухофруктов | C53: 180 | D53: 0.92 | E53: 0 | F53: 0.05 | G53: 0.05 | H53: 20.86 | I53: 78.839028 | J53: 0.02 | K53: 0 | L53: 0 | M53: 0 | N53: 17.27 | O53: 0.51 | P53: 3.08 | Q53: 0 | R53: 0 | S53: 0.27 | T53: 0.73 | U53: 3.12 | V53: 306.24 | W53: 28.2 | X53: 17.96 | Y53: 24.44 | Z53: 0.58 | AA53: 0 | AB53: 567 | AC53: 104.94 | AD53: 0.99 | AE53: 0.02 | AF53: 0.03 | AG53: 0.46 | AH53: 0.7 | AI53: 0.29 | AJ53: 0 | AK53: 0.01 | AL53: 0.01 | AM53: 0.01 | AN53: 0.02 | AO53: 0 | AP53: 0.01 | AQ53: 0 | AR53: 0.01 | AS53: 0.01 | AT53: 0.01 | AU53: 0.05 | AV53: 0 | AW53: 0.01 | AX53: 0.02 | AY53: 0 | AZ53: 0.01 | BA53: 0.01 | BB53: 0.01 | BC53: 0 | BD53: 0 | BE53: 0 | BF53: 0 | BG53: 0 | BH53: 0 | BI53: 0 | BJ53: 0 | BK53: 0 | BL53: 0 | BM53: 0 | BN53: 0 | BO53: 0 | BP53: 0 | BQ53: 0 | BR53: 0 | BS53: 0.01 | BT53: 0 | BU53: 0 | BV53: 0.01 | BW53: 0 | BX53: 0 | BY53: 0 | BZ53: 0 | CA53: 0 | CB53: 192.61 | CE53: 94.5 | CG53: 3.29 | CH53: 3.29 | CI53: 3.29 | CJ53: 378.75 | CK53: 144.15 | CL53: 261.45 | CM53: 34.95 | CN53: 20.78 | CO53: 27.86 | CP53: 9 | CQ53: 0
A54: ="32/1" -> 32/1 | B54: Салат из отварной свеклы с растительным маслом | C54: 50 | D54: 0.69 | E54: 0 | F54: 2.98 | G54: 2.98 | H54: 4.51 | I54: 44.93207292 | J54: 0.38 | K54: 1.95 | L54: 0 | M54: 0 | N54: 3.37 | O54: 0.04 | P54: 1.09 | Q54: 0 | R54: 0 | S54: 0.05 | T54: 0.73 | U54: 111.56 | V54: 111.68 | W54: 17.04 | X54: 9.65 | Y54: 19 | Z54: 0.62 | AA54: 0 | AB54: 4.12 | AC54: 0.99 | AD54: 1.37 | AE54: 0.01 | AF54: 0.02 | AG54: 0.07 | AH54: 0.2 | AI54: 0.97 | AJ54: 0 | AK54: 24.4 | AL54: 27.62 | AM54: 30.85 | AN54: 42.35 | AO54: 9.21 | AP54: 24.4 | AQ54: 5.98 | AR54: 20.72 | AS54: 18.42 | AT54: 33.61 | AU54: 151 | AV54: 6.45 | AW54: 17.49 | AX54: 126.14 | AY54: 0 | AZ54: 21.64 | BA54: 29 | BB54: 23.02 | BC54: 6.91 | BD54: 0 | BE54: 0 | BF54: 0 | BG54: 0 | BH54: 0 | BI54: 0 | BJ54: 0 | BK54: 0.18 | BL54: 0 | BM54: 0.12 | BN54: 0.01 | BO54: 0.02 | BP54: 0 | BQ54: 0 | BR54: 0 | BS54: 0.7 | BT54: 0 | BU54: 0 | BV54: 1.73 | BW54: 0 | BX54: 0 | BY54: 0 | BZ54: 0 | CA54: 0 | CB54: 42.53 | CE54: 0.69 | CG54: 10.87 | CH54: 6.79 | CI54: 8.83 | CJ54: 341.73 | CK54: 81.75 | CL54: 211.74 | CM54: 1.64 | CN54: 1.04 | CO54: 1.34 | CP54: 0 | CQ54: 0.25
A55: ="18/2" -> 18/2 | B55: Суп картофельный с вермишелью на говяжьем бульоне | C55: 180 | D55: 1.93 | E55: 5.74 | F55: 1.72 | G55: 1.72 | H55: 14.6 | I55: 80.27548092 | J55: 0.24 | K55: 0.94 | L55: 0 | M55: 0 | N55: 1.75 | O55: 11.6 | P55: 1.25 | Q55: 0 | R55: 0 | S55: 0.14 | T55: 1.09 | U55: 142.66 | V55: 317.96 | W55: 11.24 | X55: 15.92 | Y55: 40.02 | Z55: 0.66 | AA55: 0 | AB55: 942.19 | AC55: 174.31 | AD55: 0.84 | AE55: 0.07 | AF55: 0.04 | AG55: 0.7 | AH55: 1.24 | AI55: 4.41 | AJ55: 0 | AK55: 48.91 | AL55: 52.8 | AM55: 84.78 | AN55: 50.35 | AO55: 16.42 | AP55: 44.18 | AQ55: 17.54 | AR55: 57.87 | AS55: 55.81 | AT55: 110.44 | AU55: 69.8 | AV55: 22.08 | AW55: 47.19 | AX55: 343.9 | AY55: 0 | AZ55: 85.19 | BA55: 51.12 | BB55: 33.84 | BC55: 21.41 | BD55: 0 | BE55: 0 | BF55: 0 | BG55: 0 | BH55: 0 | BI55: 0 | BJ55: 0 | BK55: 0.14 | BL55: 0 | BM55: 0.07 | BN55: 0 | BO55: 0.01 | BP55: 0 | BQ55: 0 | BR55: 0 | BS55: 0.42 | BT55: 0 | BU55: 0 | BV55: 0.9 | BW55: 0 | BX55: 0 | BY55: 0 | BZ55: 0 | CA55: 0 | CB55: 187.49 | CE55: 157.03 | CG55: 20.37 | CH55: 13.13 | CI55: 16.75 | CJ55: 622.77 | CK55: 372.86 | CL55: 497.82 | CM55: 38.79 | CN55: 19.02 | CO55: 28.9 | CP55: 0 | CQ55: 0.36
A56: ="3/3" -> 3/3 | B56: Картофельное пюре | C56: 150 | D56: 3.11 | E56: 0.55 | F56: 3.54 | G56: 0.51 | H56: 22.09 | I56: 131.520525 | J56: 2.22 | K56: 0.08 | L56: 0 | M56: 0 | N56: 2.16 | O56: 18.23 | P56: 1.7 | Q56: 0 | R56: 0 | S56: 0.29 | T56: 1.89 | U56: 77.84 | V56: 636.26 | W56: 33.96 | X56: 30.35 | Y56: 86.82 | Z56: 1.12 | AA56: 18.75 | AB56: 34.11 | AC56: 25.05 | AD56: 0.17 | AE56: 0.12 | AF56: 0.1 | AG56: 1.33 | AH56: 2.59 | AI56: 5.45 | AJ56: 0 | AK56: 33.56 | AL56: 52.76 | AM56: 66.83 | AN56: 78.55 | AO56: 13.43 | AP56: 52.97 | AQ56: 27.18 | AR56: 54.08 | AS56: 75.67 | AT56: 206.13 | AU56: 91.81 | AV56: 19.2 | AW56: 53.44 | AX56: 287.21 | AY56: 0 | AZ56: 40.19 | BA56: 36.55 | BB56: 39.97 | BC56: 17.03 | BD56: 0.1 | BE56: 0.04 | BF56: 0.02 | BG56: 0.05 | BH56: 0.06 | BI56: 0.29 | BJ56: 0 | BK56: 0.88 | BL56: 0 | BM56: 0.26 | BN56: 0 | BO56: 0 | BP56: 0 | BQ56: 0.05 | BR56: 0.09 | BS56: 0.85 | BT56: 0 | BU56: 0 | BV56: 0.14 | BW56: 0 | BX56: 0 | BY56: 0 | BZ56: 0 | CA56: 0 | CB56: 123.74 | CE56: 24.43 | CG56: 17.59 | CH56: 11.66 | CI56: 14.63 | CJ56: 602.06 | CK56: 529.2 | CL56: 565.63 | CM56: 24.41 | CN56: 3.59 | CO56: 14 | CP56: 0 | CQ56: 0.23
A57: ="12/7" -> 12/7 | B57: Биточки (котлеты) из рыбы минтай | C57: 70 | D57: 8.54 | E57: 6.98 | F57: 4.47 | G57: 4.08 | H57: 9.84 | I57: 113.577464 | J57: 0.64 | K57: 2.73 | L57: 0 | M57: 0 | N57: 0.32 | O57: 8.93 | P57: 0.59 | Q57: 0 | R57: 0 | S57: 0.07 | T57: 1.41 | U57: 175.57 | V57: 159.42 | W57: 22.49 | X57: 30.28 | Y57: 125.91 | Z57: 0.81 | AA57: 4.62 | AB57: 0.28 | AC57: 4.68 | AD57: 2.18 | AE57: 0.06 | AF57: 0.06 | AG57: 0.88 | AH57: 2.57 | AI57: 0.23 | AJ57: 0 | AK57: 43.93 | AL57: 45.73 | AM57: 70.02 | AN57: 23.22 | AO57: 13.77 | AP57: 27.53 | AQ57: 10.41 | AR57: 49.8 | AS57: 30.88 | AT57: 43.09 | AU57: 35.55 | AV57: 18.67 | AW57: 33.04 | AX57: 276.27 | AY57: 0 | AZ57: 90.01 | BA57: 39.14 | BB57: 25.97 | BC57: 20.59 | BD57: 0 | BE57: 0 | BF57: 0 | BG57: 0 | BH57: 0 | BI57: 0 | BJ57: 0 | BK57: 0.25 | BL57: 0 | BM57: 0.16 | BN57: 0.01 | BO57: 0.03 | BP57: 0 | BQ57: 0 | BR57: 0 | BS57: 0.93 | BT57: 0 | BU57: 0 | BV57: 2.32 | BW57: 0 | BX57: 0 | BY57: 0 | BZ57: 0 | CA57: 0 | CB57: 60.19 | CE57: 4.67 | CG57: 61.5 | CH57: 12.6 | CI57: 37.05 | CJ57: 617.5 | CK57: 215.38 | CL57: 416.44 | CM57: 14.73 | CN57: 14.73 | CO57: 14.73 | CP57: 0 | CQ57: 0.42
B58: Итого за 'Обед' | C58: =SUM(C51:C57) -> 670 | D58: =SUM(D51:D57) -> 17.83 | E58: 13.27 | F58: 13.13 | G58: 9.71 | H58: 89.62 | I58: 532.6007708 | J58: 3.54 | K58: 5.7 | L58: 0 | M58: 0 | N58: 25.33 | O58: 54.87 | P58: 9.41 | Q58: 0 | R58: 0 | S58: 1.02 | T58: 6.71 | U58: 632.75 | V58: 1580.56 | W58: 119.93 | X58: 113.56 | Y58: 327.79 | Z58: 4.57 | AA58: 23.37 | AB58: 1548.7 | AC58: 310.17 | AD58: 5.83 | AE58: 0.32 | AF58: 0.27 | AG58: 3.58 | AH58: 7.7 | AI58: 11.35 | AJ58: 0 | AK58: 279.07 | AL58: 294.99 | AM58: 439.68 | AN58: 272.85 | AO58: 91.44 | AP58: 228.71 | AQ58: 92.25 | AR58: 329.06 | AS58: 285.08 | AT58: 514.12 | AU58: 492.69 | AV58: 118.34 | AW58: 261.19 | AX58: 1746.93 | AY58: 0 | AZ58: 473.09 | BA58: 270.92 | BB58: 196.57 | BC58: 121.87 | BD58: 0.1 | BE58: 0.04 | BF58: 0.02 | BG58: 0.05 | BH58: 0.06 | BI58: 0.29 | BJ58: 0 | BK58: 1.5 | BL58: 0 | BM58: 0.61 | BN58: 0.02 | BO58: 0.06 | BP58: =SUM(BP51:BP57) -> 0 | BQ58: 0.05 | BR58: 0.09 | BS58: 2.94 | BT58: 0 | BU58: 0 | BV58: 5.26 | BW58: 0.02 | BX58: 0 | BY58: 0 | BZ58: 0 | CA58: 0 | CB58: 623.78 | CC58: 0 | CD58: 0 | CE58: 281.49 | CF58: 0 | CG58: 114.62 | CH58: 48.47 | CI58: 81.55 | CJ58: 3132.81 | CK58: 1562.94 | CL58: 2347.88 | CM58: 119.46 | CN58: 63.78 | CO58: 91.61 | CP58: 9 | CQ58: 1.26
B59: Ужин
A60: ="-" -> - | B60: Хлеб пшеничный | C60: 20 | D60: 1.32 | E60: 0 | F60: 0.13 | G60: 0.13 | H60: 9.38 | I60: 44.7802 | J60: 0 | K60: 0 | L60: 0 | M60: 0 | N60: 0.22 | O60: 9.12 | P60: 0.04 | Q60: 0 | R60: 0 | S60: 0 | T60: 0.36 | U60: 0 | V60: 0 | W60: 0 | X60: 0 | Y60: 0 | Z60: 0 | AA60: 0 | AB60: 0 | AC60: 0 | AD60: 0 | AE60: 0 | AF60: 0 | AG60: 0 | AH60: 0 | AI60: 0 | AJ60: 0 | AK60: 63.86 | AL60: 66.47 | AM60: 101.79 | AN60: 33.76 | AO60: 20.01 | AP60: 40.02 | AQ60: 15.14 | AR60: 72.38 | AS60: 44.89 | AT60: 62.64 | AU60: 51.68 | AV60: 27.14 | AW60: 48.02 | AX60: 401.59 | AY60: 0 | AZ60: 130.85 | BA60: 56.9 | BB60: 37.76 | BC60: 29.93 | BD60: 0 | BE60: 0 | BF60: 0 | BG60: 0 | BH60: 0 | BI60: 0 | BJ60: 0 | BK60: 0.02 | BL60: 0 | BM60: 0 | BN60: 0 | BO60: 0 | BP60: 0 | BQ60: 0 | BR60: 0 | BS60: 0.01 | BT60: 0 | BU60: 0 | BV60: 0.06 | BW60: 0 | BX60: 0 | BY60: 0 | BZ60: 0 | CA60: 0 | CB60: 7.82 | CE60: 0 | CG60: 0 | CH60: 0 | CI60: 0 | CJ60: 665 | CK60: 256.2 | CL60: 460.6 | CM60: 5.32 | CN60: 5.32 | CO60: 5.32 | CP60: 0 | CQ60: 0
A61: ="-" -> - | B61: Хлеб ржаной | C61: 20 | D61: 1.32 | E61: 0 | F61: 0.24 | G61: 0.24 | H61: 8.34 | I61: 38.676 | J61: 0.04 | K61: 0 | L61: 0 | M61: 0 | N61: 0.24 | O61: 6.44 | P61: 1.66 | Q61: 0 | R61: 0 | S61: 0.2 | T61: 0.5 | U61: 122 | V61: 49 | W61: 7 | X61: 9.4 | Y61: 31.6 | Z61: 0.78 | AA61: 0 | AB61: 1 | AC61: 0.2 | AD61: 0.28 | AE61: 0.04 | AF61: 0.02 | AG61: 0.14 | AH61: 0.4 | AI61: 0 | AJ61: 0 | AK61: 64.4 | AL61: 49.6 | AM61: 85.4 | AN61: 44.6 | AO61: 18.6 | AP61: 39.6 | AQ61: 16 | AR61: 74.2 | AS61: 59.4 | AT61: 58.2 | AU61: 92.8 | AV61: 24.8 | AW61: 62 | AX61: 311.8 | AY61: 0 | AZ61: 105.2 | BA61: 58.2 | BB61: 36 | BC61: 26 | BD61: 0 | BE61: 0 | BF61: 0 | BG61: 0 | BH61: 0 | BI61: 0 | BJ61: 0 | BK61: 0.03 | BL61: 0 | BM61: 0 | BN61: 0 | BO61: 0 | BP61: 0 | BQ61: 0 | BR61: 0 | BS61: 0.02 | BT61: 0 | BU61: 0 | BV61: 0.1 | BW61: 0.02 | BX61: 0 | BY61: 0 | BZ61: 0 | CA61: 0 | CB61: 9.4 | CE61: 0.17 | CG61: 1.5 | CH61: 1.5 | CI61: 1.5 | CJ61: 285 | CK61: 109.8 | CL61: 197.4 | CM61: 2.85 | CN61: 2.37 | CO61: 2.61 | CP61: 0 | CQ61: 0
A62: ="27/10" -> 27/10 | B62: Чай (вариант 2) | C62: 180 | D62: 0.18 | E62: 0 | F62: 0.04 | G62: 0.04 | H62: 4.53 | I62: 18.157086 | J62: 0 | K62: 0 | L62: 0 | M62: 0 | N62: 4.44 | O62: 0 | P62: 0.09 | Q62: 0 | R62: 0 | S62: 0 | T62: 0.05 | U62: 0.04 | V62: 0.13 | W62: 0.13 | X62: 0 | Y62: 0 | Z62: 0.01 | AA62: 0 | AB62: 0 | AC62: 0 | AD62: 0 | AE62: 0 | AF62: 0 | AG62: 0 | AH62: 0 | AI62: 0 | AJ62: 0 | AK62: 0 | AL62: 0 | AM62: 0 | AN62: 0 | AO62: 0 | AP62: 0 | AQ62: 0 | AR62: 0 | AS62: 0 | AT62: 0 | AU62: 0 | AV62: 0 | AW62: 0 | AX62: 0 | AY62: 0 | AZ62: 0 | BA62: 0 | BB62: 0 | BC62: 0 | BD62: 0 | BE62: 0 | BF62: 0 | BG62: 0 | BH62: 0 | BI62: 0 | BJ62: 0 | BK62: 0 | BL62: 0 | BM62: 0 | BN62: 0 | BO62: 0 | BP62: 0 | BQ62: 0 | BR62: 0 | BS62: 0 | BT62: 0 | BU62: 0 | BV62: 0 | BW62: 0 | BX62: 0 | BY62: 0 | BZ62: 0 | CA62: 0 | CB62: 180.08 | CE62: 0 | CG62: 3.69 | CH62: 3.69 | CI62: 3.69 | CJ62: 398.25 | CK62: 156.6 | CL62: 277.43 | CM62: 39.61 | CN62: 23.41 | CO62: 31.51 | CP62: 4.5 | CQ62: 0
A63: ="16/4" -> 16/4 | B63: Каша пшеничная молочная с маслом сливочным | C63: 180 | D63: 5.88 | E63: 2.12 | F63: 4.93 | G63: 1.19 | H63: 29.36 | I63: 183.8574648 | J63: 3.03 | K63: 0.08 | L63: 0 | M63: 0 | N63: 7.01 | O63: 21.16 | P63: 1.18 | Q63: 0 | R63: 0 | S63: 0.07 | T63: 1.4 | U63: 214.37 | V63: 160.43 | W63: 86.9 | X63: 34.85 | Y63: 130.58 | Z63: 0.94 | AA63: 17.28 | AB63: 20.16 | AC63: 33.12 | AD63: 0.14 | AE63: 0.13 | AF63: 0.1 | AG63: 0.52 | AH63: 2.24 | AI63: 0.37 | AJ63: 0 | AK63: 160.47 | AL63: 146.9 | AM63: 521.68 | AN63: 98.98 | AO63: 100.74 | AP63: 136.95 | AQ63: 62.37 | AR63: 197.69 | AS63: 365 | AT63: 144.7 | AU63: 221.89 | AV63: 89.17 | AW63: 102.33 | AX63: 756.05 | AY63: 0 | AZ63: 275.73 | BA63: 238.71 | BB63: 140.17 | BC63: 61.25 | BD63: 0.09 | BE63: 0.04 | BF63: 0.02 | BG63: 0.05 | BH63: 0.05 | BI63: 0.25 | BJ63: 0 | BK63: 0.78 | BL63: 0 | BM63: 0.23 | BN63: 0.01 | BO63: 0 | BP63: 0 | BQ63: 0.05 | BR63: 0.08 | BS63: 0.74 | BT63: 0 | BU63: 0 | BV63: 0.69 | BW63: 0.01 | BX63: 0 | BY63: 0 | BZ63: 0 | CA63: 0 | CB63: 149.22 | CE63: 20.64 | CG63: 23.25 | CH63: 11.46 | CI63: 17.35 | CJ63: 1592.75 | CK63: 729.83 | CL63: 1161.29 | CM63: 27.42 | CN63: 14.15 | CO63: 20.78 | CP63: 3.6 | CQ63: 0.45
A64: ="27/12" -> 27/12 | B64: Оладьи | C64: 65 | D64: 4.16 | E64: 0.45 | F64: 4.09 | G64: 4.37 | H64: 25.28 | I64: 154.1992237 | J64: 0.63 | K64: 2.54 | L64: 0 | M64: 0 | N64: 1.44 | O64: 22.68 | P64: 1.17 | Q64: 0 | R64: 0 | S64: 0 | T64: 0.22 | U64: 4.31 | V64: 44.84 | W64: 6.92 | X64: 5.58 | Y64: 32.45 | Z64: 0.43 | AA64: 2.94 | AB64: 0.88 | AC64: 5.08 | AD64: 2.29 | AE64: 0.05 | AF64: 0.02 | AG64: 0.38 | AH64: 1.25 | AI64: 0 | AJ64: 0 | AK64: 188.23 | AL64: 167.93 | AM64: 313.32 | AN64: 118.6 | AO64: 65.26 | AP64: 126.42 | AQ64: 40.3 | AR64: 191.78 | AS64: 137.65 | AT64: 162.42 | AU64: 157.58 | AV64: 82.07 | AW64: 137.82 | AX64: 1126.33 | AY64: 3.76 | AZ64: 350.08 | BA64: 197.32 | BB64: 101.46 | BC64: 77.01 | BD64: 0 | BE64: 0 | BF64: 0 | BG64: 0 | BH64: 0 | BI64: 0 | BJ64: 0 | BK64: 0.26 | BL64: 0 | BM64: 0.14 | BN64: 0.01 | BO64: 0.02 | BP64: 0 | BQ64: 0 | BR64: 0 | BS64: 0.85 | BT64: 0 | BU64: 0 | BV64: 2.48 | BW64: 0.01 | BX64: 0 | BY64: 0 | BZ64: 0 | CA64: 0 | CB64: 43.97 | CE64: 3.08 | CG64: 1.01 | CH64: 0.94 | CI64: 0.97 | CJ64: 747.16 | CK64: 270.06 | CL64: 508.61 | CM64: 4.15 | CN64: 2.33 | CO64: 3.61 | CP64: 1.2 | CQ64: 0
B65: Итого за 'Ужин' | C65: =SUM(C60:C64) -> 465 | D65: =SUM(D60:D64) -> 12.86 | E65: 2.57 | F65: 9.43 | G65: 5.97 | H65: 76.89 | I65: 439.6699745 | J65: 3.7 | K65: 2.62 | L65: 0 | M65: 0 | N65: 13.35 | O65: 59.4 | P65: 4.14 | Q65: 0 | R65: 0 | S65: 0.27 | T65: 2.53 | U65: 340.72 | V65: 254.4 | W65: 100.95 | X65: 49.83 | Y65: 194.63 | Z65: 2.16 | AA65: 20.22 | AB65: 22.04 | AC65: 38.4 | AD65: 2.71 | AE65: 0.22 | AF65: 0.14 | AG65: 1.04 | AH65: 3.89 | AI65: 0.37 | AJ65: 0 | AK65: 476.96 | AL65: 430.9 | AM65: 1022.19 | AN65: 295.94 | AO65: 204.61 | AP65: 342.99 | AQ65: 133.81 | AR65: 536.05 | AS65: 606.94 | AT65: 427.96 | AU65: 523.95 | AV65: 223.18 | AW65: 350.17 | AX65: 2595.77 | AY65: 3.76 | AZ65: 861.86 | BA65: 551.13 | BB65: 315.39 | BC65: 194.19 | BD65: 0.09 | BE65: 0.04 | BF65: 0.02 | BG65: 0.05 | BH65: 0.05 | BI65: 0.25 | BJ65: 0 | BK65: 1.09 | BL65: 0 | BM65: 0.37 | BN65: 0.02 | BO65: 0.02 | BP65: =SUM(BP60:BP64) -> 0 | BQ65: 0.05 | BR65: 0.08 | BS65: 1.62 | BT65: 0 | BU65: 0 | BV65: 3.33 | BW65: 0.04 | BX65: 0 | BY65: 0 | BZ65: 0 | CA65: 0 | CB65: 390.49 | CC65: 0 | CD65: 0 | CE65: 23.89 | CF65: 0 | CG65: 29.45 | CH65: 17.59 | CI65: 23.51 | CJ65: 3688.16 | CK65: 1522.49 | CL65: 2605.33 | CM65: 79.35 | CN65: 47.58 | CO65: 63.83 | CP65: 9.3 | CQ65: 0.45
B66: Итого за день | C66: =C46+C49+C58+C65 -> 1660 | D66: =D46+D49+D58+D65 -> 41.15 | E66: 18 | F66: 37.45 | G66: 18.42 | H66: 231.8 | I66: 1403.12999 | J66: 13.35 | K66: 8.53 | L66: 0 | M66: 0 | N66: 60.44 | O66: 154.15 | P66: 17.19 | Q66: 0 | R66: 0 | S66: 1.83 | T66: 11.85 | U66: 1362.9 | V66: 2294.88 | W66: 334.93 | X66: 220.94 | Y66: 701.64 | Z66: 8.93 | AA66: 83.03 | AB66: 1638.46 | AC66: 413.33 | AD66: 9.53 | AE66: 0.76 | AF66: 0.57 | AG66: 6.39 | AH66: 15.75 | AI66: 27.79 | AJ66: 0 | AK66: 1068.35 | AL66: 1030.28 | AM66: 2674.95 | AN66: 1138.03 | AO66: 559.85 | AP66: 1022.08 | AQ66: 398.14 | AR66: 1459.64 | AS66: 1523.52 | AT66: 1407.5 | AU66: 1706.26 | AV66: 653.9 | AW66: 920.1 | AX66: 6934.05 | AY66: 3.76 | AZ66: 2434.28 | BA66: 1474.31 | BB66: 985.38 | BC66: 497.1 | BD66: 0.53 | BE66: 0.26 | BF66: 0.14 | BG66: 0.32 | BH66: 0.36 | BI66: 1.72 | BJ66: 0.03 | BK66: 5.33 | BL66: 0.02 | BM66: 1.98 | BN66: 0.09 | BO66: 0.08 | BP66: =BP46+BP49+BP58+BP65 -> 0 | BQ66: 0.28 | BR66: 0.47 | BS66: 7.5 | BT66: 0.01 | BU66: 0 | BV66: 9.71 | BW66: 0.11 | BX66: 0.08 | BY66: 0 | BZ66: 0 | CA66: 0 | CB66: 1467.38 | CC66: 0 | CD66: 0 | CE66: 356.11 | CF66: 0 | CG66: 170.76 | CH66: 80.67 | CI66: 125.72 | CJ66: 9452.42 | CK66: 4213.8 | CL66: 6833.12 | CM66: 265.81 | CN66: 151.22 | CO66: 208.87 | CP66: 30.68 | CQ66: 2.16
B68: 3 день
B69: Завтрак
A70: ="-" -> - | B70: Батон | C70: 40 | D70: 3.08 | E70: 0 | F70: 1.2 | G70: 1.2 | H70: 21.32 | I70: 107.808 | J70: 0.2 | K70: 0 | L70: 0 | M70: 0 | N70: 1.32 | O70: 18.72 | P70: 1.28 | Q70: 0 | R70: 0 | S70: 0.12 | T70: 0.64 | U70: 171.6 | V70: 52.4 | W70: 8.8 | X70: 13.2 | Y70: 34 | Z70: 0.8 | AA70: 0 | AB70: 0 | AC70: 0 | AD70: 0.68 | AE70: 0.06 | AF70: 0.02 | AG70: 0.64 | AH70: 1.2 | AI70: 0 | AJ70: 0 | AK70: 148.8 | AL70: 154.4 | AM70: 236.4 | AN70: 79.6 | AO70: 46.8 | AP70: 93.6 | AQ70: 35.2 | AR70: 168 | AS70: 104.4 | AT70: 145.2 | AU70: 120.4 | AV70: 64.4 | AW70: 112 | AX70: 930 | AY70: 0 | AZ70: 302.8 | BA70: 132.4 | BB70: 88.8 | BC70: 69.2 | BD70: 0 | BE70: 0 | BF70: 0 | BG70: 0 | BH70: 0 | BI70: 0.01 | BJ70: 0 | BK70: 0.13 | BL70: 0 | BM70: 0.06 | BN70: 0 | BO70: 0 | BP70: 0 | BQ70: 0 | BR70: 0 | BS70: 0.47 | BT70: 0 | BU70: 0 | BV70: 0.35 | BW70: 0.01 | BX70: 0 | BY70: 0 | BZ70: 0 | CA70: 0 | CB70: 13.64 | CE70: 0 | CG70: 0 | CH70: 0 | CI70: 0 | CJ70: 665 | CK70: 256.2 | CL70: 460.6 | CM70: 5.32 | CN70: 5.32 | CO70: 5.32 | CP70: 0 | CQ70: 0
A71: ="4/13" -> 4/13 | B71: Сыр (порциями) | C71: 10 | D71: 2.63 | E71: 2.63 | F71: 2.66 | G71: 0 | H71: 0 | I71: 35.06 | J71: 1.53 | K71: 0 | L71: 0 | M71: 0 | N71: 0 | O71: 0 | P71: 0 | Q71: 0 | R71: 0 | S71: 0.2 | T71: 0.43 | U71: 110 | V71: 10 | W71: 100 | X71: 5.5 | Y71: 60 | Z71: 0.07 | AA71: 21 | AB71: 17 | AC71: 23.8 | AD71: 0.04 | AE71: 0 | AF71: 0.04 | AG71: 0.02 | AH71: 0.68 | AI71: 0.07 | AJ71: 0 | AK71: 157 | AL71: 117 | AM71: 230 | AN71: 158 | AO71: 56 | AP71: 95 | AQ71: 70 | AR71: 134 | AS71: 76 | AT71: 87 | AU71: 156 | AV71: 70 | AW71: 51 | AX71: 517 | AY71: 0 | AZ71: 273 | BA71: 129 | BB71: 139 | BC71: 21.5 | BD71: 0 | BE71: 0.01 | BF71: 0.04 | BG71: 0.11 | BH71: 0.13 | BI71: 0.33 | BJ71: 0.04 | BK71: 0.7 | BL71: 0.01 | BM71: 0.16 | BN71: 0.01 | BO71: 0 | BP71: 0 | BQ71: 0.05 | BR71: 0.07 | BS71: 0.52 | BT71: 0 | BU71: 0 | BV71: 0.07 | BW71: 0 | BX71: 0 | BY71: 0 | BZ71: 0 | CA71: 0 | CB71: 4.08 | CE71: 23.83 | CG71: 0.5 | CH71: 0.5 | CI71: 0.5 | CJ71: 500 | CK71: 370 | CL71: 435 | CM71: 1.53 | CN71: 0.97 | CO71: 1.25 | CP71: 0 | CQ71: 0
A72: ="27/10" -> 27/10 | B72: Чай | C72: 180 | D72: 0.18 | E72: 0 | F72: 0.04 | G72: 0.04 | H72: 8.93 | I72: 34.88157 | J72: 0 | K72: 0 | L72: 0 | M72: 0 | N72: 8.84 | O72: 0 | P72: 0.09 | Q72: 0 | R72: 0 | S72: 0 | T72: 0.06 | U72: 0.09 | V72: 0.27 | W72: 0.26 | X72: 0 | Y72: 0 | Z72: 0.03 | AA72: 0 | AB72: 0 | AC72: 0 | AD72: 0 | AE72: 0 | AF72: 0 | AG72: 0 | AH72: 0 | AI72: 0 | AJ72: 0 | AK72: 0 | AL72: 0 | AM72: 0 | AN72: 0 | AO72: 0 | AP72: 0 | AQ72: 0 | AR72: 0 | AS72: 0 | AT72: 0 | AU72: 0 | AV72: 0 | AW72: 0 | AX72: 0 | AY72: 0 | AZ72: 0 | BA72: 0 | BB72: 0 | BC72: 0 | BD72: 0 | BE72: 0 | BF72: 0 | BG72: 0 | BH72: 0 | BI72: 0 | BJ72: 0 | BK72: 0 | BL72: 0 | BM72: 0 | BN72: 0 | BO72: 0 | BP72: 0 | BQ72: 0 | BR72: 0 | BS72: 0 | BT72: 0 | BU72: 0 | BV72: 0 | BW72: 0 | BX72: 0 | BY72: 0 | BZ72: 0 | CA72: 0 | CB72: 180.09 | CE72: 0 | CG72: 3.14 | CH72: 3.14 | CI72: 3.14 | CJ72: 363.75 | CK72: 138 | CL72: 250.88 | CM72: 33.32 | CN72: 19.82 | CO72: 26.57 | CP72: 9 | CQ72: 0
A73: ="5/4" -> 5/4 | B73: Каша манная молочная с маслом сливочным | C73: 180 | D73: 4.78 | E73: 2.12 | F73: 4.13 | G73: 0.29 | H73: 26.59 | I73: 161.2651428 | J73: 2.98 | K73: 0.08 | L73: 0 | M73: 0 | N73: 7.69 | O73: 17.95 | P73: 0.94 | Q73: 0 | R73: 0 | S73: 0.07 | T73: 1.15 | U73: 211.64 | V73: 126.56 | W73: 83.44 | X73: 13.37 | Y73: 78.91 | Z73: 0.34 | AA73: 17.28 | AB73: 14.4 | AC73: 32.04 | AD73: 0.47 | AE73: 0.05 | AF73: 0.1 | AG73: 0.34 | AH73: 1.45 | AI73: 0.37 | AJ73: 0 | AK73: 134.07 | AL73: 123.21 | AM73: 221.86 | AN73: 70.56 | AO73: 42.54 | AP73: 86.87 | AQ73: 31.23 | AR73: 147.61 | AS73: 93.26 | AT73: 128.12 | AU73: 104.8 | AV73: 58.04 | AW73: 99.62 | AX73: 871.11 | AY73: 0 | AZ73: 283.17 | BA73: 145.31 | BB73: 74.52 | BC73: 59.9 | BD73: 0.09 | BE73: 0.04 | BF73: 0.02 | BG73: 0.05 | BH73: 0.05 | BI73: 0.25 | BJ73: 0 | BK73: 0.7 | BL73: 0 | BM73: 0.22 | BN73: 0 | BO73: 0 | BP73: 0 | BQ73: 0.05 | BR73: 0.07 | BS73: 0.57 | BT73: 0 | BU73: 0 | BV73: 0.03 | BW73: 0 | BX73: 0 | BY73: 0 | BZ73: 0 | CA73: 0 | CB73: 162.62 | CE73: 19.68 | CG73: 25.03 | CH73: 10.84 | CI73: 17.94 | CJ73: 1406.52 | CK73: 633.17 | CL73: 1019.85 | CM73: 32.82 | CN73: 17.15 | CO73: 24.99 | CP73: 4.5 | CQ73: 0.45
B74: Итого за 'Завтрак' | C74: =SUM(C70:C73) -> 410 | D74: =SUM(D70:D73) -> 10.67 | E74: 4.75 | F74: 8.03 | G74: 1.53 | H74: 56.84 | I74: 339.0147128 | J74: 4.71 | K74: 0.08 | L74: 0 | M74: 0 | N74: 17.85 | O74: 36.67 | P74: 2.31 | Q74: 0 | R74: 0 | S74: 0.39 | T74: 2.28 | U74: 493.33 | V74: 189.23 | W74: 192.5 | X74: 32.07 | Y74: 172.91 | Z74: 1.24 | AA74: 38.28 | AB74: 31.4 | AC74: 55.84 | AD74: 1.19 | AE74: 0.11 | AF74: 0.16 | AG74: 1 | AH74: 3.33 | AI74: 0.44 | AJ74: 0 | AK74: 439.87 | AL74: 394.61 | AM74: 688.26 | AN74: 308.16 | AO74: 145.34 | AP74: 275.47 | AQ74: 136.43 | AR74: 449.61 | AS74: 273.66 | AT74: 360.32 | AU74: 381.2 | AV74: 192.44 | AW74: 262.62 | AX74: 2318.11 | AY74: 0 | AZ74: 858.97 | BA74: 406.71 | BB74: 302.32 | BC74: 150.6 | BD74: 0.09 | BE74: 0.05 | BF74: 0.06 | BG74: 0.16 | BH74: 0.18 | BI74: 0.59 | BJ74: 0.04 | BK74: 1.53 | BL74: 0.01 | BM74: 0.44 | BN74: 0.01 | BO74: 0 | BP74: =SUM(BP70:BP73) -> 0 | BQ74: 0.1 | BR74: 0.14 | BS74: 1.56 | BT74: 0 | BU74: 0 | BV74: 0.45 | BW74: 0.01 | BX74: 0 | BY74: 0 | BZ74: 0 | CA74: 0 | CB74: 360.43 | CC74: 0 | CD74: 0 | CE74: 43.51 | CF74: 0 | CG74: 28.67 | CH74: 14.48 | CI74: 21.58 | CJ74: 2935.27 | CK74: 1397.37 | CL74: 2166.33 | CM74: 72.99 | CN74: 43.26 | CO74: 58.13 | CP74: 13.5 | CQ74: 0.45
B75: 10:00
A76: ="1" -> 1 | B76: Кисель из концентрата | C76: 100 | D76: 0.05 | E76: 0 | F76: 0 | G76: 0 | H76: 9.35 | I76: 38.51496 | J76: 0 | K76: 0 | L76: 0 | M76: 0 | N76: 0 | O76: 9.35 | P76: 0 | Q76: 0 | R76: 0 | S76: 0 | T76: 0 | U76: 0 | V76: 0 | W76: 0 | X76: 0 | Y76: 0 | Z76: 0 | AA76: 0 | AB76: 0 | AC76: 0 | AD76: 0 | AE76: 0 | AF76: 0 | AG76: 0 | AH76: 0 | AI76: 0 | AJ76: 0 | AK76: 0 | AL76: 0 | AM76: 0 | AN76: 0 | AO76: 0 | AP76: 0 | AQ76: 0 | AR76: 0 | AS76: 0 | AT76: 0 | AU76: 0 | AV76: 0 | AW76: 0 | AX76: 0 | AY76: 0 | AZ76: 0 | BA76: 0 | BB76: 0 | BC76: 0 | BD76: 0 | BE76: 0 | BF76: 0 | BG76: 0 | BH76: 0 | BI76: 0 | BJ76: 0 | BK76: 0 | BL76: 0 | BM76: 0 | BN76: 0 | BO76: 0 | BP76: 0 | BQ76: 0 | BR76: 0 | BS76: 0 | BT76: 0 | BU76: 0 | BV76: 0 | BW76: 0 | BX76: 0 | BY76: 0 | BZ76: 0 | CA76: 0 | CB76: 95.11 | CE76: 0 | CG76: 0 | CH76: 0 | CI76: 0 | CJ76: 0 | CK76: 0 | CL76: 0 | CM76: 0 | CN76: 0 | CO76: 0 | CP76: 0 | CQ76: 0
B77: Итого за '10:00' | C77: =SUM(C76) -> 100 | D77: =SUM(D76) -> 0.05 | E77: 0 | F77: 0 | G77: 0 | H77: 9.35 | I77: 38.51496 | J77: 0 | K77: 0 | L77: 0 | M77: 0 | N77: 0 | O77: 9.35 | P77: 0 | Q77: 0 | R77: 0 | S77: 0 | T77: 0 | U77: 0 | V77: 0 | W77: 0 | X77: 0 | Y77: 0 | Z77: 0 | AA77: 0 | AB77: 0 | AC77: 0 | AD77: 0 | AE77: 0 | AF77: 0 | AG77: 0 | AH77: 0 | AI77: 0 | AJ77: 0 | AK77: 0 | AL77: 0 | AM77: 0 | AN77: 0 | AO77: 0 | AP77: 0 | AQ77: 0 | AR77: 0 | AS77: 0 | AT77: 0 | AU77: 0 | AV77: 0 | AW77: 0 | AX77: 0 | AY77: 0 | AZ77: 0 | BA77: 0 | BB77: 0 | BC77: 0 | BD77: 0 | BE77: 0 | BF77: 0 | BG77: 0 | BH77: 0 | BI77: 0 | BJ77: 0 | BK77: 0 | BL77: 0 | BM77: 0 | BN77: 0 | BO77: 0 | BP77: =SUM(BP76) -> 0 | BQ77: 0 | BR77: 0 | BS77: 0 | BT77: 0 | BU77: 0 | BV77: 0 | BW77: 0 | BX77: 0 | BY77: 0 | BZ77: 0 | CA77: 0 | CB77: 95.11 | CC77: 0 | CD77: 0 | CE77: 0 | CF77: 0 | CG77: 0 | CH77: 0 | CI77: 0 | CJ77: 0 | CK77: 0 | CL77: 0 | CM77: 0 | CN77: 0 | CO77: 0 | CP77: 0 | CQ77: 0
B78: Обед
A79: ="-" -> - | B79: Хлеб пшеничный | C79: 20 | D79: 1.32 | E79: 0 | F79: 0.13 | G79: 0.13 | H79: 9.38 | I79: 44.7802 | J79: 0 | K79: 0 | L79: 0 | M79: 0 | N79: 0.22 | O79: 9.12 | P79: 0.04 | Q79: 0 | R79: 0 | S79: 0 | T79: 0.36 | U79: 0 | V79: 0 | W79: 0 | X79: 0 | Y79: 0 | Z79: 0 | AA79: 0 | AB79: 0 | AC79: 0 | AD79: 0 | AE79: 0 | AF79: 0 | AG79: 0 | AH79: 0 | AI79: 0 | AJ79: 0 | AK79: 63.86 | AL79: 66.47 | AM79: 101.79 | AN79: 33.76 | AO79: 20.01 | AP79: 40.02 | AQ79: 15.14 | AR79: 72.38 | AS79: 44.89 | AT79: 62.64 | AU79: 51.68 | AV79: 27.14 | AW79: 48.02 | AX79: 401.59 | AY79: 0 | AZ79: 130.85 | BA79: 56.9 | BB79: 37.76 | BC79: 29.93 | BD79: 0 | BE79: 0 | BF79: 0 | BG79: 0 | BH79: 0 | BI79: 0 | BJ79: 0 | BK79: 0.02 | BL79: 0 | BM79: 0 | BN79: 0 | BO79: 0 | BP79: 0 | BQ79: 0 | BR79: 0 | BS79: 0.01 | BT79: 0 | BU79: 0 | BV79: 0.06 | BW79: 0 | BX79: 0 | BY79: 0 | BZ79: 0 | CA79: 0 | CB79: 7.82 | CE79: 0 | CG79: 0 | CH79: 0 | CI79: 0 | CJ79: 380 | CK79: 146.4 | CL79: 263.2 | CM79: 3.04 | CN79: 3.04 | CO79: 3.04 | CP79: 0 | CQ79: 0
A80: ="-" -> - | B80: Хлеб ржаной | C80: 20 | D80: 1.32 | E80: 0 | F80: 0.24 | G80: 0.24 | H80: 8.34 | I80: 38.676 | J80: 0.04 | K80: 0 | L80: 0 | M80: 0 | N80: 0.24 | O80: 6.44 | P80: 1.66 | Q80: 0 | R80: 0 | S80: 0.2 | T80: 0.5 | U80: 122 | V80: 49 | W80: 7 | X80: 9.4 | Y80: 31.6 | Z80: 0.78 | AA80: 0 | AB80: 1 | AC80: 0.2 | AD80: 0.28 | AE80: 0.04 | AF80: 0.02 | AG80: 0.14 | AH80: 0.4 | AI80: 0 | AJ80: 0 | AK80: 64.4 | AL80: 49.6 | AM80: 85.4 | AN80: 44.6 | AO80: 18.6 | AP80: 39.6 | AQ80: 16 | AR80: 74.2 | AS80: 59.4 | AT80: 58.2 | AU80: 92.8 | AV80: 24.8 | AW80: 62 | AX80: 311.8 | AY80: 0 | AZ80: 105.2 | BA80: 58.2 | BB80: 36 | BC80: 26 | BD80: 0 | BE80: 0 | BF80: 0 | BG80: 0 | BH80: 0 | BI80: 0 | BJ80: 0 | BK80: 0.03 | BL80: 0 | BM80: 0 | BN80: 0 | BO80: 0 | BP80: 0 | BQ80: 0 | BR80: 0 | BS80: 0.02 | BT80: 0 | BU80: 0 | BV80: 0.1 | BW80: 0.02 | BX80: 0 | BY80: 0 | BZ80: 0 | CA80: 0 | CB80: 9.4 | CE80: 0.17 | CG80: 1 | CH80: 1 | CI80: 1 | CJ80: 190 | CK80: 73.2 | CL80: 131.6 | CM80: 1.9 | CN80: 1.58 | CO80: 1.74 | CP80: 0 | CQ80: 0
A81: ="6/10" -> 6/10 | B81: Компот из сухофруктов | C81: 180 | D81: 0.92 | E81: 0 | F81: 0.05 | G81: 0.05 | H81: 20.86 | I81: 78.839028 | J81: 0.02 | K81: 0 | L81: 0 | M81: 0 | N81: 17.27 | O81: 0.51 | P81: 3.08 | Q81: 0 | R81: 0 | S81: 0.27 | T81: 0.73 | U81: 3.12 | V81: 306.24 | W81: 28.2 | X81: 17.96 | Y81: 24.44 | Z81: 0.58 | AA81: 0 | AB81: 567 | AC81: 104.94 | AD81: 0.99 | AE81: 0.02 | AF81: 0.03 | AG81: 0.46 | AH81: 0.7 | AI81: 0.29 | AJ81: 0 | AK81: 0.01 | AL81: 0.01 | AM81: 0.01 | AN81: 0.02 | AO81: 0 | AP81: 0.01 | AQ81: 0 | AR81: 0.01 | AS81: 0.01 | AT81: 0.01 | AU81: 0.05 | AV81: 0 | AW81: 0.01 | AX81: 0.02 | AY81: 0 | AZ81: 0.01 | BA81: 0.01 | BB81: 0.01 | BC81: 0 | BD81: 0 | BE81: 0 | BF81: 0 | BG81: 0 | BH81: 0 | BI81: 0 | BJ81: 0 | BK81: 0 | BL81: 0 | BM81: 0 | BN81: 0 | BO81: 0 | BP81: 0 | BQ81: 0 | BR81: 0 | BS81: 0.01 | BT81: 0 | BU81: 0 | BV81: 0.01 | BW81: 0 | BX81: 0 | BY81: 0 | BZ81: 0 | CA81: 0 | CB81: 192.61 | CE81: 94.5 | CG81: 3.95 | CH81: 3.95 | CI81: 3.95 | CJ81: 454.5 | CK81: 172.98 | CL81: 313.74 | CM81: 41.94 | CN81: 24.93 | CO81: 33.44 | CP81: 9 | CQ81: 0
A82: ="11/2" -> 11/2 | B82: Рассольник с крупой на говяжьем бульоне | C82: 180 | D82: 1.55 | E82: 5.86 | F82: 3.41 | G82: 3.88 | H82: 12.36 | I82: 85.0525596 | J82: 0.51 | K82: 2.34 | L82: 0 | M82: 0 | N82: 1.53 | O82: 9.55 | P82: 1.28 | Q82: 0 | R82: 0 | S82: 0.21 | T82: 1.51 | U82: 264.06 | V82: 307.01 | W82: 12 | X82: 16.26 | Y82: 45.18 | Z82: 0.61 | AA82: 0 | AB82: 702.43 | AC82: 146.16 | AD82: 1.72 | AE82: 0.06 | AF82: 0.04 | AG82: 0.69 | AH82: 1.22 | AI82: 4.82 | AJ82: 0 | AK82: 30.86 | AL82: 35.97 | AM82: 47.99 | AN82: 45.82 | AO82: 10.36 | AP82: 31.71 | AQ82: 14.59 | AR82: 40.2 | AS82: 43.52 | AT82: 93.47 | AU82: 64.64 | AV82: 13.14 | AW82: 32.59 | AX82: 235.97 | AY82: 0 | AZ82: 49.75 | BA82: 29.81 | BB82: 23.89 | BC82: 13.16 | BD82: 0 | BE82: 0 | BF82: 0 | BG82: 0 | BH82: 0 | BI82: 0 | BJ82: 0 | BK82: 0.24 | BL82: 0 | BM82: 0.14 | BN82: 0.01 | BO82: 0.02 | BP82: 0 | BQ82: 0 | BR82: 0 | BS82: 0.83 | BT82: 0 | BU82: 0 | BV82: 2.18 | BW82: 0 | BX82: 0 | BY82: 0 | BZ82: 0 | CA82: 0 | CB82: 197.32 | CE82: 117.07 | CG82: 21.17 | CH82: 13.5 | CI82: 17.33 | CJ82: 786.36 | CK82: 417.25 | CL82: 601.8 | CM82: 40.53 | CN82: 19.87 | CO82: 30.2 | CP82: 0 | CQ82: 0.36
A83: ="39/3" -> 39/3 | B83: Каша гречневая рассыпчатая | C83: 150 | D83: 6.58 | E83: 0 | F83: 1.72 | G83: 1.72 | H83: 34.47 | I83: 170.9136495 | J83: 0.32 | K83: 0 | L83: 0 | M83: 0 | N83: 0.73 | O83: 28.03 | P83: 5.72 | Q83: 0 | R83: 0 | S83: 0 | T83: 1.28 | U83: 145.29 | V83: 200.36 | W83: 11.67 | X83: 101.25 | Y83: 147.84 | Z83: 3.47 | AA83: 0 | AB83: 4.79 | AC83: 1.07 | AD83: 0.43 | AE83: 0.19 | AF83: 0.1 | AG83: 1.9 | AH83: 3.83 | AI83: 0 | AJ83: 0 | AK83: 307.89 | AL83: 240.05 | AM83: 388.78 | AN83: 276.58 | AO83: 166.99 | AP83: 208.74 | AQ83: 93.93 | AR83: 308.94 | AS83: 302.67 | AT83: 584.47 | AU83: 575.08 | AV83: 156.56 | AW83: 375.73 | AX83: 1179.38 | AY83: 0 | AZ83: 260.93 | BA83: 316.24 | BB83: 224.4 | BC83: 172.21 | BD83: 0 | BE83: 0 | BF83: 0 | BG83: 0 | BH83: 0 | BI83: 0.01 | BJ83: 0 | BK83: 0.28 | BL83: 0 | BM83: 0.02 | BN83: 0.01 | BO83: 0 | BP83: 0 | BQ83: 0 | BR83: 0.01 | BS83: 0.56 | BT83: 0.01 | BU83: 0 | BV83: 0.55 | BW83: 0.05 | BX83: 0 | BY83: 0 | BZ83: 0 | CA83: 0 | CB83: 87.71 | CE83: 0.8 | CG83: 18.36 | CH83: 10.86 | CI83: 14.61 | CJ83: 2084.07 | CK83: 1025.55 | CL83: 1554.81 | CM83: 30.49 | CN83: 20.28 | CO83: 25.39 | CP83: 0 | CQ83: 0.38
A84: ="2/9" -> 2/9 | B84: Мясо птицы (грудка) отварное в соусе | C84: 70 | D84: 8.15 | E84: 7.93 | F84: 7.83 | G84: 0.02 | H84: 1.7 | I84: 109.76812 | J84: 3.12 | K84: 0.05 | L84: 0 | M84: 0 | N84: 0.16 | O84: 1.43 | P84: 0.12 | Q84: 0 | R84: 0 | S84: 0 | T84: 0.79 | U84: 101.84 | V84: 54.66 | W84: 8.27 | X84: 6.98 | Y84: 58.24 | Z84: 0.66 | AA84: 21.11 | AB84: 11.13 | AC84: 44.23 | AD84: 0.3 | AE84: 0.02 | AF84: 0.05 | AG84: 3 | AH84: 6.11 | AI84: 0.3 | AJ84: 0 | AK84: 390.93 | AL84: 310.15 | AM84: 630.47 | AN84: 692.84 | AO84: 207.96 | AP84: 378.44 | AQ84: 130.07 | AR84: 333.66 | AS84: 508.56 | AT84: 540.56 | AU84: 716.5 | AV84: 215.71 | AW84: 604.35 | AX84: 1182.86 | AY84: 65.64 | AZ84: 400.47 | BA84: 383.88 | BB84: 284.16 | BC84: 101.34 | BD84: 0.04 | BE84: 0.02 | BF84: 0.01 | BG84: 0.02 | BH84: 0.03 | BI84: 0.13 | BJ84: 0 | BK84: 0.35 | BL84: 0 | BM84: 0.11 | BN84: 0 | BO84: 0 | BP84: 0 | BQ84: 0.02 | BR84: 0.04 | BS84: 0.29 | BT84: 0 | BU84: 0 | BV84: 0.02 | BW84: 0 | BX84: 0 | BY84: 0 | BZ84: 0 | CA84: 0 | CB84: 70.76 | CE84: 22.96 | CG84: 18.41 | CH84: 9.17 | CI84: 13.79 | CJ84: 1701.19 | CK84: 1051.77 | CL84: 1376.48 | CM84: 19.31 | CN84: 12.75 | CO84: 16.05 | CP84: 0 | CQ84: 0.35
B85: Итого за 'Обед' | C85: =SUM(C79:C84) -> 620 | D85: =SUM(D79:D84) -> 19.84 | E85: 13.79 | F85: 13.38 | G85: 6.04 | H85: 87.11 | I85: 528.0295571 | J85: 4.01 | K85: 2.39 | L85: 0 | M85: 0 | N85: 20.15 | O85: 55.08 | P85: 11.9 | Q85: 0 | R85: 0 | S85: 0.68 | T85: 5.17 | U85: 636.31 | V85: 917.27 | W85: 67.14 | X85: 151.85 | Y85: 307.3 | Z85: 6.1 | AA85: 21.11 | AB85: 1286.35 | AC85: 296.6 | AD85: 3.72 | AE85: 0.33 | AF85: 0.24 | AG85: 6.19 | AH85: 12.26 | AI85: 5.41 | AJ85: 0 | AK85: 857.95 | AL85: 702.25 | AM85: 1254.44 | AN85: 1093.62 | AO85: 423.92 | AP85: 698.52 | AQ85: 269.73 | AR85: 829.39 | AS85: 959.05 | AT85: 1339.35 | AU85: 1500.75 | AV85: 437.35 | AW85: 1122.7 | AX85: 3311.62 | AY85: 65.64 | AZ85: 947.21 | BA85: 845.04 | BB85: 606.22 | BC85: 342.64 | BD85: 0.04 | BE85: 0.02 | BF85: 0.01 | BG85: 0.02 | BH85: 0.03 | BI85: 0.14 | BJ85: 0 | BK85: 0.92 | BL85: 0 | BM85: 0.27 | BN85: 0.02 | BO85: 0.02 | BP85: =SUM(BP79:BP84) -> 0 | BQ85: 0.02 | BR85: 0.05 | BS85: 1.72 | BT85: 0.01 | BU85: 0 | BV85: 2.92 | BW85: 0.07 | BX85: 0 | BY85: 0 | BZ85: 0 | CA85: 0 | CB85: 565.62 | CC85: 0 | CD85: 0 | CE85: 235.5 | CF85: 0 | CG85: 62.89 | CH85: 38.48 | CI85: 50.68 | CJ85: 5596.12 | CK85: 2887.15 | CL85: 4241.63 | CM85: 137.21 | CN85: 82.45 | CO85: 109.86 | CP85: 9 | CQ85: 1.09
B86: Ужин
A87: ="-" -> - | B87: Хлеб пшеничный | C87: 20 | D87: 1.32 | E87: 0 | F87: 0.13 | G87: 0.13 | H87: 9.38 | I87: 44.7802 | J87: 0 | K87: 0 | L87: 0 | M87: 0 | N87: 0.22 | O87: 9.12 | P87: 0.04 | Q87: 0 | R87: 0 | S87: 0 | T87: 0.36 | U87: 0 | V87: 0 | W87: 0 | X87: 0 | Y87: 0 | Z87: 0 | AA87: 0 | AB87: 0 | AC87: 0 | AD87: 0 | AE87: 0 | AF87: 0 | AG87: 0 | AH87: 0 | AI87: 0 | AJ87: 0 | AK87: 63.86 | AL87: 66.47 | AM87: 101.79 | AN87: 33.76 | AO87: 20.01 | AP87: 40.02 | AQ87: 15.14 | AR87: 72.38 | AS87: 44.89 | AT87: 62.64 | AU87: 51.68 | AV87: 27.14 | AW87: 48.02 | AX87: 401.59 | AY87: 0 | AZ87: 130.85 | BA87: 56.9 | BB87: 37.76 | BC87: 29.93 | BD87: 0 | BE87: 0 | BF87: 0 | BG87: 0 | BH87: 0 | BI87: 0 | BJ87: 0 | BK87: 0.02 | BL87: 0 | BM87: 0 | BN87: 0 | BO87: 0 | BP87: 0 | BQ87: 0 | BR87: 0 | BS87: 0.01 | BT87: 0 | BU87: 0 | BV87: 0.06 | BW87: 0 | BX87: 0 | BY87: 0 | BZ87: 0 | CA87: 0 | CB87: 7.82 | CE87: 0 | CG87: 0 | CH87: 0 | CI87: 0 | CJ87: 665 | CK87: 256.2 | CL87: 460.6 | CM87: 5.32 | CN87: 5.32 | CO87: 5.32 | CP87: 0 | CQ87: 0
A88: ="-" -> - | B88: Хлеб ржаной | C88: 20 | D88: 1.32 | E88: 0 | F88: 0.24 | G88: 0.24 | H88: 8.34 | I88: 38.676 | J88: 0.04 | K88: 0 | L88: 0 | M88: 0 | N88: 0.24 | O88: 6.44 | P88: 1.66 | Q88: 0 | R88: 0 | S88: 0.2 | T88: 0.5 | U88: 122 | V88: 49 | W88: 7 | X88: 9.4 | Y88: 31.6 | Z88: 0.78 | AA88: 0 | AB88: 1 | AC88: 0.2 | AD88: 0.28 | AE88: 0.04 | AF88: 0.02 | AG88: 0.14 | AH88: 0.4 | AI88: 0 | AJ88: 0 | AK88: 64.4 | AL88: 49.6 | AM88: 85.4 | AN88: 44.6 | AO88: 18.6 | AP88: 39.6 | AQ88: 16 | AR88: 74.2 | AS88: 59.4 | AT88: 58.2 | AU88: 92.8 | AV88: 24.8 | AW88: 62 | AX88: 311.8 | AY88: 0 | AZ88: 105.2 | BA88: 58.2 | BB88: 36 | BC88: 26 | BD88: 0 | BE88: 0 | BF88: 0 | BG88: 0 | BH88: 0 | BI88: 0 | BJ88: 0 | BK88: 0.03 | BL88: 0 | BM88: 0 | BN88: 0 | BO88: 0 | BP88: 0 | BQ88: 0 | BR88: 0 | BS88: 0.02 | BT88: 0 | BU88: 0 | BV88: 0.1 | BW88: 0.02 | BX88: 0 | BY88: 0 | BZ88: 0 | CA88: 0 | CB88: 9.4 | CE88: 0.17 | CG88: 1.5 | CH88: 1.5 | CI88: 1.5 | CJ88: 285 | CK88: 109.8 | CL88: 197.4 | CM88: 2.85 | CN88: 2.37 | CO88: 2.61 | CP88: 0 | CQ88: 0
A89: ="27/10" -> 27/10 | B89: Чай (вариант 2) | C89: 180 | D89: 0.18 | E89: 0 | F89: 0.04 | G89: 0.04 | H89: 4.53 | I89: 18.157086 | J89: 0 | K89: 0 | L89: 0 | M89: 0 | N89: 4.44 | O89: 0 | P89: 0.09 | Q89: 0 | R89: 0 | S89: 0 | T89: 0.05 | U89: 0.04 | V89: 0.13 | W89: 0.13 | X89: 0 | Y89: 0 | Z89: 0.01 | AA89: 0 | AB89: 0 | AC89: 0 | AD89: 0 | AE89: 0 | AF89: 0 | AG89: 0 | AH89: 0 | AI89: 0 | AJ89: 0 | AK89: 0 | AL89: 0 | AM89: 0 | AN89: 0 | AO89: 0 | AP89: 0 | AQ89: 0 | AR89: 0 | AS89: 0 | AT89: 0 | AU89: 0 | AV89: 0 | AW89: 0 | AX89: 0 | AY89: 0 | AZ89: 0 | BA89: 0 | BB89: 0 | BC89: 0 | BD89: 0 | BE89: 0 | BF89: 0 | BG89: 0 | BH89: 0 | BI89: 0 | BJ89: 0 | BK89: 0 | BL89: 0 | BM89: 0 | BN89: 0 | BO89: 0 | BP89: 0 | BQ89: 0 | BR89: 0 | BS89: 0 | BT89: 0 | BU89: 0 | BV89: 0 | BW89: 0 | BX89: 0 | BY89: 0 | BZ89: 0 | CA89: 0 | CB89: 180.08 | CE89: 0 | CG89: 3.07 | CH89: 3.07 | CI89: 3.07 | CJ89: 331.88 | CK89: 130.5 | CL89: 231.19 | CM89: 33.01 | CN89: 19.51 | CO89: 26.26 | CP89: 4.5 | CQ89: 0
A90: ="9/4" -> 9/4 | B90: Каша рисовая молочная вязкая с маслом сливочным | C90: 180 | D90: 4.67 | E90: 1.95 | F90: 5.24 | G90: 0.39 | H90: 36.46 | I90: 210.7749888 | J90: 3.39 | K90: 0.1 | L90: 0 | M90: 0 | N90: 7.91 | O90: 27.42 | P90: 1.13 | Q90: 0 | R90: 0 | S90: 0.07 | T90: 1.27 | U90: 211.28 | V90: 138.28 | W90: 84.43 | X90: 27.88 | Y90: 113.31 | Z90: 0.48 | AA90: 31.5 | AB90: 18.23 | AC90: 35.1 | AD90: 0.2 | AE90: 0.05 | AF90: 0.11 | AG90: 0.6 | AH90: 1.86 | AI90: 0.35 | AJ90: 0 | AK90: 164.85 | AL90: 129.87 | AM90: 243.96 | AN90: 102.89 | AO90: 62.84 | AP90: 95.21 | AQ90: 40.7 | AR90: 145.44 | AS90: 152.94 | AT90: 199.07 | AU90: 212.08 | AV90: 67.52 | AW90: 125.24 | AX90: 471.96 | AY90: 0 | AZ90: 130.18 | BA90: 130.45 | BB90: 114.4 | BC90: 53.61 | BD90: 0.12 | BE90: 0.05 | BF90: 0.03 | BG90: 0.07 | BH90: 0.08 | BI90: 0.35 | BJ90: 0 | BK90: 1.04 | BL90: 0 | BM90: 0.32 | BN90: 0 | BO90: 0 | BP90: 0 | BQ90: 0.07 | BR90: 0.1 | BS90: 0.92 | BT90: 0 | BU90: 0 | BV90: 0.11 | BW90: 0 | BX90: 0 | BY90: 0 | BZ90: 0 | CA90: 0 | CB90: 134.25 | CE90: 34.54 | CG90: 26.6 | CH90: 12.74 | CI90: 19.67 | CJ90: 2001.43 | CK90: 924.09 | CL90: 1462.76 | CM90: 28.03 | CN90: 12.22 | CO90: 20.13 | CP90: 4.5 | CQ90: 0.45
B91: Итого за 'Ужин' | C91: =SUM(C87:C90) -> 400 | D91: =SUM(D87:D90) -> 7.49 | E91: 1.95 | F91: 5.65 | G91: 0.8 | H91: 58.71 | I91: 312.3882748 | J91: 3.43 | K91: 0.1 | L91: 0 | M91: 0 | N91: 12.81 | O91: 42.98 | P91: 2.92 | Q91: 0 | R91: 0 | S91: 0.27 | T91: 2.18 | U91: 333.32 | V91: 187.41 | W91: 91.56 | X91: 37.28 | Y91: 144.91 | Z91: 1.27 | AA91: 31.5 | AB91: 19.23 | AC91: 35.3 | AD91: 0.48 | AE91: 0.09 | AF91: 0.13 | AG91: 0.74 | AH91: 2.26 | AI91: 0.35 | AJ91: 0 | AK91: 293.11 | AL91: 245.94 | AM91: 431.15 | AN91: 181.25 | AO91: 101.45 | AP91: 174.83 | AQ91: 71.84 | AR91: 292.02 | AS91: 257.23 | AT91: 319.91 | AU91: 356.56 | AV91: 119.46 | AW91: 235.26 | AX91: 1185.35 | AY91: 0 | AZ91: 366.23 | BA91: 245.55 | BB91: 188.16 | BC91: 109.54 | BD91: 0.12 | BE91: 0.05 | BF91: 0.03 | BG91: 0.07 | BH91: 0.08 | BI91: 0.35 | BJ91: 0 | BK91: 1.09 | BL91: 0 | BM91: 0.32 | BN91: 0 | BO91: 0 | BP91: =SUM(BP87:BP90) -> 0 | BQ91: 0.07 | BR91: 0.1 | BS91: 0.95 | BT91: 0 | BU91: 0 | BV91: 0.27 | BW91: 0.02 | BX91: 0 | BY91: 0 | BZ91: 0 | CA91: 0 | CB91: 331.55 | CC91: 0 | CD91: 0 | CE91: 34.71 | CF91: 0 | CG91: 31.17 | CH91: 17.31 | CI91: 24.24 | CJ91: 3283.31 | CK91: 1420.59 | CL91: 2351.95 | CM91: 69.21 | CN91: 39.42 | CO91: 54.32 | CP91: 9 | CQ91: 0.45
B92: Итого за день | C92: =C74+C77+C85+C91 -> 1530 | D92: =D74+D77+D85+D91 -> 38.05 | E92: 20.49 | F92: 27.06 | G92: 8.37 | H92: 212.01 | I92: 1217.947505 | J92: 12.15 | K92: 2.57 | L92: 0 | M92: 0 | N92: 50.81 | O92: 144.08 | P92: 17.13 | Q92: 0 | R92: 0 | S92: 1.34 | T92: 9.63 | U92: 1462.96 | V92: 1293.91 | W92: 351.2 | X92: 221.2 | Y92: 625.12 | Z92: 8.61 | AA92: 90.89 | AB92: 1336.98 | AC92: 387.74 | AD92: 5.39 | AE92: 0.53 | AF92: 0.53 | AG92: 7.93 | AH92: 17.85 | AI92: 6.2 | AJ92: 0 | AK92: 1590.93 | AL92: 1342.8 | AM92: 2373.85 | AN92: 1583.03 | AO92: 670.71 | AP92: 1148.82 | AQ92: 478 | AR92: 1571.02 | AS92: 1489.94 | AT92: 2019.58 | AU92: 2238.51 | AV92: 749.25 | AW92: 1620.58 | AX92: 6815.08 | AY92: 65.64 | AZ92: 2172.41 | BA92: 1497.3 | BB92: 1096.7 | BC92: 602.78 | BD92: 0.25 | BE92: 0.12 | BF92: 0.1 | BG92: 0.25 | BH92: 0.29 | BI92: 1.08 | BJ92: 0.04 | BK92: 3.54 | BL92: 0.01 | BM92: 1.03 | BN92: 0.03 | BO92: 0.02 | BP92: =BP74+BP77+BP85+BP91 -> 0 | BQ92: 0.19 | BR92: 0.29 | BS92: 4.23 | BT92: 0.01 | BU92: 0 | BV92: 3.64 | BW92: 0.1 | BX92: 0 | BY92: 0 | BZ92: 0 | CA92: 0 | CB92: 1352.71 | CC92: 0 | CD92: 0 | CE92: 313.72 | CF92: 0 | CG92: 122.73 | CH92: 70.27 | CI92: 96.5 | CJ92: 11814.7 | CK92: 5705.11 | CL92: 8759.91 | CM92: 279.41 | CN92: 165.13 | CO92: 222.31 | CP92: 31.5 | CQ92: 1.99
B94: 4 день
B95: Завтрак
A96: ="-" -> - | B96: Батон | C96: 40 | D96: 3.08 | E96: 0 | F96: 1.2 | G96: 1.2 | H96: 21.32 | I96: 107.808 | J96: 0.2 | K96: 0 | L96: 0 | M96: 0 | N96: 1.32 | O96: 18.72 | P96: 1.28 | Q96: 0 | R96: 0 | S96: 0.12 | T96: 0.64 | U96: 171.6 | V96: 52.4 | W96: 8.8 | X96: 13.2 | Y96: 34 | Z96: 0.8 | AA96: 0 | AB96: 0 | AC96: 0 | AD96: 0.68 | AE96: 0.06 | AF96: 0.02 | AG96: 0.64 | AH96: 1.2 | AI96: 0 | AJ96: 0 | AK96: 148.8 | AL96: 154.4 | AM96: 236.4 | AN96: 79.6 | AO96: 46.8 | AP96: 93.6 | AQ96: 35.2 | AR96: 168 | AS96: 104.4 | AT96: 145.2 | AU96: 120.4 | AV96: 64.4 | AW96: 112 | AX96: 930 | AY96: 0 | AZ96: 302.8 | BA96: 132.4 | BB96: 88.8 | BC96: 69.2 | BD96: 0 | BE96: 0 | BF96: 0 | BG96: 0 | BH96: 0 | BI96: 0.01 | BJ96: 0 | BK96: 0.13 | BL96: 0 | BM96: 0.06 | BN96: 0 | BO96: 0 | BP96: 0 | BQ96: 0 | BR96: 0 | BS96: 0.47 | BT96: 0 | BU96: 0 | BV96: 0.35 | BW96: 0.01 | BX96: 0 | BY96: 0 | BZ96: 0 | CA96: 0 | CB96: 13.64 | CE96: 0 | CG96: 0 | CH96: 0 | CI96: 0 | CJ96: 665 | CK96: 256.2 | CL96: 460.6 | CM96: 5.32 | CN96: 5.32 | CO96: 5.32 | CP96: 0 | CQ96: 0
A97: ="" ->  | B97: Масло сливочное | C97: 5 | D97: 0.04 | E97: 0.04 | F97: 3.63 | G97: 0 | H97: 0.07 | I97: 33.032 | J97: 2.36 | K97: 0.11 | L97: 0 | M97: 0 | N97: 0.07 | O97: 0 | P97: 0 | Q97: 0 | R97: 0 | S97: 0 | T97: 0.07 | U97: 0.75 | V97: 1.5 | W97: 1.2 | X97: 0 | Y97: 1.5 | Z97: 0.01 | AA97: 20 | AB97: 15 | AC97: 22.5 | AD97: 0.05 | AE97: 0 | AF97: 0.01 | AG97: 0.01 | AH97: 0.01 | AI97: 0 | AJ97: 0 | AK97: 2.1 | AL97: 2.05 | AM97: 3.8 | AN97: 2.25 | AO97: 0.85 | AP97: 2.35 | AQ97: 2.15 | AR97: 2.1 | AS97: 1.8 | AT97: 1.3 | AU97: 2.85 | AV97: 1.75 | AW97: 1.2 | AX97: 7.1 | AY97: 0 | AZ97: 2.4 | BA97: 2.7 | BB97: 2.1 | BC97: 0.5 | BD97: 0.13 | BE97: 0.06 | BF97: 0.03 | BG97: 0.08 | BH97: 0.09 | BI97: 0.4 | BJ97: 0 | BK97: 1.1 | BL97: 0 | BM97: 0.34 | BN97: 0 | BO97: 0 | BP97: 0 | BQ97: 0.08 | BR97: 0.12 | BS97: 0.9 | BT97: 0 | BU97: 0 | BV97: 0.05 | BW97: 0 | BX97: 0 | BY97: 0 | BZ97: 0 | CA97: 0 | CB97: 1.25 | CE97: 22.5 | CG97: 0.2 | CH97: 0.05 | CI97: 0.13 | CJ97: 10 | CK97: 4.1 | CL97: 7.05 | CM97: 0.86 | CN97: 0.44 | CO97: 0.65 | CP97: 0 | CQ97: 0
A98: ="-" -> - | B98: Печенье | C98: 20 | D98: 1.5 | E98: 0 | F98: 1.96 | G98: 0 | H98: 15.34 | I98: 84.452 | J98: 0.42 | K98: 0 | L98: 0 | M98: 0 | N98: 4.72 | O98: 10.16 | P98: 0.46 | Q98: 0 | R98: 0 | S98: 0.1 | T98: 0.2 | U98: 66 | V98: 22 | W98: 5.8 | X98: 4 | Y98: 18 | Z98: 0.42 | AA98: 2 | AB98: 1.6 | AC98: 2.2 | AD98: 0.7 | AE98: 0.02 | AF98: 0.01 | AG98: 0.14 | AH98: 0.38 | AI98: 0 | AJ98: 0 | AK98: 249.4 | AL98: 185.2 | AM98: 318.8 | AN98: 286.6 | AO98: 87.6 | AP98: 162.4 | AQ98: 47.6 | AR98: 185.6 | AS98: 0 | AT98: 0 | AU98: 0 | AV98: 87.8 | AW98: 0 | AX98: 0 | AY98: 0 | AZ98: 0 | BA98: 0 | BB98: 0 | BC98: 0 | BD98: 0 | BE98: 0 | BF98: 0 | BG98: 0 | BH98: 0 | BI98: 0 | BJ98: 0 | BK98: 0 | BL98: 0 | BM98: 0 | BN98: 0 | BO98: 0 | BP98: 0 | BQ98: 0 | BR98: 0 | BS98: 0 | BT98: 0 | BU98: 0 | BV98: 0 | BW98: 0 | BX98: 0 | BY98: 0 | BZ98: 0 | CA98: 0 | CB98: 0.9 | CE98: 2.27 | CG98: 1.26 | CH98: 1.26 | CI98: 1.26 | CJ98: 648 | CK98: 414 | CL98: 531 | CM98: 6.16 | CN98: 6.16 | CO98: 6.16 | CP98: 0 | CQ98: 0
A99: ="27/10" -> 27/10 | B99: Чай (вариант 2) | C99: 180 | D99: 0.18 | E99: 0 | F99: 0.04 | G99: 0.04 | H99: 4.53 | I99: 18.157086 | J99: 0 | K99: 0 | L99: 0 | M99: 0 | N99: 4.44 | O99: 0 | P99: 0.09 | Q99: 0 | R99: 0 | S99: 0 | T99: 0.05 | U99: 0.04 | V99: 0.13 | W99: 0.13 | X99: 0 | Y99: 0 | Z99: 0.01 | AA99: 0 | AB99: 0 | AC99: 0 | AD99: 0 | AE99: 0 | AF99: 0 | AG99: 0 | AH99: 0 | AI99: 0 | AJ99: 0 | AK99: 0 | AL99: 0 | AM99: 0 | AN99: 0 | AO99: 0 | AP99: 0 | AQ99: 0 | AR99: 0 | AS99: 0 | AT99: 0 | AU99: 0 | AV99: 0 | AW99: 0 | AX99: 0 | AY99: 0 | AZ99: 0 | BA99: 0 | BB99: 0 | BC99: 0 | BD99: 0 | BE99: 0 | BF99: 0 | BG99: 0 | BH99: 0 | BI99: 0 | BJ99: 0 | BK99: 0 | BL99: 0 | BM99: 0 | BN99: 0 | BO99: 0 | BP99: 0 | BQ99: 0 | BR99: 0 | BS99: 0 | BT99: 0 | BU99: 0 | BV99: 0 | BW99: 0 | BX99: 0 | BY99: 0 | BZ99: 0 | CA99: 0 | CB99: 180.08 | CE99: 0 | CG99: 3.07 | CH99: 3.07 | CI99: 3.07 | CJ99: 331.88 | CK99: 130.5 | CL99: 231.19 | CM99: 33.01 | CN99: 19.51 | CO99: 26.26 | CP99: 4.5 | CQ99: 0
A100: ="16/4" -> 16/4 | B100: Каша пшеничная молочная с маслом сливочным | C100: 180 | D100: 5.88 | E100: 2.12 | F100: 4.93 | G100: 1.19 | H100: 29.36 | I100: 183.8574648 | J100: 3.03 | K100: 0.08 | L100: 0 | M100: 0 | N100: 7.01 | O100: 21.16 | P100: 1.18 | Q100: 0 | R100: 0 | S100: 0.07 | T100: 1.4 | U100: 214.37 | V100: 160.43 | W100: 86.9 | X100: 34.85 | Y100: 130.58 | Z100: 0.94 | AA100: 17.28 | AB100: 20.16 | AC100: 33.12 | AD100: 0.14 | AE100: 0.13 | AF100: 0.1 | AG100: 0.52 | AH100: 2.24 | AI100: 0.37 | AJ100: 0 | AK100: 160.47 | AL100: 146.9 | AM100: 521.68 | AN100: 98.98 | AO100: 100.74 | AP100: 136.95 | AQ100: 62.37 | AR100: 197.69 | AS100: 365 | AT100: 144.7 | AU100: 221.89 | AV100: 89.17 | AW100: 102.33 | AX100: 756.05 | AY100: 0 | AZ100: 275.73 | BA100: 238.71 | BB100: 140.17 | BC100: 61.25 | BD100: 0.09 | BE100: 0.04 | BF100: 0.02 | BG100: 0.05 | BH100: 0.05 | BI100: 0.25 | BJ100: 0 | BK100: 0.78 | BL100: 0 | BM100: 0.23 | BN100: 0.01 | BO100: 0 | BP100: 0 | BQ100: 0.05 | BR100: 0.08 | BS100: 0.74 | BT100: 0 | BU100: 0 | BV100: 0.69 | BW100: 0.01 | BX100: 0 | BY100: 0 | BZ100: 0 | CA100: 0 | CB100: 149.22 | CE100: 20.64 | CG100: 27.9 | CH100: 13.75 | CI100: 20.82 | CJ100: 1911.3 | CK100: 875.79 | CL100: 1393.55 | CM100: 32.9 | CN100: 16.97 | CO100: 24.94 | CP100: 3.6 | CQ100: 0.45
B101: Итого за 'Завтрак' | C101: =SUM(C96:C100) -> 425 | D101: =SUM(D96:D100) -> 10.68 | E101: 2.16 | F101: 11.76 | G101: 2.43 | H101: 70.62 | I101: 427.3065508 | J101: 6.01 | K101: 0.19 | L101: 0 | M101: 0 | N101: 17.56 | O101: 50.04 | P101: 3.01 | Q101: 0 | R101: 0 | S101: 0.29 | T101: 2.36 | U101: 452.76 | V101: 236.46 | W101: 102.83 | X101: 52.05 | Y101: 184.08 | Z101: 2.18 | AA101: 39.28 | AB101: 36.76 | AC101: 57.82 | AD101: 1.57 | AE101: 0.21 | AF101: 0.14 | AG101: 1.31 | AH101: 3.83 | AI101: 0.37 | AJ101: 0 | AK101: 560.77 | AL101: 488.55 | AM101: 1080.68 | AN101: 467.43 | AO101: 235.99 | AP101: 395.3 | AQ101: 147.32 | AR101: 553.39 | AS101: 471.2 | AT101: 291.2 | AU101: 345.14 | AV101: 243.12 | AW101: 215.53 | AX101: 1693.15 | AY101: 0 | AZ101: 580.93 | BA101: 373.81 | BB101: 231.07 | BC101: 130.95 | BD101: 0.22 | BE101: 0.1 | BF101: 0.05 | BG101: 0.13 | BH101: 0.14 | BI101: 0.66 | BJ101: 0 | BK101: 2.01 | BL101: 0 | BM101: 0.63 | BN101: 0.01 | BO101: 0 | BP101: =SUM(BP96:BP100) -> 0 | BQ101: 0.13 | BR101: 0.2 | BS101: 2.11 | BT101: 0 | BU101: 0 | BV101: 1.09 | BW101: 0.02 | BX101: 0 | BY101: 0 | BZ101: 0 | CA101: 0 | CB101: 345.09 | CC101: 0 | CD101: 0 | CE101: 45.41 | CF101: 0 | CG101: 32.43 | CH101: 18.13 | CI101: 25.28 | CJ101: 3566.18 | CK101: 1680.59 | CL101: 2623.39 | CM101: 78.25 | CN101: 48.4 | CO101: 63.33 | CP101: 8.1 | CQ101: 0.45
B102: 10:00
A103: ="-" -> - | B103: Сок | C103: 100 | D103: 0.5 | E103: 0 | F103: 0.1 | G103: 0 | H103: 10.3 | I103: 43.24 | J103: 0 | K103: 0 | L103: 0 | M103: 0 | N103: 9.9 | O103: 0.2 | P103: 0.2 | Q103: 0 | R103: 0 | S103: 0.5 | T103: 0.3 | U103: 6 | V103: 120 | W103: 7 | X103: 4 | Y103: 7 | Z103: 1.4 | AA103: 0 | AB103: 0 | AC103: 0 | AD103: 0.1 | AE103: 0.01 | AF103: 0.01 | AG103: 0.1 | AH103: 0.2 | AI103: 2 | AJ103: 0.2 | AK103: 8 | AL103: 10 | AM103: 14 | AN103: 14 | AO103: 2 | AP103: 8 | AQ103: 2 | AR103: 7 | AS103: 13 | AT103: 8 | AU103: 58 | AV103: 5 | AW103: 11 | AX103: 32 | AY103: 0 | AZ103: 10 | BA103: 12 | BB103: 5 | BC103: 4 | BD103: 0 | BE103: 0 | BF103: 0 | BG103: 0 | BH103: 0 | BI103: 0 | BJ103: 0 | BK103: 0 | BL103: 0 | BM103: 0 | BN103: 0 | BO103: 0 | BP103: 0 | BQ103: 0 | BR103: 0 | BS103: 0 | BT103: 0 | BU103: 0 | BV103: 0 | BW103: 0 | BX103: 0 | BY103: 0 | BZ103: 0 | CA103: 0 | CB103: 88.1 | CE103: 0 | CG103: 2 | CH103: 2 | CI103: 2 | CJ103: 200 | CK103: 91 | CL103: 145.5 | CM103: 0.3 | CN103: 0.3 | CO103: 0.3 | CP103: 0 | CQ103: 0
B104: Итого за '10:00' | C104: =SUM(C103) -> 100 | D104: =SUM(D103) -> 0.5 | E104: 0 | F104: 0.1 | G104: 0 | H104: 10.3 | I104: 43.24 | J104: 0 | K104: 0 | L104: 0 | M104: 0 | N104: 9.9 | O104: 0.2 | P104: 0.2 | Q104: 0 | R104: 0 | S104: 0.5 | T104: 0.3 | U104: 6 | V104: 120 | W104: 7 | X104: 4 | Y104: 7 | Z104: 1.4 | AA104: 0 | AB104: 0 | AC104: 0 | AD104: 0.1 | AE104: 0.01 | AF104: 0.01 | AG104: 0.1 | AH104: 0.2 | AI104: 2 | AJ104: 0.2 | AK104: 8 | AL104: 10 | AM104: 14 | AN104: 14 | AO104: 2 | AP104: 8 | AQ104: 2 | AR104: 7 | AS104: 13 | AT104: 8 | AU104: 58 | AV104: 5 | AW104: 11 | AX104: 32 | AY104: 0 | AZ104: 10 | BA104: 12 | BB104: 5 | BC104: 4 | BD104: 0 | BE104: 0 | BF104: 0 | BG104: 0 | BH104: 0 | BI104: 0 | BJ104: 0 | BK104: 0 | BL104: 0 | BM104: 0 | BN104: 0 | BO104: 0 | BP104: =SUM(BP103) -> 0 | BQ104: 0 | BR104: 0 | BS104: 0 | BT104: 0 | BU104: 0 | BV104: 0 | BW104: 0 | BX104: 0 | BY104: 0 | BZ104: 0 | CA104: 0 | CB104: 88.1 | CC104: 0 | CD104: 0 | CE104: 0 | CF104: 0 | CG104: 2 | CH104: 2 | CI104: 2 | CJ104: 200 | CK104: 91 | CL104: 145.5 | CM104: 0.3 | CN104: 0.3 | CO104: 0.3 | CP104: 0 | CQ104: 0
B105: Обед
A106: ="-" -> - | B106: Хлеб пшеничный | C106: 20 | D106: 1.32 | E106: 0 | F106: 0.13 | G106: 0.13 | H106: 9.38 | I106: 44.7802 | J106: 0 | K106: 0 | L106: 0 | M106: 0 | N106: 0.22 | O106: 9.12 | P106: 0.04 | Q106: 0 | R106: 0 | S106: 0 | T106: 0.36 | U106: 0 | V106: 0 | W106: 0 | X106: 0 | Y106: 0 | Z106: 0 | AA106: 0 | AB106: 0 | AC106: 0 | AD106: 0 | AE106: 0 | AF106: 0 | AG106: 0 | AH106: 0 | AI106: 0 | AJ106: 0 | AK106: 63.86 | AL106: 66.47 | AM106: 101.79 | AN106: 33.76 | AO106: 20.01 | AP106: 40.02 | AQ106: 15.14 | AR106: 72.38 | AS106: 44.89 | AT106: 62.64 | AU106: 51.68 | AV106: 27.14 | AW106: 48.02 | AX106: 401.59 | AY106: 0 | AZ106: 130.85 | BA106: 56.9 | BB106: 37.76 | BC106: 29.93 | BD106: 0 | BE106: 0 | BF106: 0 | BG106: 0 | BH106: 0 | BI106: 0 | BJ106: 0 | BK106: 0.02 | BL106: 0 | BM106: 0 | BN106: 0 | BO106: 0 | BP106: 0 | BQ106: 0 | BR106: 0 | BS106: 0.01 | BT106: 0 | BU106: 0 | BV106: 0.06 | BW106: 0 | BX106: 0 | BY106: 0 | BZ106: 0 | CA106: 0 | CB106: 7.82 | CE106: 0 | CG106: 0 | CH106: 0 | CI106: 0 | CJ106: 380 | CK106: 146.4 | CL106: 263.2 | CM106: 3.04 | CN106: 3.04 | CO106: 3.04 | CP106: 0 | CQ106: 0
A107: ="-" -> - | B107: Хлеб ржаной | C107: 20 | D107: 1.32 | E107: 0 | F107: 0.24 | G107: 0.24 | H107: 8.34 | I107: 38.676 | J107: 0.04 | K107: 0 | L107: 0 | M107: 0 | N107: 0.24 | O107: 6.44 | P107: 1.66 | Q107: 0 | R107: 0 | S107: 0.2 | T107: 0.5 | U107: 122 | V107: 49 | W107: 7 | X107: 9.4 | Y107: 31.6 | Z107: 0.78 | AA107: 0 | AB107: 1 | AC107: 0.2 | AD107: 0.28 | AE107: 0.04 | AF107: 0.02 | AG107: 0.14 | AH107: 0.4 | AI107: 0 | AJ107: 0 | AK107: 64.4 | AL107: 49.6 | AM107: 85.4 | AN107: 44.6 | AO107: 18.6 | AP107: 39.6 | AQ107: 16 | AR107: 74.2 | AS107: 59.4 | AT107: 58.2 | AU107: 92.8 | AV107: 24.8 | AW107: 62 | AX107: 311.8 | AY107: 0 | AZ107: 105.2 | BA107: 58.2 | BB107: 36 | BC107: 26 | BD107: 0 | BE107: 0 | BF107: 0 | BG107: 0 | BH107: 0 | BI107: 0 | BJ107: 0 | BK107: 0.03 | BL107: 0 | BM107: 0 | BN107: 0 | BO107: 0 | BP107: 0 | BQ107: 0 | BR107: 0 | BS107: 0.02 | BT107: 0 | BU107: 0 | BV107: 0.1 | BW107: 0.02 | BX107: 0 | BY107: 0 | BZ107: 0 | CA107: 0 | CB107: 9.4 | CE107: 0.17 | CG107: 1 | CH107: 1 | CI107: 1 | CJ107: 190 | CK107: 73.2 | CL107: 131.6 | CM107: 1.9 | CN107: 1.58 | CO107: 1.74 | CP107: 0 | CQ107: 0
A108: ="6/10" -> 6/10 | B108: Компот из сухофруктов | C108: 180 | D108: 0.92 | E108: 0 | F108: 0.05 | G108: 0.05 | H108: 20.86 | I108: 78.839028 | J108: 0.02 | K108: 0 | L108: 0 | M108: 0 | N108: 17.27 | O108: 0.51 | P108: 3.08 | Q108: 0 | R108: 0 | S108: 0.27 | T108: 0.73 | U108: 3.12 | V108: 306.24 | W108: 28.2 | X108: 17.96 | Y108: 24.44 | Z108: 0.58 | AA108: 0 | AB108: 567 | AC108: 104.94 | AD108: 0.99 | AE108: 0.02 | AF108: 0.03 | AG108: 0.46 | AH108: 0.7 | AI108: 0.29 | AJ108: 0 | AK108: 0.01 | AL108: 0.01 | AM108: 0.01 | AN108: 0.02 | AO108: 0 | AP108: 0.01 | AQ108: 0 | AR108: 0.01 | AS108: 0.01 | AT108: 0.01 | AU108: 0.05 | AV108: 0 | AW108: 0.01 | AX108: 0.02 | AY108: 0 | AZ108: 0.01 | BA108: 0.01 | BB108: 0.01 | BC108: 0 | BD108: 0 | BE108: 0 | BF108: 0 | BG108: 0 | BH108: 0 | BI108: 0 | BJ108: 0 | BK108: 0 | BL108: 0 | BM108: 0 | BN108: 0 | BO108: 0 | BP108: 0 | BQ108: 0 | BR108: 0 | BS108: 0.01 | BT108: 0 | BU108: 0 | BV108: 0.01 | BW108: 0 | BX108: 0 | BY108: 0 | BZ108: 0 | CA108: 0 | CB108: 192.61 | CE108: 94.5 | CG108: 3.95 | CH108: 3.95 | CI108: 3.95 | CJ108: 454.5 | CK108: 172.98 | CL108: 313.74 | CM108: 41.94 | CN108: 24.93 | CO108: 33.44 | CP108: 9 | CQ108: 0
A109: ="4/2" -> 4/2 | B109: Борщ с картофелем на говяжьем бульоне | C109: 180 | D109: 1.2 | E109: 5.86 | F109: 2.01 | G109: 2.28 | H109: 9.53 | I109: 57.6051912 | J109: 0.28 | K109: 1.4 | L109: 0 | M109: 0 | N109: 6.01 | O109: 2.04 | P109: 1.48 | Q109: 0 | R109: 0 | S109: 0.19 | T109: 1.38 | U109: 260.46 | V109: 223.47 | W109: 22.86 | X109: 14.72 | Y109: 30.73 | Z109: 0.7 | AA109: 0 | AB109: 729.22 | AC109: 151.92 | AD109: 1.07 | AE109: 0.03 | AF109: 0.03 | AG109: 0.38 | AH109: 0.68 | AI109: 5.72 | AJ109: 0 | AK109: 28.5 | AL109: 30.8 | AM109: 36.55 | AN109: 43.86 | AO109: 10.36 | AP109: 28.02 | AQ109: 8.12 | AR109: 27.41 | AS109: 31.54 | AT109: 55.71 | AU109: 130.69 | AV109: 10.44 | AW109: 24.17 | AX109: 157.1 | AY109: 0 | AZ109: 26.8 | BA109: 30.93 | BB109: 25.59 | BC109: 9.34 | BD109: 0 | BE109: 0 | BF109: 0 | BG109: 0 | BH109: 0 | BI109: 0 | BJ109: 0 | BK109: 0.13 | BL109: 0 | BM109: 0.08 | BN109: 0.01 | BO109: 0.01 | BP109: 0 | BQ109: 0 | BR109: 0 | BS109: 0.47 | BT109: 0 | BU109: 0 | BV109: 1.29 | BW109: 0 | BX109: 0 | BY109: 0 | BZ109: 0 | CA109: 0 | CB109: 207.15 | CE109: 121.54 | CG109: 29.52 | CH109: 16.13 | CI109: 22.82 | CJ109: 543.53 | CK109: 169.13 | CL109: 356.33 | CM109: 6.8 | CN109: 3.82 | CO109: 5.31 | CP109: 1.8 | CQ109: 0.63
A110: ="46/3" -> 46/3 | B110: Макаронные изделия отварные | C110: 150 | D110: 5.3 | E110: 0.03 | F110: 2.98 | G110: 0.66 | H110: 34.11 | I110: 183.9401745 | J110: 1.87 | K110: 0.08 | L110: 0 | M110: 0 | N110: 0.97 | O110: 31.42 | P110: 1.72 | Q110: 0 | R110: 0 | S110: 0 | T110: 0.68 | U110: 147.26 | V110: 56.22 | W110: 10.53 | X110: 7.17 | Y110: 39.83 | Z110: 0.73 | AA110: 9 | AB110: 9 | AC110: 16.88 | AD110: 0.8 | AE110: 0.06 | AF110: 0.02 | AG110: 0.49 | AH110: 1.49 | AI110: 0 | AJ110: 0 | AK110: 229.67 | AL110: 209.98 | AM110: 393.39 | AN110: 122.87 | AO110: 74.91 | AP110: 152.19 | AQ110: 49.94 | AR110: 244.06 | AS110: 161.39 | AT110: 194.59 | AU110: 166.92 | AV110: 98.07 | AW110: 170.55 | AX110: 1497.86 | AY110: 0 | AZ110: 471.98 | BA110: 244.48 | BB110: 122.77 | BC110: 97.19 | BD110: 0.09 | BE110: 0.04 | BF110: 0.02 | BG110: 0.05 | BH110: 0.06 | BI110: 0.26 | BJ110: 0 | BK110: 0.81 | BL110: 0 | BM110: 0.23 | BN110: 0 | BO110: 0 | BP110: 0 | BQ110: 0.05 | BR110: 0.08 | BS110: 0.6 | BT110: 0 | BU110: 0 | BV110: 0.24 | BW110: 0.01 | BX110: 0 | BY110: 0 | BZ110: 0 | CA110: 0 | CB110: 7.57 | CE110: 10.5 | CG110: 12.73 | CH110: 6.64 | CI110: 9.69 | CJ110: 295.86 | CK110: 292.32 | CL110: 294.09 | CM110: 7.49 | CN110: 3.81 | CO110: 5.65 | CP110: 0 | CQ110: 0.38
A111: ="4/256" -> 4/256 | B111: Мясо тушеное | C111: 70 | D111: 10.53 | E111: 10.81 | F111: 10.05 | G111: 2.12 | H111: 2.08 | I111: 140.6646192 | J111: 4.39 | K111: 1.37 | L111: 0 | M111: 0 | N111: 0.96 | O111: 0.9 | P111: 0.22 | Q111: 0 | R111: 0 | S111: 0.1 | T111: 0.89 | U111: 120.32 | V111: 204.39 | W111: 7.55 | X111: 14.14 | Y111: 101.07 | Z111: 1.49 | AA111: 0 | AB111: 319.2 | AC111: 66.5 | AD111: 1.23 | AE111: 0.03 | AF111: 0.08 | AG111: 2.28 | AH111: 4.94 | AI111: 0.8 | AJ111: 0 | AK111: 572.59 | AL111: 433.66 | AM111: 818.96 | AN111: 1418.25 | AO111: 245.28 | AP111: 443.49 | AQ111: 116.22 | AR111: 441.58 | AS111: 598.72 | AT111: 575.97 | AU111: 975.24 | AV111: 390.76 | AW111: 517.1 | AX111: 1725.01 | AY111: 158.38 | AZ111: 387.66 | BA111: 433.44 | BB111: 363.12 | BC111: 144.4 | BD111: 0 | BE111: 0 | BF111: 0 | BG111: 0 | BH111: 0 | BI111: 0 | BJ111: 0 | BK111: 0.12 | BL111: 0 | BM111: 0.08 | BN111: 0.01 | BO111: 0.01 | BP111: 0 | BQ111: 0 | BR111: 0 | BS111: 0.44 | BT111: 0 | BU111: 0 | BV111: 1.25 | BW111: 0 | BX111: 0 | BY111: 0 | BZ111: 0 | CA111: 0 | CB111: 45 | CE111: 53.2 | CG111: 9.16 | CH111: 6.16 | CI111: 7.66 | CJ111: 1399.1 | CK111: 874.55 | CL111: 1136.82 | CM111: 9.56 | CN111: 5.58 | CO111: 7.58 | CP111: 0 | CQ111: 0.21
B112: Итого за 'Обед' | C112: =SUM(C106:C111) -> 620 | D112: =SUM(D106:D111) -> 20.59 | E112: 16.7 | F112: 15.46 | G112: 5.48 | H112: 84.3 | I112: 544.5052129 | J112: 6.6 | K112: 2.85 | L112: 0 | M112: 0 | N112: 25.67 | O112: 50.43 | P112: 8.2 | Q112: 0 | R112: 0 | S112: 0.76 | T112: 4.54 | U112: 653.16 | V112: 839.32 | W112: 76.14 | X112: 63.39 | Y112: 227.67 | Z112: 4.28 | AA112: 9 | AB112: 1625.42 | AC112: 340.44 | AD112: 4.37 | AE112: 0.18 | AF112: 0.18 | AG112: 3.75 | AH112: 8.21 | AI112: 6.81 | AJ112: 0 | AK112: 959.03 | AL112: 790.52 | AM112: 1436.1 | AN112: 1663.36 | AO112: 369.16 | AP112: 703.33 | AQ112: 205.42 | AR112: 859.64 | AS112: 895.95 | AT112: 947.12 | AU112: 1417.38 | AV112: 551.21 | AW112: 821.85 | AX112: 4093.38 | AY112: 158.38 | AZ112: 1122.5 | BA112: 823.96 | BB112: 585.25 | BC112: 306.86 | BD112: 0.09 | BE112: 0.04 | BF112: 0.02 | BG112: 0.05 | BH112: 0.06 | BI112: 0.26 | BJ112: 0 | BK112: 1.11 | BL112: 0 | BM112: 0.39 | BN112: 0.02 | BO112: 0.02 | BP112: =SUM(BP106:BP111) -> 0 | BQ112: 0.05 | BR112: 0.08 | BS112: 1.55 | BT112: 0 | BU112: 0 | BV112: 2.95 | BW112: 0.03 | BX112: 0 | BY112: 0 | BZ112: 0 | CA112: 0 | CB112: 469.55 | CC112: 0 | CD112: 0 | CE112: 279.91 | CF112: 0 | CG112: 56.36 | CH112: 33.88 | CI112: 45.12 | CJ112: 3262.99 | CK112: 1728.58 | CL112: 2495.78 | CM112: 70.73 | CN112: 42.76 | CO112: 56.76 | CP112: 10.8 | CQ112: 1.21
B113: Ужин
A114: ="-" -> - | B114: Хлеб пшеничный | C114: 20 | D114: 1.32 | E114: 0 | F114: 0.13 | G114: 0.13 | H114: 9.38 | I114: 44.7802 | J114: 0 | K114: 0 | L114: 0 | M114: 0 | N114: 0.22 | O114: 9.12 | P114: 0.04 | Q114: 0 | R114: 0 | S114: 0 | T114: 0.36 | U114: 0 | V114: 0 | W114: 0 | X114: 0 | Y114: 0 | Z114: 0 | AA114: 0 | AB114: 0 | AC114: 0 | AD114: 0 | AE114: 0 | AF114: 0 | AG114: 0 | AH114: 0 | AI114: 0 | AJ114: 0 | AK114: 63.86 | AL114: 66.47 | AM114: 101.79 | AN114: 33.76 | AO114: 20.01 | AP114: 40.02 | AQ114: 15.14 | AR114: 72.38 | AS114: 44.89 | AT114: 62.64 | AU114: 51.68 | AV114: 27.14 | AW114: 48.02 | AX114: 401.59 | AY114: 0 | AZ114: 130.85 | BA114: 56.9 | BB114: 37.76 | BC114: 29.93 | BD114: 0 | BE114: 0 | BF114: 0 | BG114: 0 | BH114: 0 | BI114: 0 | BJ114: 0 | BK114: 0.02 | BL114: 0 | BM114: 0 | BN114: 0 | BO114: 0 | BP114: 0 | BQ114: 0 | BR114: 0 | BS114: 0.01 | BT114: 0 | BU114: 0 | BV114: 0.06 | BW114: 0 | BX114: 0 | BY114: 0 | BZ114: 0 | CA114: 0 | CB114: 7.82 | CE114: 0 | CG114: 0 | CH114: 0 | CI114: 0 | CJ114: 665 | CK114: 256.2 | CL114: 460.6 | CM114: 5.32 | CN114: 5.32 | CO114: 5.32 | CP114: 0 | CQ114: 0
A115: ="-" -> - | B115: Хлеб ржаной | C115: 20 | D115: 1.32 | E115: 0 | F115: 0.24 | G115: 0.24 | H115: 8.34 | I115: 38.676 | J115: 0.04 | K115: 0 | L115: 0 | M115: 0 | N115: 0.24 | O115: 6.44 | P115: 1.66 | Q115: 0 | R115: 0 | S115: 0.2 | T115: 0.5 | U115: 122 | V115: 49 | W115: 7 | X115: 9.4 | Y115: 31.6 | Z115: 0.78 | AA115: 0 | AB115: 1 | AC115: 0.2 | AD115: 0.28 | AE115: 0.04 | AF115: 0.02 | AG115: 0.14 | AH115: 0.4 | AI115: 0 | AJ115: 0 | AK115: 64.4 | AL115: 49.6 | AM115: 85.4 | AN115: 44.6 | AO115: 18.6 | AP115: 39.6 | AQ115: 16 | AR115: 74.2 | AS115: 59.4 | AT115: 58.2 | AU115: 92.8 | AV115: 24.8 | AW115: 62 | AX115: 311.8 | AY115: 0 | AZ115: 105.2 | BA115: 58.2 | BB115: 36 | BC115: 26 | BD115: 0 | BE115: 0 | BF115: 0 | BG115: 0 | BH115: 0 | BI115: 0 | BJ115: 0 | BK115: 0.03 | BL115: 0 | BM115: 0 | BN115: 0 | BO115: 0 | BP115: 0 | BQ115: 0 | BR115: 0 | BS115: 0.02 | BT115: 0 | BU115: 0 | BV115: 0.1 | BW115: 0.02 | BX115: 0 | BY115: 0 | BZ115: 0 | CA115: 0 | CB115: 9.4 | CE115: 0.17 | CG115: 1.5 | CH115: 1.5 | CI115: 1.5 | CJ115: 285 | CK115: 109.8 | CL115: 197.4 | CM115: 2.85 | CN115: 2.37 | CO115: 2.61 | CP115: 0 | CQ115: 0
A116: ="27/10" -> 27/10 | B116: Чай | C116: 180 | D116: 0.18 | E116: 0 | F116: 0.04 | G116: 0.04 | H116: 8.93 | I116: 34.88157 | J116: 0 | K116: 0 | L116: 0 | M116: 0 | N116: 8.84 | O116: 0 | P116: 0.09 | Q116: 0 | R116: 0 | S116: 0 | T116: 0.06 | U116: 0.09 | V116: 0.27 | W116: 0.26 | X116: 0 | Y116: 0 | Z116: 0.03 | AA116: 0 | AB116: 0 | AC116: 0 | AD116: 0 | AE116: 0 | AF116: 0 | AG116: 0 | AH116: 0 | AI116: 0 | AJ116: 0 | AK116: 0 | AL116: 0 | AM116: 0 | AN116: 0 | AO116: 0 | AP116: 0 | AQ116: 0 | AR116: 0 | AS116: 0 | AT116: 0 | AU116: 0 | AV116: 0 | AW116: 0 | AX116: 0 | AY116: 0 | AZ116: 0 | BA116: 0 | BB116: 0 | BC116: 0 | BD116: 0 | BE116: 0 | BF116: 0 | BG116: 0 | BH116: 0 | BI116: 0 | BJ116: 0 | BK116: 0 | BL116: 0 | BM116: 0 | BN116: 0 | BO116: 0 | BP116: 0 | BQ116: 0 | BR116: 0 | BS116: 0 | BT116: 0 | BU116: 0 | BV116: 0 | BW116: 0 | BX116: 0 | BY116: 0 | BZ116: 0 | CA116: 0 | CB116: 180.09 | CE116: 0 | CG116: 3.14 | CH116: 3.14 | CI116: 3.14 | CJ116: 363.75 | CK116: 138 | CL116: 250.88 | CM116: 33.32 | CN116: 19.82 | CO116: 26.57 | CP116: 9 | CQ116: 0
A117: ="2/6" -> 2/6 | B117: Омлет запеченный или паровой | C117: 100 | D117: 10.43 | E117: 11.1 | F117: 14.24 | G117: 0 | H117: 1.92 | I117: 177.3092924 | J117: 6.96 | K117: 0.19 | L117: 0 | M117: 0 | N117: 1.92 | O117: 0 | P117: 0 | Q117: 0 | R117: 0 | S117: 0.03 | T117: 1.63 | U117: 317.04 | V117: 139.41 | W117: 73.84 | X117: 12.1 | Y117: 159.69 | Z117: 1.79 | AA117: 144.24 | AB117: 61.44 | AC117: 253.3 | AD117: 0.57 | AE117: 0.05 | AF117: 0.33 | AG117: 0.16 | AH117: 3.14 | AI117: 0.16 | AJ117: 0 | AK117: 583.94 | AL117: 452.26 | AM117: 819.06 | AN117: 682.69 | AO117: 320.22 | AP117: 462.52 | AQ117: 156.88 | AR117: 493.7 | AS117: 536.83 | AT117: 593.93 | AU117: 928.82 | AV117: 258.51 | AW117: 314.77 | AX117: 1344.78 | AY117: 10.53 | AZ117: 301.67 | BA117: 702.22 | BB117: 361.35 | BC117: 221.14 | BD117: 0.2 | BE117: 0.09 | BF117: 0.05 | BG117: 0.11 | BH117: 0.13 | BI117: 0.6 | BJ117: 0 | BK117: 1.67 | BL117: 0 | BM117: 0.52 | BN117: 0 | BO117: 0 | BP117: 0 | BQ117: 0.12 | BR117: 0.18 | BS117: 1.36 | BT117: 0 | BU117: 0 | BV117: 0.08 | BW117: 0.01 | BX117: 0 | BY117: 0 | BZ117: 0 | CA117: 0 | CB117: 88.13 | CE117: 154.48 | CG117: 40.78 | CH117: 25.8 | CI117: 33.29 | CJ117: 174.17 | CK117: 64.67 | CL117: 119.42 | CM117: 11.9 | CN117: 6.5 | CO117: 9.2 | CP117: 0 | CQ117: 0.5
A118: ="-" -> - | B118: Бананы | C118: 100 | D118: 1.5 | E118: 0 | F118: 0.5 | G118: 0.5 | H118: 22.7 | I118: 95.5 | J118: 0.2 | K118: 0 | L118: 0 | M118: 0 | N118: 19 | O118: 2 | P118: 1.7 | Q118: 0 | R118: 0 | S118: 0.4 | T118: 0.9 | U118: 31 | V118: 348 | W118: 8 | X118: 42 | Y118: 28 | Z118: 0.6 | AA118: 0 | AB118: 120 | AC118: 20 | AD118: 0.4 | AE118: 0.04 | AF118: 0.05 | AG118: 0.6 | AH118: 0.9 | AI118: 10 | AJ118: 0 | AK118: 0 | AL118: 0 | AM118: 0 | AN118: 0 | AO118: 0 | AP118: 0 | AQ118: 0 | AR118: 0 | AS118: 0 | AT118: 0 | AU118: 0 | AV118: 0 | AW118: 0 | AX118: 0 | AY118: 0 | AZ118: 0 | BA118: 0 | BB118: 0 | BC118: 0 | BD118: 0 | BE118: 0 | BF118: 0 | BG118: 0 | BH118: 0 | BI118: 0 | BJ118: 0 | BK118: 0 | BL118: 0 | BM118: 0 | BN118: 0 | BO118: 0 | BP118: 0 | BQ118: 0 | BR118: 0 | BS118: 0 | BT118: 0 | BU118: 0 | BV118: 0 | BW118: 0 | BX118: 0 | BY118: 0 | BZ118: 0 | CA118: 0 | CB118: 74 | CE118: 20 | CG118: 4 | CH118: 1 | CI118: 2.5 | CJ118: 200 | CK118: 82 | CL118: 141 | CM118: 12.6 | CN118: 12.6 | CO118: 12.6 | CP118: 0 | CQ118: 0
B119: Итого за 'Ужин' | C119: =SUM(C114:C118) -> 420 | D119: =SUM(D114:D118) -> 14.75 | E119: 11.1 | F119: 15.15 | G119: 0.91 | H119: 51.27 | I119: 391.1470624 | J119: 7.2 | K119: 0.19 | L119: 0 | M119: 0 | N119: 30.22 | O119: 17.56 | P119: 3.49 | Q119: 0 | R119: 0 | S119: 0.63 | T119: 3.45 | U119: 470.13 | V119: 536.68 | W119: 89.1 | X119: 63.5 | Y119: 219.29 | Z119: 3.2 | AA119: 144.24 | AB119: 182.44 | AC119: 273.5 | AD119: 1.25 | AE119: 0.13 | AF119: 0.4 | AG119: 0.9 | AH119: 4.44 | AI119: 10.16 | AJ119: 0 | AK119: 712.2 | AL119: 568.33 | AM119: 1006.25 | AN119: 761.05 | AO119: 358.83 | AP119: 542.14 | AQ119: 188.02 | AR119: 640.28 | AS119: 641.12 | AT119: 714.77 | AU119: 1073.3 | AV119: 310.45 | AW119: 424.79 | AX119: 2058.17 | AY119: 10.53 | AZ119: 537.72 | BA119: 817.32 | BB119: 435.11 | BC119: 277.07 | BD119: 0.2 | BE119: 0.09 | BF119: 0.05 | BG119: 0.11 | BH119: 0.13 | BI119: 0.6 | BJ119: 0 | BK119: 1.72 | BL119: 0 | BM119: 0.52 | BN119: 0 | BO119: 0 | BP119: =SUM(BP114:BP118) -> 0 | BQ119: 0.12 | BR119: 0.18 | BS119: 1.39 | BT119: 0 | BU119: 0 | BV119: 0.24 | BW119: 0.03 | BX119: 0 | BY119: 0 | BZ119: 0 | CA119: 0 | CB119: 359.44 | CC119: 0 | CD119: 0 | CE119: 174.65 | CF119: 0 | CG119: 49.42 | CH119: 31.44 | CI119: 40.43 | CJ119: 1687.92 | CK119: 650.67 | CL119: 1169.3 | CM119: 65.99 | CN119: 46.61 | CO119: 56.3 | CP119: 9 | CQ119: 0.5
B120: Итого за день | C120: =C101+C104+C112+C119 -> 1565 | D120: =D101+D104+D112+D119 -> 46.52 | E120: 29.96 | F120: 42.47 | G120: 8.82 | H120: 216.49 | I120: 1406.198826 | J120: 19.81 | K120: 3.23 | L120: 0 | M120: 0 | N120: 83.35 | O120: 118.23 | P120: 14.9 | Q120: 0 | R120: 0 | S120: 2.18 | T120: 10.65 | U120: 1582.05 | V120: 1732.46 | W120: 275.07 | X120: 182.94 | Y120: 638.04 | Z120: 11.06 | AA120: 192.52 | AB120: 1844.62 | AC120: 671.76 | AD120: 7.29 | AE120: 0.53 | AF120: 0.73 | AG120: 6.06 | AH120: 16.68 | AI120: 19.34 | AJ120: 0.2 | AK120: 2240 | AL120: 1857.4 | AM120: 3537.03 | AN120: 2905.84 | AO120: 965.98 | AP120: 1648.77 | AQ120: 542.76 | AR120: 2060.31 | AS120: 2021.27 | AT120: 1961.09 | AU120: 2893.82 | AV120: 1109.78 | AW120: 1473.17 | AX120: 7876.7 | AY120: 168.91 | AZ120: 2251.15 | BA120: 2027.09 | BB120: 1256.43 | BC120: 718.88 | BD120: 0.51 | BE120: 0.23 | BF120: 0.12 | BG120: 0.29 | BH120: 0.33 | BI120: 1.52 | BJ120: 0 | BK120: 4.84 | BL120: 0 | BM120: 1.54 | BN120: 0.03 | BO120: 0.02 | BP120: =BP101+BP104+BP112+BP119 -> 0 | BQ120: 0.3 | BR120: 0.46 | BS120: 5.05 | BT120: 0 | BU120: 0 | BV120: 4.28 | BW120: 0.08 | BX120: 0 | BY120: 0 | BZ120: 0 | CA120: 0 | CB120: 1262.18 | CC120: 0 | CD120: 0 | CE120: 499.97 | CF120: 0 | CG120: 140.21 | CH120: 85.45 | CI120: 112.83 | CJ120: 8717.09 | CK120: 4150.84 | CL120: 6433.97 | CM120: 215.27 | CN120: 138.07 | CO120: 176.69 | CP120: 27.9 | CQ120: 2.16
B121: 5 день
B122: Завтрак
A123: ="-" -> - | B123: Батон | C123: 40 | D123: 3.08 | E123: 0 | F123: 1.2 | G123: 1.2 | H123: 21.32 | I123: 107.808 | J123: 0.2 | K123: 0 | L123: 0 | M123: 0 | N123: 1.32 | O123: 18.72 | P123: 1.28 | Q123: 0 | R123: 0 | S123: 0.12 | T123: 0.64 | U123: 171.6 | V123: 52.4 | W123: 8.8 | X123: 13.2 | Y123: 34 | Z123: 0.8 | AA123: 0 | AB123: 0 | AC123: 0 | AD123: 0.68 | AE123: 0.06 | AF123: 0.02 | AG123: 0.64 | AH123: 1.2 | AI123: 0 | AJ123: 0 | AK123: 148.8 | AL123: 154.4 | AM123: 236.4 | AN123: 79.6 | AO123: 46.8 | AP123: 93.6 | AQ123: 35.2 | AR123: 168 | AS123: 104.4 | AT123: 145.2 | AU123: 120.4 | AV123: 64.4 | AW123: 112 | AX123: 930 | AY123: 0 | AZ123: 302.8 | BA123: 132.4 | BB123: 88.8 | BC123: 69.2 | BD123: 0 | BE123: 0 | BF123: 0 | BG123: 0 | BH123: 0 | BI123: 0.01 | BJ123: 0 | BK123: 0.13 | BL123: 0 | BM123: 0.06 | BN123: 0 | BO123: 0 | BP123: 0 | BQ123: 0 | BR123: 0 | BS123: 0.47 | BT123: 0 | BU123: 0 | BV123: 0.35 | BW123: 0.01 | BX123: 0 | BY123: 0 | BZ123: 0 | CA123: 0 | CB123: 13.64 | CE123: 0 | CG123: 0 | CH123: 0 | CI123: 0 | CJ123: 665 | CK123: 256.2 | CL123: 460.6 | CM123: 5.32 | CN123: 5.32 | CO123: 5.32 | CP123: 0 | CQ123: 0
A124: ="-" -> - | B124: Масло сливочное | C124: 5 | D124: 0.04 | E124: 0.04 | F124: 3.63 | G124: 0 | H124: 0.07 | I124: 33.032 | J124: 2.36 | K124: 0.11 | L124: 0 | M124: 0 | N124: 0.07 | O124: 0 | P124: 0 | Q124: 0 | R124: 0 | S124: 0 | T124: 0.07 | U124: 0.75 | V124: 1.5 | W124: 1.2 | X124: 0 | Y124: 1.5 | Z124: 0.01 | AA124: 20 | AB124: 15 | AC124: 22.5 | AD124: 0.05 | AE124: 0 | AF124: 0.01 | AG124: 0.01 | AH124: 0.01 | AI124: 0 | AJ124: 0 | AK124: 2.1 | AL124: 2.05 | AM124: 3.8 | AN124: 2.25 | AO124: 0.85 | AP124: 2.35 | AQ124: 2.15 | AR124: 2.1 | AS124: 1.8 | AT124: 1.3 | AU124: 2.85 | AV124: 1.75 | AW124: 1.2 | AX124: 7.1 | AY124: 0 | AZ124: 2.4 | BA124: 2.7 | BB124: 2.1 | BC124: 0.5 | BD124: 0.13 | BE124: 0.06 | BF124: 0.03 | BG124: 0.08 | BH124: 0.09 | BI124: 0.4 | BJ124: 0 | BK124: 1.1 | BL124: 0 | BM124: 0.34 | BN124: 0 | BO124: 0 | BP124: 0 | BQ124: 0.08 | BR124: 0.12 | BS124: 0.9 | BT124: 0 | BU124: 0 | BV124: 0.05 | BW124: 0 | BX124: 0 | BY124: 0 | BZ124: 0 | CA124: 0 | CB124: 1.25 | CE124: 22.5 | CG124: 0.2 | CH124: 0.05 | CI124: 0.13 | CJ124: 10 | CK124: 4.1 | CL124: 7.05 | CM124: 0.86 | CN124: 0.44 | CO124: 0.65 | CP124: 0 | CQ124: 0
A125: ="32/10" -> 32/10 | B125: Кофейный напиток с молоком | C125: 180 | D125: 3.22 | E125: 2.56 | F125: 2.36 | G125: 0.16 | H125: 13.04 | I125: 83.957688 | J125: 1.53 | K125: 0 | L125: 0 | M125: 0 | N125: 13.04 | O125: 0 | P125: 0 | Q125: 0 | R125: 0 | S125: 0.09 | T125: 0.64 | U125: 44.64 | V125: 130.35 | W125: 105.02 | X125: 11.97 | Y125: 75.33 | Z125: 0.11 | AA125: 18 | AB125: 8.1 | AC125: 19.8 | AD125: 0 | AE125: 0.03 | AF125: 0.12 | AG125: 0.08 | AH125: 0.72 | AI125: 0.47 | AJ125: 0 | AK125: 0 | AL125: 0 | AM125: 0 | AN125: 0 | AO125: 0 | AP125: 0 | AQ125: 0 | AR125: 0 | AS125: 0 | AT125: 0 | AU125: 0 | AV125: 0 | AW125: 0 | AX125: 0 | AY125: 0 | AZ125: 0 | BA125: 0 | BB125: 0 | BC125: 0 | BD125: 0 | BE125: 0 | BF125: 0 | BG125: 0 | BH125: 0 | BI125: 0 | BJ125: 0 | BK125: 0 | BL125: 0 | BM125: 0 | BN125: 0 | BO125: 0 | BP125: 0 | BQ125: 0 | BR125: 0 | BS125: 0 | BT125: 0 | BU125: 0 | BV125: 0 | BW125: 0 | BX125: 0 | BY125: 0 | BZ125: 0 | CA125: 0 | CB125: 179.42 | CE125: 19.35 | CG125: 10.37 | CH125: 4.07 | CI125: 7.22 | CJ125: 850.32 | CK125: 325.44 | CL125: 587.88 | CM125: 34.37 | CN125: 16.35 | CO125: 25.36 | CP125: 9 | CQ125: 0
A126: ="6/4" -> 6/4 | B126: Каша овсяная молочная с маслом сливочным | C126: 180 | D126: 6.93 | E126: 2.59 | F126: 7.59 | G126: 2.19 | H126: 30.84 | I126: 215.9766792 | J126: 4.15 | K126: 0.1 | L126: 0 | M126: 0 | N126: 8.24 | O126: 20.55 | P126: 2.05 | Q126: 0 | R126: 0 | S126: 0.09 | T126: 1.76 | U126: 224.83 | V126: 249.18 | W126: 125.68 | X126: 56.18 | Y126: 186.71 | Z126: 1.38 | AA126: 36 | AB126: 20.25 | AC126: 40.05 | AD126: 0.62 | AE126: 0.17 | AF126: 0.16 | AG126: 0.39 | AH126: 2.39 | AI126: 0.47 | AJ126: 0 | AK126: 199.42 | AL126: 142.22 | AM126: 227.38 | AN126: 150.16 | AO126: 43.79 | AP126: 136.14 | AQ126: 70.69 | AR126: 191.31 | AS126: 173.05 | AT126: 260.81 | AU126: 325.68 | AV126: 87.63 | AW126: 360.56 | AX126: 693.52 | AY126: 0 | AZ126: 228.26 | BA126: 183.72 | BB126: 158.14 | BC126: 99.93 | BD126: 0.12 | BE126: 0.05 | BF126: 0.03 | BG126: 0.07 | BH126: 0.08 | BI126: 0.36 | BJ126: 0 | BK126: 1.44 | BL126: 0 | BM126: 0.32 | BN126: 0 | BO126: 0 | BP126: 0 | BQ126: 0.07 | BR126: 0.1 | BS126: 1.55 | BT126: 0 | BU126: 0 | BV126: 0.84 | BW126: 0.02 | BX126: 0 | BY126: 0 | BZ126: 0 | CA126: 0 | CB126: 146.75 | CE126: 39.38 | CG126: 26.58 | CH126: 10.71 | CI126: 18.65 | CJ126: 1650.5 | CK126: 749.64 | CL126: 1200.07 | CM126: 26.74 | CN126: 13.25 | CO126: 19.99 | CP126: 3.6 | CQ126: 0.45
B127: Итого за 'Завтрак' | C127: =SUM(C123:C126) -> 405 | D127: =SUM(D123:D126) -> 13.27 | E127: 5.19 | F127: 14.78 | G127: 3.55 | H127: 65.27 | I127: 440.7743672 | J127: 8.24 | K127: 0.21 | L127: 0 | M127: 0 | N127: 22.67 | O127: 39.27 | P127: 3.33 | Q127: 0 | R127: 0 | S127: 0.3 | T127: 3.11 | U127: 441.82 | V127: 433.43 | W127: 240.7 | X127: 81.35 | Y127: 297.54 | Z127: 2.3 | AA127: 74 | AB127: 43.35 | AC127: 82.35 | AD127: 1.35 | AE127: 0.26 | AF127: 0.31 | AG127: 1.12 | AH127: 4.32 | AI127: 0.94 | AJ127: 0 | AK127: 350.32 | AL127: 298.67 | AM127: 467.58 | AN127: 232.01 | AO127: 91.44 | AP127: 232.09 | AQ127: 108.04 | AR127: 361.41 | AS127: 279.25 | AT127: 407.31 | AU127: 448.93 | AV127: 153.78 | AW127: 473.76 | AX127: 1630.62 | AY127: 0 | AZ127: 533.46 | BA127: 318.82 | BB127: 249.04 | BC127: 169.63 | BD127: 0.25 | BE127: 0.11 | BF127: 0.06 | BG127: 0.15 | BH127: 0.17 | BI127: 0.77 | BJ127: 0 | BK127: 2.67 | BL127: 0 | BM127: 0.72 | BN127: 0 | BO127: 0 | BP127: =SUM(BP123:BP126) -> 0 | BQ127: 0.15 | BR127: 0.22 | BS127: 2.92 | BT127: 0 | BU127: 0 | BV127: 1.24 | BW127: 0.03 | BX127: 0 | BY127: 0 | BZ127: 0 | CA127: 0 | CB127: 341.06 | CC127: 0 | CD127: 0 | CE127: 81.23 | CF127: 0 | CG127: 37.15 | CH127: 14.83 | CI127: 26 | CJ127: 3175.82 | CK127: 1335.38 | CL127: 2255.6 | CM127: 67.29 | CN127: 35.36 | CO127: 51.32 | CP127: 12.6 | CQ127: 0.45
B128: 10:00
A129: ="-" -> - | B129: Йогурт | C129: 100 | D129: 4.1 | E129: 4.1 | F129: 1.5 | G129: 0 | H129: 5.9 | I129: 55.62 | J129: 0.9 | K129: 0 | L129: 0 | M129: 0 | N129: 5.9 | O129: 0 | P129: 0 | Q129: 0 | R129: 0 | S129: 1.1 | T129: 0.9 | U129: 50 | V129: 152 | W129: 124 | X129: 15 | Y129: 95 | Z129: 0.1 | AA129: 10 | AB129: 0 | AC129: 10 | AD129: 0 | AE129: 0.03 | AF129: 0.15 | AG129: 0.2 | AH129: 1.2 | AI129: 0.6 | AJ129: 0 | AK129: 323 | AL129: 300 | AM129: 450 | AN129: 387 | AO129: 115 | AP129: 216 | AQ129: 72 | AR129: 225 | AS129: 160 | AT129: 174 | AU129: 344 | AV129: 156 | AW129: 93 | AX129: 897 | AY129: 0 | AZ129: 518 | BA129: 278 | BB129: 242 | BC129: 50 | BD129: 0.1 | BE129: 0.07 | BF129: 0.04 | BG129: 0.08 | BH129: 0.09 | BI129: 0.45 | BJ129: 0.03 | BK129: 0.56 | BL129: 0.02 | BM129: 0.31 | BN129: 0.04 | BO129: 0 | BP129: 0 | BQ129: 0.04 | BR129: 0.08 | BS129: 0.69 | BT129: 0.01 | BU129: 0 | BV129: 0.02 | BW129: 0.03 | BX129: 0.08 | BY129: 0 | BZ129: 0 | CA129: 0 | CB129: 86.5 | CE129: 10 | CG129: 9 | CH129: 9 | CI129: 9 | CJ129: 3240 | CK129: 2070 | CL129: 2655 | CM129: 2 | CN129: 2 | CO129: 2 | CP129: 0 | CQ129: 0
B130: Итого за '10:00' | C130: =SUM(C129) -> 100 | D130: =SUM(D129) -> 4.1 | E130: 4.1 | F130: 1.5 | G130: 0 | H130: 5.9 | I130: 55.62 | J130: 0.9 | K130: 0 | L130: 0 | M130: 0 | N130: 5.9 | O130: 0 | P130: 0 | Q130: 0 | R130: 0 | S130: 1.1 | T130: 0.9 | U130: 50 | V130: 152 | W130: 124 | X130: 15 | Y130: 95 | Z130: 0.1 | AA130: 10 | AB130: 0 | AC130: 10 | AD130: 0 | AE130: 0.03 | AF130: 0.15 | AG130: 0.2 | AH130: 1.2 | AI130: 0.6 | AJ130: 0 | AK130: 323 | AL130: 300 | AM130: 450 | AN130: 387 | AO130: 115 | AP130: 216 | AQ130: 72 | AR130: 225 | AS130: 160 | AT130: 174 | AU130: 344 | AV130: 156 | AW130: 93 | AX130: 897 | AY130: 0 | AZ130: 518 | BA130: 278 | BB130: 242 | BC130: 50 | BD130: 0.1 | BE130: 0.07 | BF130: 0.04 | BG130: 0.08 | BH130: 0.09 | BI130: 0.45 | BJ130: 0.03 | BK130: 0.56 | BL130: 0.02 | BM130: 0.31 | BN130: 0.04 | BO130: 0 | BP130: =SUM(BP129) -> 0 | BQ130: 0.04 | BR130: 0.08 | BS130: 0.69 | BT130: 0.01 | BU130: 0 | BV130: 0.02 | BW130: 0.03 | BX130: 0.08 | BY130: 0 | BZ130: 0 | CA130: 0 | CB130: 86.5 | CC130: 0 | CD130: 0 | CE130: 10 | CF130: 0 | CG130: 9 | CH130: 9 | CI130: 9 | CJ130: 3240 | CK130: 2070 | CL130: 2655 | CM130: 2 | CN130: 2 | CO130: 2 | CP130: 0 | CQ130: 0
B131: Обед
A132: ="-" -> - | B132: Хлеб пшеничный | C132: 20 | D132: 1.32 | E132: 0 | F132: 0.13 | G132: 0.13 | H132: 9.38 | I132: 44.7802 | J132: 0 | K132: 0 | L132: 0 | M132: 0 | N132: 0.22 | O132: 9.12 | P132: 0.04 | Q132: 0 | R132: 0 | S132: 0 | T132: 0.36 | U132: 0 | V132: 0 | W132: 0 | X132: 0 | Y132: 0 | Z132: 0 | AA132: 0 | AB132: 0 | AC132: 0 | AD132: 0 | AE132: 0 | AF132: 0 | AG132: 0 | AH132: 0 | AI132: 0 | AJ132: 0 | AK132: 63.86 | AL132: 66.47 | AM132: 101.79 | AN132: 33.76 | AO132: 20.01 | AP132: 40.02 | AQ132: 15.14 | AR132: 72.38 | AS132: 44.89 | AT132: 62.64 | AU132: 51.68 | AV132: 27.14 | AW132: 48.02 | AX132: 401.59 | AY132: 0 | AZ132: 130.85 | BA132: 56.9 | BB132: 37.76 | BC132: 29.93 | BD132: 0 | BE132: 0 | BF132: 0 | BG132: 0 | BH132: 0 | BI132: 0 | BJ132: 0 | BK132: 0.02 | BL132: 0 | BM132: 0 | BN132: 0 | BO132: 0 | BP132: 0 | BQ132: 0 | BR132: 0 | BS132: 0.01 | BT132: 0 | BU132: 0 | BV132: 0.06 | BW132: 0 | BX132: 0 | BY132: 0 | BZ132: 0 | CA132: 0 | CB132: 7.82 | CE132: 0 | CG132: 0 | CH132: 0 | CI132: 0 | CJ132: 380 | CK132: 146.4 | CL132: 263.2 | CM132: 3.04 | CN132: 3.04 | CO132: 3.04 | CP132: 0 | CQ132: 0
A133: ="-" -> - | B133: Хлеб ржаной | C133: 20 | D133: 1.32 | E133: 0 | F133: 0.24 | G133: 0.24 | H133: 8.34 | I133: 38.676 | J133: 0.04 | K133: 0 | L133: 0 | M133: 0 | N133: 0.24 | O133: 6.44 | P133: 1.66 | Q133: 0 | R133: 0 | S133: 0.2 | T133: 0.5 | U133: 122 | V133: 49 | W133: 7 | X133: 9.4 | Y133: 31.6 | Z133: 0.78 | AA133: 0 | AB133: 1 | AC133: 0.2 | AD133: 0.28 | AE133: 0.04 | AF133: 0.02 | AG133: 0.14 | AH133: 0.4 | AI133: 0 | AJ133: 0 | AK133: 64.4 | AL133: 49.6 | AM133: 85.4 | AN133: 44.6 | AO133: 18.6 | AP133: 39.6 | AQ133: 16 | AR133: 74.2 | AS133: 59.4 | AT133: 58.2 | AU133: 92.8 | AV133: 24.8 | AW133: 62 | AX133: 311.8 | AY133: 0 | AZ133: 105.2 | BA133: 58.2 | BB133: 36 | BC133: 26 | BD133: 0 | BE133: 0 | BF133: 0 | BG133: 0 | BH133: 0 | BI133: 0 | BJ133: 0 | BK133: 0.03 | BL133: 0 | BM133: 0 | BN133: 0 | BO133: 0 | BP133: 0 | BQ133: 0 | BR133: 0 | BS133: 0.02 | BT133: 0 | BU133: 0 | BV133: 0.1 | BW133: 0.02 | BX133: 0 | BY133: 0 | BZ133: 0 | CA133: 0 | CB133: 9.4 | CE133: 0.17 | CG133: 1 | CH133: 1 | CI133: 1 | CJ133: 190 | CK133: 73.2 | CL133: 131.6 | CM133: 1.9 | CN133: 1.58 | CO133: 1.74 | CP133: 0 | CQ133: 0
A134: ="3/10" -> 3/10 | B134: Компот из яблок | C134: 180 | D134: 0.14 | E134: 0 | F134: 0.14 | G134: 0.14 | H134: 21.67 | I134: 84.015216 | J134: 0.04 | K134: 0 | L134: 0 | M134: 0 | N134: 20.78 | O134: 0.27 | P134: 0.62 | Q134: 0 | R134: 0 | S134: 0.29 | T134: 0.2 | U134: 9.44 | V134: 99.61 | W134: 6.11 | X134: 3.08 | Y134: 3.68 | Z134: 0.82 | AA134: 0 | AB134: 9.72 | AC134: 1.8 | AD134: 0.07 | AE134: 0.01 | AF134: 0.01 | AG134: 0.09 | AH134: 0.14 | AI134: 1.44 | AJ134: 0 | AK134: 4.23 | AL134: 4.59 | AM134: 6.7 | AN134: 6.35 | AO134: 1.06 | AP134: 3.88 | AQ134: 1.06 | AR134: 3.18 | AS134: 6 | AT134: 3.53 | AU134: 27.52 | AV134: 2.47 | AW134: 4.94 | AX134: 14.82 | AY134: 0 | AZ134: 4.59 | BA134: 5.64 | BB134: 2.12 | BC134: 1.76 | BD134: 0 | BE134: 0 | BF134: 0 | BG134: 0 | BH134: 0 | BI134: 0 | BJ134: 0 | BK134: 0 | BL134: 0 | BM134: 0 | BN134: 0 | BO134: 0 | BP134: 0 | BQ134: 0 | BR134: 0 | BS134: 0 | BT134: 0 | BU134: 0 | BV134: 0 | BW134: 0 | BX134: 0 | BY134: 0 | BZ134: 0 | CA134: 0 | CB134: 220.09 | CE134: 1.62 | CG134: 3.75 | CH134: 3.75 | CI134: 3.75 | CJ134: 360 | CK134: 174.15 | CL134: 267.08 | CM134: 34.34 | CN134: 20.16 | CO134: 27.25 | CP134: 18 | CQ134: 0
A135: ="49/1" -> 49/1 | B135: Салат из отварного картофеля, моркови, свеклы с репчатым луком, соленым огурцом и растительным маслом | C135: 50 | D135: 0.72 | E135: 0 | F135: 3.04 | G135: 3.04 | H135: 5.27 | I135: 50.01001103 | J135: 0.4 | K135: 1.95 | L135: 0 | M135: 0 | N135: 1.77 | O135: 2.69 | P135: 0.81 | Q135: 0 | R135: 0 | S135: 0.12 | T135: 0.94 | U135: 176.38 | V135: 141.01 | W135: 10.68 | X135: 9.54 | Y135: 21.88 | Z135: 0.42 | AA135: 0 | AB135: 461.12 | AC135: 92.17 | AD135: 1.39 | AE135: 0.02 | AF135: 0.02 | AG135: 0.26 | AH135: 0.5 | AI135: 1.98 | AJ135: 0 | AK135: 13.68 | AL135: 16.44 | AM135: 20.02 | AN135: 23.87 | AO135: 4.68 | AP135: 15.61 | AQ135: 5.73 | AR135: 14.68 | AS135: 16.91 | AT135: 39.03 | AU135: 51.8 | AV135: 4.63 | AW135: 12.72 | AX135: 78.68 | AY135: 0 | AZ135: 11.61 | BA135: 12.79 | BB135: 11.41 | BC135: 4.45 | BD135: 0 | BE135: 0 | BF135: 0 | BG135: 0 | BH135: 0 | BI135: 0 | BJ135: 0 | BK135: 0.2 | BL135: 0 | BM135: 0.12 | BN135: 0.01 | BO135: 0.02 | BP135: 0 | BQ135: 0 | BR135: 0 | BS135: 0.73 | BT135: 0 | BU135: 0 | BV135: 1.75 | BW135: 0 | BX135: 0 | BY135: 0 | BZ135: 0 | CA135: 0 | CB135: 40.69 | CE135: 76.85 | CG135: 12.5 | CH135: 7.41 | CI135: 9.95 | CJ135: 320.17 | CK135: 132.35 | CL135: 226.26 | CM135: 5.21 | CN135: 1.51 | CO135: 3.36 | CP135: 0 | CQ135: 0.25
A136: ="7/2" -> 7/2 | B136: Щи из свежей капусты и картофеля на говяжьем бульоне | C136: 180 | D136: 1.3 | E136: 5.86 | F136: 1.71 | G136: 1.94 | H136: 7.09 | I136: 46.31827111 | J136: 0.24 | K136: 1.17 | L136: 0 | M136: 0 | N136: 3.14 | O136: 2.52 | P136: 1.43 | Q136: 0 | R136: 0 | S136: 0.21 | T136: 1.03 | U136: 148.27 | V136: 235.06 | W136: 25.74 | X136: 13.73 | Y136: 29.21 | Z136: 0.49 | AA136: 0 | AB136: 874.08 | AC136: 181.89 | AD136: 0.9 | AE136: 0.03 | AF136: 0.03 | AG136: 0.52 | AH136: 0.86 | AI136: 9.99 | AJ136: 0 | AK136: 32.4 | AL136: 30.88 | AM136: 39.26 | AN136: 39.17 | AO136: 11.76 | AP136: 28.51 | AQ136: 8.29 | AR136: 33.25 | AS136: 43.91 | AT136: 66.51 | AU136: 96.03 | AV136: 15.41 | AW136: 29.27 | AX136: 173.44 | AY136: 0 | AZ136: 32.57 | BA136: 32.32 | BB136: 27.75 | BC136: 11.68 | BD136: 0 | BE136: 0 | BF136: 0 | BG136: 0 | BH136: 0 | BI136: 0 | BJ136: 0 | BK136: 0.11 | BL136: 0 | BM136: 0.07 | BN136: 0 | BO136: 0.01 | BP136: 0 | BQ136: 0 | BR136: 0 | BS136: 0.4 | BT136: 0 | BU136: 0 | BV136: 1.08 | BW136: 0 | BX136: 0 | BY136: 0 | BZ136: 0 | CA136: 0 | CB136: 212.57 | CE136: 145.68 | CG136: 22.51 | CH136: 12.55 | CI136: 17.53 | CJ136: 874.13 | CK136: 307.09 | CL136: 590.61 | CM136: 42.75 | CN136: 26.46 | CO136: 34.6 | CP136: 0 | CQ136: 0.36
A137: ="9/4" -> 9/4 | B137: Каша рисовая молочная вязкая с маслом сливочным | C137: 150 | D137: 3.89 | E137: 1.63 | F137: 4.37 | G137: 0.32 | H137: 30.38 | I137: 175.645824 | J137: 2.82 | K137: 0.08 | L137: 0 | M137: 0 | N137: 6.59 | O137: 22.85 | P137: 0.94 | Q137: 0 | R137: 0 | S137: 0.06 | T137: 1.06 | U137: 176.07 | V137: 115.23 | W137: 70.36 | X137: 23.23 | Y137: 94.42 | Z137: 0.4 | AA137: 26.25 | AB137: 15.19 | AC137: 29.25 | AD137: 0.17 | AE137: 0.04 | AF137: 0.09 | AG137: 0.5 | AH137: 1.55 | AI137: 0.29 | AJ137: 0 | AK137: 137.37 | AL137: 108.23 | AM137: 203.3 | AN137: 85.74 | AO137: 52.37 | AP137: 79.34 | AQ137: 33.92 | AR137: 121.2 | AS137: 127.45 | AT137: 165.89 | AU137: 176.73 | AV137: 56.26 | AW137: 104.37 | AX137: 393.3 | AY137: 0 | AZ137: 108.49 | BA137: 108.71 | BB137: 95.33 | BC137: 44.67 | BD137: 0.1 | BE137: 0.05 | BF137: 0.02 | BG137: 0.06 | BH137: 0.06 | BI137: 0.3 | BJ137: 0 | BK137: 0.87 | BL137: 0 | BM137: 0.26 | BN137: 0 | BO137: 0 | BP137: 0 | BQ137: 0.06 | BR137: 0.09 | BS137: 0.77 | BT137: 0 | BU137: 0 | BV137: 0.09 | BW137: 0 | BX137: 0 | BY137: 0 | BZ137: 0 | CA137: 0 | CB137: 111.87 | CE137: 28.78 | CG137: 17.73 | CH137: 8.49 | CI137: 13.11 | CJ137: 1334.29 | CK137: 616.06 | CL137: 975.17 | CM137: 18.69 | CN137: 8.15 | CO137: 13.42 | CP137: 3.75 | CQ137: 0.38
A138: ="7" -> 7 | B138: Биточки (котлеты) из мяса бройлер-цыплят | C138: 70 | D138: 10.58 | E138: 8.96 | F138: 9.97 | G138: 2.82 | H138: 9.18 | I138: 168.470883 | J138: 2.74 | K138: 2.28 | L138: 0 | M138: 0 | N138: 0.35 | O138: 8.18 | P138: 0.65 | Q138: 0 | R138: 0 | S138: 0.09 | T138: 1.18 | U138: 178.35 | V138: 105.08 | W138: 11.64 | X138: 14.89 | Y138: 94.05 | Z138: 1.33 | AA138: 29.01 | AB138: 5.53 | AC138: 37.37 | AD138: 2.04 | AE138: 0.05 | AF138: 0.08 | AG138: 3.94 | AH138: 7.04 | AI138: 0.19 | AJ138: 0 | AK138: 470.62 | AL138: 381.67 | AM138: 757.09 | AN138: 798.65 | AO138: 244.02 | AP138: 445.22 | AQ138: 153.44 | AR138: 410.38 | AS138: 595.33 | AT138: 641.13 | AU138: 834.22 | AV138: 255.76 | AW138: 705.51 | AX138: 1515.68 | AY138: 74.31 | AZ138: 511.58 | BA138: 457.51 | BB138: 338.52 | BC138: 128.53 | BD138: 0 | BE138: 0 | BF138: 0 | BG138: 0 | BH138: 0 | BI138: 0 | BJ138: 0 | BK138: 0.17 | BL138: 0 | BM138: 0.11 | BN138: 0.01 | BO138: 0.02 | BP138: 0 | BQ138: 0 | BR138: 0 | BS138: 0.63 | BT138: 0 | BU138: 0 | BV138: 1.58 | BW138: 0 | BX138: 0 | BY138: 0 | BZ138: 0 | CA138: 0 | CB138: 54.38 | CE138: 29.93 | CG138: 17.73 | CH138: 8.4 | CI138: 13.06 | CJ138: 1892.29 | CK138: 1155.41 | CL138: 1523.85 | CM138: 12.53 | CN138: 9.63 | CO138: 11.08 | CP138: 0 | CQ138: 0.35
B139: Итого за 'Обед' | C139: =SUM(C132:C138) -> 670 | D139: =SUM(D132:D138) -> 19.27 | E139: 16.45 | F139: 19.6 | G139: 8.63 | H139: 91.31 | I139: 607.9164051 | J139: 6.28 | K139: 5.48 | L139: 0 | M139: 0 | N139: 33.09 | O139: 52.07 | P139: 6.15 | Q139: 0 | R139: 0 | S139: 0.97 | T139: 5.27 | U139: 810.51 | V139: 744.99 | W139: 131.53 | X139: 73.87 | Y139: 274.84 | Z139: 4.24 | AA139: 55.26 | AB139: 1366.64 | AC139: 342.68 | AD139: 4.85 | AE139: 0.19 | AF139: 0.25 | AG139: 5.45 | AH139: 10.49 | AI139: 13.89 | AJ139: 0 | AK139: 786.56 | AL139: 657.88 | AM139: 1213.56 | AN139: 1032.14 | AO139: 352.5 | AP139: 652.18 | AQ139: 233.58 | AR139: 729.27 | AS139: 893.89 | AT139: 1036.93 | AU139: 1330.78 | AV139: 386.47 | AW139: 966.83 | AX139: 2889.31 | AY139: 74.31 | AZ139: 904.89 | BA139: 732.07 | BB139: 548.89 | BC139: 247.02 | BD139: 0.1 | BE139: 0.05 | BF139: 0.02 | BG139: 0.06 | BH139: 0.06 | BI139: 0.3 | BJ139: 0 | BK139: 1.4 | BL139: 0 | BM139: 0.56 | BN139: 0.02 | BO139: 0.05 | BP139: =SUM(BP132:BP138) -> 0 | BQ139: 0.06 | BR139: 0.09 | BS139: 2.56 | BT139: 0 | BU139: 0 | BV139: 4.66 | BW139: 0.02 | BX139: 0 | BY139: 0 | BZ139: 0 | CA139: 0 | CB139: 656.82 | CC139: 0 | CD139: 0 | CE139: 283.03 | CF139: 0 | CG139: 75.22 | CH139: 41.6 | CI139: 58.4 | CJ139: 5350.88 | CK139: 2604.66 | CL139: 3977.77 | CM139: 118.46 | CN139: 70.53 | CO139: 94.49 | CP139: 21.75 | CQ139: 1.34
B140: Ужин
A141: ="-" -> - | B141: Хлеб пшеничный | C141: 20 | D141: 1.32 | E141: 0 | F141: 0.13 | G141: 0.13 | H141: 9.38 | I141: 44.7802 | J141: 0 | K141: 0 | L141: 0 | M141: 0 | N141: 0.22 | O141: 9.12 | P141: 0.04 | Q141: 0 | R141: 0 | S141: 0 | T141: 0.36 | U141: 0 | V141: 0 | W141: 0 | X141: 0 | Y141: 0 | Z141: 0 | AA141: 0 | AB141: 0 | AC141: 0 | AD141: 0 | AE141: 0 | AF141: 0 | AG141: 0 | AH141: 0 | AI141: 0 | AJ141: 0 | AK141: 63.86 | AL141: 66.47 | AM141: 101.79 | AN141: 33.76 | AO141: 20.01 | AP141: 40.02 | AQ141: 15.14 | AR141: 72.38 | AS141: 44.89 | AT141: 62.64 | AU141: 51.68 | AV141: 27.14 | AW141: 48.02 | AX141: 401.59 | AY141: 0 | AZ141: 130.85 | BA141: 56.9 | BB141: 37.76 | BC141: 29.93 | BD141: 0 | BE141: 0 | BF141: 0 | BG141: 0 | BH141: 0 | BI141: 0 | BJ141: 0 | BK141: 0.02 | BL141: 0 | BM141: 0 | BN141: 0 | BO141: 0 | BP141: 0 | BQ141: 0 | BR141: 0 | BS141: 0.01 | BT141: 0 | BU141: 0 | BV141: 0.06 | BW141: 0 | BX141: 0 | BY141: 0 | BZ141: 0 | CA141: 0 | CB141: 7.82 | CE141: 0 | CG141: 0 | CH141: 0 | CI141: 0 | CJ141: 665 | CK141: 256.2 | CL141: 460.6 | CM141: 5.32 | CN141: 5.32 | CO141: 5.32 | CP141: 0 | CQ141: 0
A142: ="-" -> - | B142: Хлеб ржаной | C142: 20 | D142: 1.32 | E142: 0 | F142: 0.24 | G142: 0.24 | H142: 8.34 | I142: 38.676 | J142: 0.04 | K142: 0 | L142: 0 | M142: 0 | N142: 0.24 | O142: 6.44 | P142: 1.66 | Q142: 0 | R142: 0 | S142: 0.2 | T142: 0.5 | U142: 122 | V142: 49 | W142: 7 | X142: 9.4 | Y142: 31.6 | Z142: 0.78 | AA142: 0 | AB142: 1 | AC142: 0.2 | AD142: 0.28 | AE142: 0.04 | AF142: 0.02 | AG142: 0.14 | AH142: 0.4 | AI142: 0 | AJ142: 0 | AK142: 64.4 | AL142: 49.6 | AM142: 85.4 | AN142: 44.6 | AO142: 18.6 | AP142: 39.6 | AQ142: 16 | AR142: 74.2 | AS142: 59.4 | AT142: 58.2 | AU142: 92.8 | AV142: 24.8 | AW142: 62 | AX142: 311.8 | AY142: 0 | AZ142: 105.2 | BA142: 58.2 | BB142: 36 | BC142: 26 | BD142: 0 | BE142: 0 | BF142: 0 | BG142: 0 | BH142: 0 | BI142: 0 | BJ142: 0 | BK142: 0.03 | BL142: 0 | BM142: 0 | BN142: 0 | BO142: 0 | BP142: 0 | BQ142: 0 | BR142: 0 | BS142: 0.02 | BT142: 0 | BU142: 0 | BV142: 0.1 | BW142: 0.02 | BX142: 0 | BY142: 0 | BZ142: 0 | CA142: 0 | CB142: 9.4 | CE142: 0.17 | CG142: 1.5 | CH142: 1.5 | CI142: 1.5 | CJ142: 285 | CK142: 109.8 | CL142: 197.4 | CM142: 2.85 | CN142: 2.37 | CO142: 2.61 | CP142: 0 | CQ142: 0
A143: ="29/10" -> 29/10 | B143: Чай с лимоном | C143: 180 | D143: 0.21 | E143: 0 | F143: 0.05 | G143: 0.05 | H143: 8.93 | I143: 35.63244878 | J143: 0 | K143: 0 | L143: 0 | M143: 0 | N143: 8.75 | O143: 0 | P143: 0.18 | Q143: 0 | R143: 0 | S143: 0.25 | T143: 0.08 | U143: 0.57 | V143: 7.35 | W143: 1.96 | X143: 0.5 | Y143: 0.9 | Z143: 0.05 | AA143: 0 | AB143: 0.4 | AC143: 0.09 | AD143: 0.01 | AE143: 0 | AF143: 0 | AG143: 0 | AH143: 0.01 | AI143: 0.7 | AJ143: 0 | AK143: 0.6 | AL143: 0.69 | AM143: 0.56 | AN143: 1.03 | AO143: 0.26 | AP143: 1.08 | AQ143: 0 | AR143: 1.38 | AS143: 0 | AT143: 0 | AU143: 0 | AV143: 0.77 | AW143: 0 | AX143: 0 | AY143: 0 | AZ143: 0 | BA143: 0 | BB143: 0 | BC143: 0 | BD143: 0 | BE143: 0 | BF143: 0 | BG143: 0 | BH143: 0 | BI143: 0 | BJ143: 0 | BK143: 0 | BL143: 0 | BM143: 0 | BN143: 0 | BO143: 0 | BP143: 0 | BQ143: 0 | BR143: 0 | BS143: 0 | BT143: 0 | BU143: 0 | BV143: 0 | BW143: 0 | BX143: 0 | BY143: 0 | BZ143: 0 | CA143: 0 | CB143: 179.55 | CE143: 0.07 | CG143: 3.21 | CH143: 3.1 | CI143: 3.16 | CJ143: 362.2 | CK143: 137.63 | CL143: 249.91 | CM143: 33.27 | CN143: 19.89 | CO143: 26.58 | CP143: 8.78 | CQ143: 0
A144: ="15/4" -> 15/4 | B144: Каша ячневая молочная с маслом сливочным | C144: 180 | D144: 5.37 | E144: 2.12 | F144: 4.29 | G144: 0.47 | H144: 30.37 | I144: 177.2516088 | J144: 3.06 | K144: 0.08 | L144: 0 | M144: 0 | N144: 6.82 | O144: 20.9 | P144: 2.65 | Q144: 0 | R144: 0 | S144: 0.07 | T144: 1.44 | U144: 216.17 | V144: 158.53 | W144: 103.69 | X144: 24.52 | Y144: 165.04 | Z144: 0.65 | AA144: 17.28 | AB144: 14.4 | AC144: 32.04 | AD144: 0.58 | AE144: 0.09 | AF144: 0.11 | AG144: 0.84 | AH144: 2.28 | AI144: 0.37 | AJ144: 0 | AK144: 163.85 | AL144: 158.74 | AM144: 175.16 | AN144: 119.96 | AO144: 54.72 | AP144: 86.19 | AQ144: 42.06 | AR144: 177.39 | AS144: 138.27 | AT144: 166.7 | AU144: 216.81 | AV144: 79.02 | AW144: 139.56 | AX144: 815.27 | AY144: 0 | AZ144: 444.93 | BA144: 133.8 | BB144: 102.94 | BC144: 68.02 | BD144: 0.09 | BE144: 0.04 | BF144: 0.02 | BG144: 0.05 | BH144: 0.05 | BI144: 0.25 | BJ144: 0 | BK144: 0.7 | BL144: 0 | BM144: 0.22 | BN144: 0 | BO144: 0 | BP144: 0 | BQ144: 0.05 | BR144: 0.07 | BS144: 0.57 | BT144: 0 | BU144: 0 | BV144: 0.03 | BW144: 0 | BX144: 0 | BY144: 0 | BZ144: 0 | CA144: 0 | CB144: 160.02 | CE144: 19.68 | CG144: 17.12 | CH144: 7.26 | CI144: 12.19 | CJ144: 1073.83 | CK144: 491.47 | CL144: 782.65 | CM144: 22.61 | CN144: 11.94 | CO144: 17.27 | CP144: 3.6 | CQ144: 0.45
A145: ="14/12" -> 14/12 | B145: Булочка дорожная | C145: 70 | D145: 5.42 | E145: 0.85 | F145: 7.86 | G145: 0.59 | H145: 38.65 | I145: 245.1636506 | J145: 5.47 | K145: 0.23 | L145: 0 | M145: 0 | N145: 9.08 | O145: 28.11 | P145: 1.45 | Q145: 0 | R145: 0 | S145: 0.02 | T145: 0.96 | U145: 176.81 | V145: 81.46 | W145: 33.75 | X145: 9.21 | Y145: 55.05 | Z145: 0.55 | AA145: 27.9 | AB145: 26.91 | AC145: 52.17 | AD145: 0.8 | AE145: 0.06 | AF145: 0.05 | AG145: 0.48 | AH145: 1.61 | AI145: 0.11 | AJ145: 0 | AK145: 246.56 | AL145: 226.47 | AM145: 418.7 | AN145: 167.07 | AO145: 85.4 | AP145: 169.48 | AQ145: 57.17 | AR145: 252.68 | AS145: 152.28 | AT145: 180.77 | AU145: 163.57 | AV145: 93.72 | AW145: 158.55 | AX145: 1353.11 | AY145: 2.3 | AZ145: 425.26 | BA145: 224.98 | BB145: 152.72 | BC145: 93.71 | BD145: 0.25 | BE145: 0.11 | BF145: 0.06 | BG145: 0.14 | BH145: 0.16 | BI145: 0.73 | BJ145: 0 | BK145: 2.09 | BL145: 0 | BM145: 0.63 | BN145: 0 | BO145: 0 | BP145: 0 | BQ145: 0.14 | BR145: 0.22 | BS145: 1.7 | BT145: 0 | BU145: 0 | BV145: 0.31 | BW145: 0.02 | BX145: 0 | BY145: 0 | BZ145: 0 | CA145: 0 | CB145: 28.44 | CE145: 32.38 | CG145: 28.6 | CH145: 14.01 | CI145: 21.3 | CJ145: 1622.25 | CK145: 569.86 | CL145: 1096.05 | CM145: 14.57 | CN145: 7.13 | CO145: 11.5 | CP145: 8.4 | CQ145: 0.42
B146: Итого за 'Ужин' | C146: =SUM(C141:C145) -> 470 | D146: =SUM(D141:D145) -> 13.64 | E146: 2.97 | F146: 12.57 | G146: 1.48 | H146: 95.67 | I146: 541.5039082 | J146: 8.57 | K146: 0.31 | L146: 0 | M146: 0 | N146: 25.11 | O146: 64.57 | P146: 5.98 | Q146: 0 | R146: 0 | S146: 0.54 | T146: 3.34 | U146: 515.55 | V146: 296.34 | W146: 146.4 | X146: 43.63 | Y146: 252.59 | Z146: 2.03 | AA146: 45.18 | AB146: 42.71 | AC146: 84.5 | AD146: 1.67 | AE146: 0.19 | AF146: 0.18 | AG146: 1.46 | AH146: 4.3 | AI146: 1.18 | AJ146: 0 | AK146: 539.27 | AL146: 501.97 | AM146: 781.61 | AN146: 366.42 | AO146: 178.99 | AP146: 336.37 | AQ146: 130.37 | AR146: 578.03 | AS146: 394.84 | AT146: 468.31 | AU146: 524.86 | AV146: 225.45 | AW146: 408.13 | AX146: 2881.77 | AY146: 2.3 | AZ146: 1106.24 | BA146: 473.88 | BB146: 329.42 | BC146: 217.66 | BD146: 0.34 | BE146: 0.15 | BF146: 0.08 | BG146: 0.19 | BH146: 0.21 | BI146: 0.98 | BJ146: 0 | BK146: 2.84 | BL146: 0 | BM146: 0.85 | BN146: 0 | BO146: 0 | BP146: =SUM(BP141:BP145) -> 0 | BQ146: 0.19 | BR146: 0.29 | BS146: 2.3 | BT146: 0 | BU146: 0 | BV146: 0.5 | BW146: 0.04 | BX146: 0 | BY146: 0 | BZ146: 0 | CA146: 0 | CB146: 385.23 | CC146: 0 | CD146: 0 | CE146: 52.3 | CF146: 0 | CG146: 50.43 | CH146: 25.87 | CI146: 38.15 | CJ146: 4008.28 | CK146: 1564.96 | CL146: 2786.61 | CM146: 78.62 | CN146: 46.65 | CO146: 63.28 | CP146: 20.78 | CQ146: 0.87
B147: Итого за день | C147: =C127+C130+C139+C146 -> 1645 | D147: =D127+D130+D139+D146 -> 50.28 | E147: 28.71 | F147: 48.45 | G147: 13.66 | H147: 258.15 | I147: 1645.814681 | J147: 23.99 | K147: 6 | L147: 0 | M147: 0 | N147: 86.77 | O147: 155.91 | P147: 15.46 | Q147: 0 | R147: 0 | S147: 2.91 | T147: 12.62 | U147: 1817.88 | V147: 1626.76 | W147: 642.63 | X147: 213.85 | Y147: 919.97 | Z147: 8.67 | AA147: 184.44 | AB147: 1452.7 | AC147: 519.53 | AD147: 7.87 | AE147: 0.67 | AF147: 0.89 | AG147: 8.23 | AH147: 20.31 | AI147: 16.61 | AJ147: 0 | AK147: 1999.15 | AL147: 1758.52 | AM147: 2912.75 | AN147: 2017.57 | AO147: 737.93 | AP147: 1436.64 | AQ147: 543.99 | AR147: 1893.71 | AS147: 1727.98 | AT147: 2086.55 | AU147: 2648.57 | AV147: 921.7 | AW147: 1941.72 | AX147: 8298.7 | AY147: 76.61 | AZ147: 3062.59 | BA147: 1802.77 | BB147: 1369.35 | BC147: 684.31 | BD147: 0.79 | BE147: 0.38 | BF147: 0.2 | BG147: 0.48 | BH147: 0.53 | BI147: 2.5 | BJ147: 0.03 | BK147: 7.47 | BL147: 0.02 | BM147: 2.44 | BN147: 0.06 | BO147: 0.05 | BP147: =BP127+BP130+BP139+BP146 -> 0 | BQ147: 0.44 | BR147: 0.68 | BS147: 8.47 | BT147: 0.01 | BU147: 0 | BV147: 6.42 | BW147: 0.12 | BX147: 0.08 | BY147: 0 | BZ147: 0 | CA147: 0 | CB147: 1469.61 | CC147: 0 | CD147: 0 | CE147: 426.56 | CF147: 0 | CG147: 171.8 | CH147: 91.3 | CI147: 131.55 | CJ147: 15774.98 | CK147: 7575 | CL147: 11674.98 | CM147: 266.37 | CN147: 154.54 | CO147: 211.09 | CP147: 55.13 | CQ147: 2.66
B149: 6 день
B150: Завтрак
A151: ="-" -> - | B151: Батон | C151: 40 | D151: 3.08 | E151: 0 | F151: 1.2 | G151: 1.2 | H151: 21.32 | I151: 107.808 | J151: 0.2 | K151: 0 | L151: 0 | M151: 0 | N151: 1.32 | O151: 18.72 | P151: 1.28 | Q151: 0 | R151: 0 | S151: 0.12 | T151: 0.64 | U151: 171.6 | V151: 52.4 | W151: 8.8 | X151: 13.2 | Y151: 34 | Z151: 0.8 | AA151: 0 | AB151: 0 | AC151: 0 | AD151: 0.68 | AE151: 0.06 | AF151: 0.02 | AG151: 0.64 | AH151: 1.2 | AI151: 0 | AJ151: 0 | AK151: 148.8 | AL151: 154.4 | AM151: 236.4 | AN151: 79.6 | AO151: 46.8 | AP151: 93.6 | AQ151: 35.2 | AR151: 168 | AS151: 104.4 | AT151: 145.2 | AU151: 120.4 | AV151: 64.4 | AW151: 112 | AX151: 930 | AY151: 0 | AZ151: 302.8 | BA151: 132.4 | BB151: 88.8 | BC151: 69.2 | BD151: 0 | BE151: 0 | BF151: 0 | BG151: 0 | BH151: 0 | BI151: 0.01 | BJ151: 0 | BK151: 0.13 | BL151: 0 | BM151: 0.06 | BN151: 0 | BO151: 0 | BP151: 0 | BQ151: 0 | BR151: 0 | BS151: 0.47 | BT151: 0 | BU151: 0 | BV151: 0.35 | BW151: 0.01 | BX151: 0 | BY151: 0 | BZ151: 0 | CA151: 0 | CB151: 13.64 | CE151: 0 | CG151: 0 | CH151: 0 | CI151: 0 | CJ151: 665 | CK151: 256.2 | CL151: 460.6 | CM151: 5.32 | CN151: 5.32 | CO151: 5.32 | CP151: 0 | CQ151: 0
A152: ="-" -> - | B152: Масло сливочное | C152: 5 | D152: 0.04 | E152: 0.04 | F152: 3.63 | G152: 0 | H152: 0.07 | I152: 33.032 | J152: 2.36 | K152: 0.11 | L152: 0 | M152: 0 | N152: 0.07 | O152: 0 | P152: 0 | Q152: 0 | R152: 0 | S152: 0 | T152: 0.07 | U152: 0.75 | V152: 1.5 | W152: 1.2 | X152: 0 | Y152: 1.5 | Z152: 0.01 | AA152: 20 | AB152: 15 | AC152: 22.5 | AD152: 0.05 | AE152: 0 | AF152: 0.01 | AG152: 0.01 | AH152: 0.01 | AI152: 0 | AJ152: 0 | AK152: 2.1 | AL152: 2.05 | AM152: 3.8 | AN152: 2.25 | AO152: 0.85 | AP152: 2.35 | AQ152: 2.15 | AR152: 2.1 | AS152: 1.8 | AT152: 1.3 | AU152: 2.85 | AV152: 1.75 | AW152: 1.2 | AX152: 7.1 | AY152: 0 | AZ152: 2.4 | BA152: 2.7 | BB152: 2.1 | BC152: 0.5 | BD152: 0.13 | BE152: 0.06 | BF152: 0.03 | BG152: 0.08 | BH152: 0.09 | BI152: 0.4 | BJ152: 0 | BK152: 1.1 | BL152: 0 | BM152: 0.34 | BN152: 0 | BO152: 0 | BP152: 0 | BQ152: 0.08 | BR152: 0.12 | BS152: 0.9 | BT152: 0 | BU152: 0 | BV152: 0.05 | BW152: 0 | BX152: 0 | BY152: 0 | BZ152: 0 | CA152: 0 | CB152: 1.25 | CE152: 22.5 | CG152: 0.2 | CH152: 0.05 | CI152: 0.13 | CJ152: 10 | CK152: 4.1 | CL152: 7.05 | CM152: 0.86 | CN152: 0.44 | CO152: 0.65 | CP152: 0 | CQ152: 0
A153: ="31/10" -> 31/10 | B153: Чай с молоком (вариант 2) | C153: 180 | D153: 1.46 | E153: 1.28 | F153: 1.15 | G153: 0.04 | H153: 11.05 | I153: 58.09851 | J153: 0.77 | K153: 0 | L153: 0 | M153: 0 | N153: 10.95 | O153: 0 | P153: 0.09 | Q153: 0 | R153: 0 | S153: 0.05 | T153: 0.37 | U153: 22.36 | V153: 65.31 | W153: 52.64 | X153: 5.99 | Y153: 37.67 | Z153: 0.07 | AA153: 9 | AB153: 4.05 | AC153: 9.9 | AD153: 0 | AE153: 0.02 | AF153: 0.06 | AG153: 0.04 | AH153: 0.36 | AI153: 0.23 | AJ153: 0 | AK153: 0 | AL153: 0 | AM153: 0 | AN153: 0 | AO153: 0 | AP153: 0 | AQ153: 0 | AR153: 0 | AS153: 0 | AT153: 0 | AU153: 0 | AV153: 0 | AW153: 0 | AX153: 0 | AY153: 0 | AZ153: 0 | BA153: 0 | BB153: 0 | BC153: 0 | BD153: 0 | BE153: 0 | BF153: 0 | BG153: 0 | BH153: 0 | BI153: 0 | BJ153: 0 | BK153: 0 | BL153: 0 | BM153: 0 | BN153: 0 | BO153: 0 | BP153: 0 | BQ153: 0 | BR153: 0 | BS153: 0 | BT153: 0 | BU153: 0 | BV153: 0 | BW153: 0 | BX153: 0 | BY153: 0 | BZ153: 0 | CA153: 0 | CB153: 175.14 | CE153: 9.68 | CG153: 6.92 | CH153: 3.77 | CI153: 5.35 | CJ153: 605.25 | CK153: 223.2 | CL153: 414.23 | CM153: 36.02 | CN153: 19.37 | CO153: 27.69 | CP153: 9 | CQ153: 0
A154: ="11/4" -> 11/4 | B154: Каша пшенная молочная с маслом сливочным | C154: 180 | D154: 5.89 | E154: 2.12 | F154: 5.5 | G154: 1.19 | H154: 29.37 | I154: 189.0927954 | J154: 3.45 | K154: 0.1 | L154: 0 | M154: 0 | N154: 7.02 | O154: 21.16 | P154: 1.18 | Q154: 0 | R154: 0 | S154: 0.07 | T154: 1.42 | U154: 214.51 | V154: 160.67 | W154: 87.09 | X154: 34.85 | Y154: 130.82 | Z154: 0.94 | AA154: 19.44 | AB154: 22.32 | AC154: 37.17 | AD154: 0.15 | AE154: 0.13 | AF154: 0.1 | AG154: 0.52 | AH154: 2.24 | AI154: 0.37 | AJ154: 0 | AK154: 160.82 | AL154: 147.25 | AM154: 522.32 | AN154: 99.36 | AO154: 100.89 | AP154: 137.35 | AQ154: 62.73 | AR154: 198.05 | AS154: 365.3 | AT154: 144.92 | AU154: 222.37 | AV154: 89.46 | AW154: 102.54 | AX154: 757.25 | AY154: 0 | AZ154: 276.13 | BA154: 239.16 | BB154: 140.52 | BC154: 61.34 | BD154: 0.11 | BE154: 0.05 | BF154: 0.03 | BG154: 0.06 | BH154: 0.07 | BI154: 0.32 | BJ154: 0 | BK154: 0.95 | BL154: 0 | BM154: 0.29 | BN154: 0.01 | BO154: 0 | BP154: 0 | BQ154: 0.06 | BR154: 0.1 | BS154: 0.88 | BT154: 0 | BU154: 0 | BV154: 0.7 | BW154: 0.01 | BX154: 0 | BY154: 0 | BZ154: 0 | CA154: 0 | CB154: 149.45 | CE154: 23.16 | CG154: 23.28 | CH154: 11.46 | CI154: 17.37 | CJ154: 1594.25 | CK154: 730.44 | CL154: 1162.35 | CM154: 27.55 | CN154: 14.21 | CO154: 20.88 | CP154: 3.6 | CQ154: 0.45
B155: Итого за 'Завтрак' | C155: =SUM(C151:C154) -> 405 | D155: =SUM(D151:D154) -> 10.47 | E155: 3.44 | F155: 11.48 | G155: 2.43 | H155: 61.81 | I155: 388.0313054 | J155: 6.78 | K155: 0.21 | L155: 0 | M155: 0 | N155: 19.36 | O155: 39.88 | P155: 2.55 | Q155: 0 | R155: 0 | S155: 0.24 | T155: 2.5 | U155: 409.22 | V155: 279.88 | W155: 149.73 | X155: 54.04 | Y155: 203.99 | Z155: 1.82 | AA155: 48.44 | AB155: 41.37 | AC155: 69.57 | AD155: 0.88 | AE155: 0.21 | AF155: 0.19 | AG155: 1.21 | AH155: 3.81 | AI155: 0.6 | AJ155: 0 | AK155: 311.72 | AL155: 303.7 | AM155: 762.52 | AN155: 181.21 | AO155: 148.54 | AP155: 233.3 | AQ155: 100.08 | AR155: 368.15 | AS155: 471.5 | AT155: 291.42 | AU155: 345.62 | AV155: 155.61 | AW155: 215.74 | AX155: 1694.35 | AY155: 0 | AZ155: 581.33 | BA155: 374.26 | BB155: 231.42 | BC155: 131.04 | BD155: 0.24 | BE155: 0.11 | BF155: 0.06 | BG155: 0.14 | BH155: 0.16 | BI155: 0.73 | BJ155: 0 | BK155: 2.18 | BL155: 0 | BM155: 0.69 | BN155: 0.01 | BO155: 0 | BP155: =SUM(BP151:BP154) -> 0 | BQ155: 0.14 | BR155: 0.22 | BS155: 2.25 | BT155: 0 | BU155: 0 | BV155: 1.1 | BW155: 0.02 | BX155: 0 | BY155: 0 | BZ155: 0 | CA155: 0 | CB155: 339.48 | CC155: 0 | CD155: 0 | CE155: 55.34 | CF155: 0 | CG155: 30.4 | CH155: 15.28 | CI155: 22.85 | CJ155: 2874.5 | CK155: 1213.94 | CL155: 2044.23 | CM155: 69.75 | CN155: 39.34 | CO155: 54.54 | CP155: 12.6 | CQ155: 0.45
B156: 10:00
A157: ="-" -> - | B157: Сок | C157: 100 | D157: 0.5 | E157: 0 | F157: 0.1 | G157: 0 | H157: 10.3 | I157: 43.24 | J157: 0 | K157: 0 | L157: 0 | M157: 0 | N157: 9.9 | O157: 0.2 | P157: 0.2 | Q157: 0 | R157: 0 | S157: 0.5 | T157: 0.3 | U157: 6 | V157: 120 | W157: 7 | X157: 4 | Y157: 7 | Z157: 1.4 | AA157: 0 | AB157: 0 | AC157: 0 | AD157: 0.1 | AE157: 0.01 | AF157: 0.01 | AG157: 0.1 | AH157: 0.2 | AI157: 2 | AJ157: 0.2 | AK157: 8 | AL157: 10 | AM157: 14 | AN157: 14 | AO157: 2 | AP157: 8 | AQ157: 2 | AR157: 7 | AS157: 13 | AT157: 8 | AU157: 58 | AV157: 5 | AW157: 11 | AX157: 32 | AY157: 0 | AZ157: 10 | BA157: 12 | BB157: 5 | BC157: 4 | BD157: 0 | BE157: 0 | BF157: 0 | BG157: 0 | BH157: 0 | BI157: 0 | BJ157: 0 | BK157: 0 | BL157: 0 | BM157: 0 | BN157: 0 | BO157: 0 | BP157: 0 | BQ157: 0 | BR157: 0 | BS157: 0 | BT157: 0 | BU157: 0 | BV157: 0 | BW157: 0 | BX157: 0 | BY157: 0 | BZ157: 0 | CA157: 0 | CB157: 88.1 | CE157: 0 | CG157: 2 | CH157: 2 | CI157: 2 | CJ157: 200 | CK157: 91 | CL157: 145.5 | CM157: 0.3 | CN157: 0.3 | CO157: 0.3 | CP157: 0 | CQ157: 0
B158: Итого за '10:00' | C158: =SUM(C157) -> 100 | D158: =SUM(D157) -> 0.5 | E158: 0 | F158: 0.1 | G158: 0 | H158: 10.3 | I158: 43.24 | J158: 0 | K158: 0 | L158: 0 | M158: 0 | N158: 9.9 | O158: 0.2 | P158: 0.2 | Q158: 0 | R158: 0 | S158: 0.5 | T158: 0.3 | U158: 6 | V158: 120 | W158: 7 | X158: 4 | Y158: 7 | Z158: 1.4 | AA158: 0 | AB158: 0 | AC158: 0 | AD158: 0.1 | AE158: 0.01 | AF158: 0.01 | AG158: 0.1 | AH158: 0.2 | AI158: 2 | AJ158: 0.2 | AK158: 8 | AL158: 10 | AM158: 14 | AN158: 14 | AO158: 2 | AP158: 8 | AQ158: 2 | AR158: 7 | AS158: 13 | AT158: 8 | AU158: 58 | AV158: 5 | AW158: 11 | AX158: 32 | AY158: 0 | AZ158: 10 | BA158: 12 | BB158: 5 | BC158: 4 | BD158: 0 | BE158: 0 | BF158: 0 | BG158: 0 | BH158: 0 | BI158: 0 | BJ158: 0 | BK158: 0 | BL158: 0 | BM158: 0 | BN158: 0 | BO158: 0 | BP158: =SUM(BP157) -> 0 | BQ158: 0 | BR158: 0 | BS158: 0 | BT158: 0 | BU158: 0 | BV158: 0 | BW158: 0 | BX158: 0 | BY158: 0 | BZ158: 0 | CA158: 0 | CB158: 88.1 | CC158: 0 | CD158: 0 | CE158: 0 | CF158: 0 | CG158: 2 | CH158: 2 | CI158: 2 | CJ158: 200 | CK158: 91 | CL158: 145.5 | CM158: 0.3 | CN158: 0.3 | CO158: 0.3 | CP158: 0 | CQ158: 0
B159: Обед
A160: ="-" -> - | B160: Хлеб пшеничный | C160: 20 | D160: 1.32 | E160: 0 | F160: 0.13 | G160: 0.13 | H160: 9.38 | I160: 44.7802 | J160: 0 | K160: 0 | L160: 0 | M160: 0 | N160: 0.22 | O160: 9.12 | P160: 0.04 | Q160: 0 | R160: 0 | S160: 0 | T160: 0.36 | U160: 0 | V160: 0 | W160: 0 | X160: 0 | Y160: 0 | Z160: 0 | AA160: 0 | AB160: 0 | AC160: 0 | AD160: 0 | AE160: 0 | AF160: 0 | AG160: 0 | AH160: 0 | AI160: 0 | AJ160: 0 | AK160: 63.86 | AL160: 66.47 | AM160: 101.79 | AN160: 33.76 | AO160: 20.01 | AP160: 40.02 | AQ160: 15.14 | AR160: 72.38 | AS160: 44.89 | AT160: 62.64 | AU160: 51.68 | AV160: 27.14 | AW160: 48.02 | AX160: 401.59 | AY160: 0 | AZ160: 130.85 | BA160: 56.9 | BB160: 37.76 | BC160: 29.93 | BD160: 0 | BE160: 0 | BF160: 0 | BG160: 0 | BH160: 0 | BI160: 0 | BJ160: 0 | BK160: 0.02 | BL160: 0 | BM160: 0 | BN160: 0 | BO160: 0 | BP160: 0 | BQ160: 0 | BR160: 0 | BS160: 0.01 | BT160: 0 | BU160: 0 | BV160: 0.06 | BW160: 0 | BX160: 0 | BY160: 0 | BZ160: 0 | CA160: 0 | CB160: 7.82 | CE160: 0 | CG160: 0 | CH160: 0 | CI160: 0 | CJ160: 380 | CK160: 146.4 | CL160: 263.2 | CM160: 3.04 | CN160: 3.04 | CO160: 3.04 | CP160: 0 | CQ160: 0
A161: ="-" -> - | B161: Хлеб ржаной | C161: 20 | D161: 1.32 | E161: 0 | F161: 0.24 | G161: 0.24 | H161: 8.34 | I161: 38.676 | J161: 0.04 | K161: 0 | L161: 0 | M161: 0 | N161: 0.24 | O161: 6.44 | P161: 1.66 | Q161: 0 | R161: 0 | S161: 0.2 | T161: 0.5 | U161: 122 | V161: 49 | W161: 7 | X161: 9.4 | Y161: 31.6 | Z161: 0.78 | AA161: 0 | AB161: 1 | AC161: 0.2 | AD161: 0.28 | AE161: 0.04 | AF161: 0.02 | AG161: 0.14 | AH161: 0.4 | AI161: 0 | AJ161: 0 | AK161: 64.4 | AL161: 49.6 | AM161: 85.4 | AN161: 44.6 | AO161: 18.6 | AP161: 39.6 | AQ161: 16 | AR161: 74.2 | AS161: 59.4 | AT161: 58.2 | AU161: 92.8 | AV161: 24.8 | AW161: 62 | AX161: 311.8 | AY161: 0 | AZ161: 105.2 | BA161: 58.2 | BB161: 36 | BC161: 26 | BD161: 0 | BE161: 0 | BF161: 0 | BG161: 0 | BH161: 0 | BI161: 0 | BJ161: 0 | BK161: 0.03 | BL161: 0 | BM161: 0 | BN161: 0 | BO161: 0 | BP161: 0 | BQ161: 0 | BR161: 0 | BS161: 0.02 | BT161: 0 | BU161: 0 | BV161: 0.1 | BW161: 0.02 | BX161: 0 | BY161: 0 | BZ161: 0 | CA161: 0 | CB161: 9.4 | CE161: 0.17 | CG161: 1 | CH161: 1 | CI161: 1 | CJ161: 190 | CK161: 73.2 | CL161: 131.6 | CM161: 1.9 | CN161: 1.58 | CO161: 1.74 | CP161: 0 | CQ161: 0
A162: ="6/10" -> 6/10 | B162: Компот из сухофруктов | C162: 180 | D162: 0.92 | E162: 0 | F162: 0.05 | G162: 0.05 | H162: 20.86 | I162: 78.839028 | J162: 0.02 | K162: 0 | L162: 0 | M162: 0 | N162: 17.27 | O162: 0.51 | P162: 3.08 | Q162: 0 | R162: 0 | S162: 0.27 | T162: 0.73 | U162: 3.12 | V162: 306.24 | W162: 28.2 | X162: 17.96 | Y162: 24.44 | Z162: 0.58 | AA162: 0 | AB162: 567 | AC162: 104.94 | AD162: 0.99 | AE162: 0.02 | AF162: 0.03 | AG162: 0.46 | AH162: 0.7 | AI162: 0.29 | AJ162: 0 | AK162: 0.01 | AL162: 0.01 | AM162: 0.01 | AN162: 0.02 | AO162: 0 | AP162: 0.01 | AQ162: 0 | AR162: 0.01 | AS162: 0.01 | AT162: 0.01 | AU162: 0.05 | AV162: 0 | AW162: 0.01 | AX162: 0.02 | AY162: 0 | AZ162: 0.01 | BA162: 0.01 | BB162: 0.01 | BC162: 0 | BD162: 0 | BE162: 0 | BF162: 0 | BG162: 0 | BH162: 0 | BI162: 0 | BJ162: 0 | BK162: 0 | BL162: 0 | BM162: 0 | BN162: 0 | BO162: 0 | BP162: 0 | BQ162: 0 | BR162: 0 | BS162: 0.01 | BT162: 0 | BU162: 0 | BV162: 0.01 | BW162: 0 | BX162: 0 | BY162: 0 | BZ162: 0 | CA162: 0 | CB162: 192.61 | CE162: 94.5 | CG162: 3.95 | CH162: 3.95 | CI162: 3.95 | CJ162: 454.5 | CK162: 172.98 | CL162: 313.74 | CM162: 41.94 | CN162: 24.93 | CO162: 33.44 | CP162: 9 | CQ162: 0
A163: ="14/2" -> 14/2 | B163: Суп картофельный с крупой на костном бульоне | C163: 180 | D163: 1.6 | E163: 5.86 | F163: 3.48 | G163: 3.95 | H163: 12.09 | I163: 84.3455718 | J163: 0.53 | K163: 2.34 | L163: 0 | M163: 0 | N163: 1.52 | O163: 9.2 | P163: 1.36 | Q163: 0 | R163: 0 | S163: 0.14 | T163: 1.14 | U163: 143.89 | V163: 302.97 | W163: 9.74 | X163: 20.18 | Y163: 43.05 | Z163: 0.72 | AA163: 0 | AB163: 700.13 | AC163: 145.69 | AD163: 1.71 | AE163: 0.06 | AF163: 0.04 | AG163: 0.75 | AH163: 1.34 | AI163: 4.68 | AJ163: 0 | AK163: 35.57 | AL163: 38.24 | AM163: 53.57 | AN163: 50.97 | AO163: 16.51 | AP163: 36.01 | AQ163: 16.79 | AR163: 42.94 | AS163: 52.32 | AT163: 121.9 | AU163: 81.96 | AV163: 18.22 | AW163: 47.14 | AX163: 204.06 | AY163: 0 | AZ163: 34.18 | BA163: 36.45 | BB163: 31 | BC163: 18.58 | BD163: 0 | BE163: 0 | BF163: 0 | BG163: 0 | BH163: 0 | BI163: 0 | BJ163: 0 | BK163: 0.25 | BL163: 0 | BM163: 0.14 | BN163: 0.01 | BO163: 0.02 | BP163: 0 | BQ163: 0 | BR163: 0 | BS163: 0.86 | BT163: 0 | BU163: 0 | BV163: 2.21 | BW163: 0 | BX163: 0 | BY163: 0 | BZ163: 0 | CA163: 0 | CB163: 179.93 | CE163: 116.69 | CG163: 20.4 | CH163: 13.1 | CI163: 16.75 | CJ163: 691.86 | CK163: 391.87 | CL163: 541.86 | CM163: 38.66 | CN163: 18.8 | CO163: 28.73 | CP163: 0 | CQ163: 0.36
A164: ="292/17" -> 292/17 | B164: Жаркое из мясо птиц с овощами | C164: 180 | D164: 17.22 | E164: 15.2 | F164: 22.71 | G164: 7.34 | H164: 15.48 | I164: 332.3122932 | J164: 4.71 | K164: 4.68 | L164: 0 | M164: 0 | N164: 4.87 | O164: 8.67 | P164: 1.93 | Q164: 0 | R164: 0 | S164: 0.38 | T164: 2.53 | U164: 299.2 | V164: 634.73 | W164: 34.27 | X164: 42.69 | Y164: 189.98 | Z164: 2.31 | AA164: 59.64 | AB164: 3096.47 | AC164: 633.14 | AD164: 3.86 | AE164: 0.14 | AF164: 0.18 | AG164: 6.6 | AH164: 12.27 | AI164: 7.67 | AJ164: 0 | AK164: 758.59 | AL164: 611.62 | AM164: 1220.27 | AN164: 1365.64 | AO164: 401.58 | AP164: 746.07 | AQ164: 258.57 | AR164: 653.71 | AS164: 1010.64 | AT164: 1128.02 | AU164: 1439.5 | AV164: 417.84 | AW164: 1179.19 | AX164: 2347.98 | AY164: 126.08 | AZ164: 758.02 | BA164: 742.04 | BB164: 557.72 | BC164: 197.92 | BD164: 0 | BE164: 0 | BF164: 0 | BG164: 0 | BH164: 0 | BI164: 0 | BJ164: 0 | BK164: 0.48 | BL164: 0 | BM164: 0.3 | BN164: 0.02 | BO164: 0.05 | BP164: 0 | BQ164: 0 | BR164: 0 | BS164: 1.77 | BT164: 0 | BU164: 0 | BV164: 4.22 | BW164: 0 | BX164: 0 | BY164: 0 | BZ164: 0 | CA164: 0 | CB164: 142.41 | CE164: 575.72 | CG164: 34.98 | CH164: 19.15 | CI164: 27.07 | CJ164: 3345.68 | CK164: 2068.04 | CL164: 2706.86 | CM164: 30.87 | CN164: 16.12 | CO164: 23.49 | CP164: 0 | CQ164: 0.6
B165: Итого за 'Обед' | C165: =SUM(C160:C164) -> 580 | D165: =SUM(D160:D164) -> 22.38 | E165: 21.06 | F165: 26.61 | G165: 11.71 | H165: 66.15 | I165: 578.953093 | J165: 5.3 | K165: 7.02 | L165: 0 | M165: 0 | N165: 24.12 | O165: 33.94 | P165: 8.07 | Q165: 0 | R165: 0 | S165: 0.99 | T165: 5.26 | U165: 568.21 | V165: 1292.94 | W165: 79.21 | X165: 90.23 | Y165: 289.07 | Z165: 4.39 | AA165: 59.64 | AB165: 4364.6 | AC165: 883.97 | AD165: 6.84 | AE165: 0.26 | AF165: 0.27 | AG165: 7.95 | AH165: 14.71 | AI165: 12.64 | AJ165: 0 | AK165: 922.43 | AL165: 765.94 | AM165: 1461.04 | AN165: 1494.99 | AO165: 456.7 | AP165: 861.71 | AQ165: 306.5 | AR165: 843.24 | AS165: 1167.26 | AT165: 1370.77 | AU165: 1665.99 | AV165: 488 | AW165: 1336.36 | AX165: 3265.45 | AY165: 126.08 | AZ165: 1028.26 | BA165: 893.6 | BB165: 662.49 | BC165: 272.43 | BD165: 0 | BE165: 0 | BF165: 0 | BG165: 0 | BH165: 0 | BI165: 0 | BJ165: 0 | BK165: 0.78 | BL165: 0 | BM165: 0.44 | BN165: 0.03 | BO165: 0.07 | BP165: =SUM(BP160:BP164) -> 0 | BQ165: 0 | BR165: 0 | BS165: 2.67 | BT165: 0 | BU165: 0 | BV165: 6.6 | BW165: 0.02 | BX165: 0 | BY165: 0 | BZ165: 0 | CA165: 0 | CB165: 532.17 | CC165: 0 | CD165: 0 | CE165: 787.08 | CF165: 0 | CG165: 60.33 | CH165: 37.2 | CI165: 48.77 | CJ165: 5062.04 | CK165: 2852.49 | CL165: 3957.26 | CM165: 116.41 | CN165: 64.47 | CO165: 90.44 | CP165: 9 | CQ165: 0.96
B166: Ужин
A167: ="-" -> - | B167: Хлеб пшеничный | C167: 20 | D167: 1.32 | E167: 0 | F167: 0.13 | G167: 0.13 | H167: 9.38 | I167: 44.7802 | J167: 0 | K167: 0 | L167: 0 | M167: 0 | N167: 0.22 | O167: 9.12 | P167: 0.04 | Q167: 0 | R167: 0 | S167: 0 | T167: 0.36 | U167: 0 | V167: 0 | W167: 0 | X167: 0 | Y167: 0 | Z167: 0 | AA167: 0 | AB167: 0 | AC167: 0 | AD167: 0 | AE167: 0 | AF167: 0 | AG167: 0 | AH167: 0 | AI167: 0 | AJ167: 0 | AK167: 63.86 | AL167: 66.47 | AM167: 101.79 | AN167: 33.76 | AO167: 20.01 | AP167: 40.02 | AQ167: 15.14 | AR167: 72.38 | AS167: 44.89 | AT167: 62.64 | AU167: 51.68 | AV167: 27.14 | AW167: 48.02 | AX167: 401.59 | AY167: 0 | AZ167: 130.85 | BA167: 56.9 | BB167: 37.76 | BC167: 29.93 | BD167: 0 | BE167: 0 | BF167: 0 | BG167: 0 | BH167: 0 | BI167: 0 | BJ167: 0 | BK167: 0.02 | BL167: 0 | BM167: 0 | BN167: 0 | BO167: 0 | BP167: 0 | BQ167: 0 | BR167: 0 | BS167: 0.01 | BT167: 0 | BU167: 0 | BV167: 0.06 | BW167: 0 | BX167: 0 | BY167: 0 | BZ167: 0 | CA167: 0 | CB167: 7.82 | CE167: 0 | CG167: 0 | CH167: 0 | CI167: 0 | CJ167: 665 | CK167: 256.2 | CL167: 460.6 | CM167: 5.32 | CN167: 5.32 | CO167: 5.32 | CP167: 0 | CQ167: 0
A168: ="-" -> - | B168: Хлеб ржаной | C168: 20 | D168: 1.32 | E168: 0 | F168: 0.24 | G168: 0.24 | H168: 8.34 | I168: 38.676 | J168: 0.04 | K168: 0 | L168: 0 | M168: 0 | N168: 0.24 | O168: 6.44 | P168: 1.66 | Q168: 0 | R168: 0 | S168: 0.2 | T168: 0.5 | U168: 122 | V168: 49 | W168: 7 | X168: 9.4 | Y168: 31.6 | Z168: 0.78 | AA168: 0 | AB168: 1 | AC168: 0.2 | AD168: 0.28 | AE168: 0.04 | AF168: 0.02 | AG168: 0.14 | AH168: 0.4 | AI168: 0 | AJ168: 0 | AK168: 64.4 | AL168: 49.6 | AM168: 85.4 | AN168: 44.6 | AO168: 18.6 | AP168: 39.6 | AQ168: 16 | AR168: 74.2 | AS168: 59.4 | AT168: 58.2 | AU168: 92.8 | AV168: 24.8 | AW168: 62 | AX168: 311.8 | AY168: 0 | AZ168: 105.2 | BA168: 58.2 | BB168: 36 | BC168: 26 | BD168: 0 | BE168: 0 | BF168: 0 | BG168: 0 | BH168: 0 | BI168: 0 | BJ168: 0 | BK168: 0.03 | BL168: 0 | BM168: 0 | BN168: 0 | BO168: 0 | BP168: 0 | BQ168: 0 | BR168: 0 | BS168: 0.02 | BT168: 0 | BU168: 0 | BV168: 0.1 | BW168: 0.02 | BX168: 0 | BY168: 0 | BZ168: 0 | CA168: 0 | CB168: 9.4 | CE168: 0.17 | CG168: 1.5 | CH168: 1.5 | CI168: 1.5 | CJ168: 285 | CK168: 109.8 | CL168: 197.4 | CM168: 2.85 | CN168: 2.37 | CO168: 2.61 | CP168: 0 | CQ168: 0
A169: ="27/10" -> 27/10 | B169: Чай | C169: 180 | D169: 0.18 | E169: 0 | F169: 0.04 | G169: 0.04 | H169: 8.93 | I169: 34.88157 | J169: 0 | K169: 0 | L169: 0 | M169: 0 | N169: 8.84 | O169: 0 | P169: 0.09 | Q169: 0 | R169: 0 | S169: 0 | T169: 0.06 | U169: 0.09 | V169: 0.27 | W169: 0.26 | X169: 0 | Y169: 0 | Z169: 0.03 | AA169: 0 | AB169: 0 | AC169: 0 | AD169: 0 | AE169: 0 | AF169: 0 | AG169: 0 | AH169: 0 | AI169: 0 | AJ169: 0 | AK169: 0 | AL169: 0 | AM169: 0 | AN169: 0 | AO169: 0 | AP169: 0 | AQ169: 0 | AR169: 0 | AS169: 0 | AT169: 0 | AU169: 0 | AV169: 0 | AW169: 0 | AX169: 0 | AY169: 0 | AZ169: 0 | BA169: 0 | BB169: 0 | BC169: 0 | BD169: 0 | BE169: 0 | BF169: 0 | BG169: 0 | BH169: 0 | BI169: 0 | BJ169: 0 | BK169: 0 | BL169: 0 | BM169: 0 | BN169: 0 | BO169: 0 | BP169: 0 | BQ169: 0 | BR169: 0 | BS169: 0 | BT169: 0 | BU169: 0 | BV169: 0 | BW169: 0 | BX169: 0 | BY169: 0 | BZ169: 0 | CA169: 0 | CB169: 180.09 | CE169: 0 | CG169: 3.14 | CH169: 3.14 | CI169: 3.14 | CJ169: 363.75 | CK169: 138 | CL169: 250.88 | CM169: 33.32 | CN169: 19.82 | CO169: 26.57 | CP169: 9 | CQ169: 0
A170: ="24/2" -> 24/2 | B170: Суп молочный с макаронными изделиями | C170: 180 | D170: 4.76 | E170: 3.6 | F170: 4.5 | G170: 0.14 | H170: 14.54 | I170: 116.6125918 | J170: 3.01 | K170: 0.04 | L170: 0 | M170: 0 | N170: 7.22 | O170: 6.95 | P170: 0.38 | Q170: 0 | R170: 0 | S170: 0.13 | T170: 1.32 | U170: 200.93 | V170: 195.87 | W170: 150.39 | X170: 18.47 | Y170: 114.95 | Z170: 0.31 | AA170: 32.4 | AB170: 16.2 | AC170: 35.82 | AD170: 0.18 | AE170: 0.06 | AF170: 0.18 | AG170: 0.22 | AH170: 1.32 | AI170: 0.66 | AJ170: 0 | AK170: 51.12 | AL170: 46.76 | AM170: 87.6 | AN170: 27.57 | AO170: 16.71 | AP170: 34.06 | AQ170: 11.45 | AR170: 54.3 | AS170: 35.99 | AT170: 43.22 | AU170: 37.41 | AV170: 22 | AW170: 37.89 | AX170: 332.09 | AY170: 0 | AZ170: 104.68 | BA170: 54.51 | BB170: 27.52 | BC170: 21.56 | BD170: 0.05 | BE170: 0.02 | BF170: 0.01 | BG170: 0.03 | BH170: 0.03 | BI170: 0.14 | BJ170: 0 | BK170: 0.41 | BL170: 0 | BM170: 0.12 | BN170: 0 | BO170: 0 | BP170: 0 | BQ170: 0.03 | BR170: 0.04 | BS170: 0.32 | BT170: 0 | BU170: 0 | BV170: 0.06 | BW170: 0 | BX170: 0 | BY170: 0 | BZ170: 0 | CA170: 0 | CB170: 150 | CE170: 35.1 | CG170: 26.71 | CH170: 10.64 | CI170: 18.68 | CJ170: 886.94 | CK170: 375.42 | CL170: 631.18 | CM170: 26.47 | CN170: 9.57 | CO170: 18.02 | CP170: 1.08 | CQ170: 0.36
A171: ="-" -> - | B171: Фрукты | C171: 100 | D171: 0.4 | E171: 0 | F171: 0.4 | G171: 0.4 | H171: 11.6 | I171: 48.68 | J171: 0.1 | K171: 0 | L171: 0 | M171: 0 | N171: 9 | O171: 0.8 | P171: 1.8 | Q171: 0 | R171: 0 | S171: 0.8 | T171: 0.5 | U171: 26 | V171: 278 | W171: 16 | X171: 9 | Y171: 11 | Z171: 2.2 | AA171: 0 | AB171: 30 | AC171: 5 | AD171: 0.2 | AE171: 0.03 | AF171: 0.02 | AG171: 0.3 | AH171: 0.4 | AI171: 10 | AJ171: 0 | AK171: 12 | AL171: 13 | AM171: 19 | AN171: 18 | AO171: 3 | AP171: 11 | AQ171: 3 | AR171: 9 | AS171: 17 | AT171: 10 | AU171: 78 | AV171: 7 | AW171: 14 | AX171: 42 | AY171: 0 | AZ171: 13 | BA171: 16 | BB171: 6 | BC171: 5 | BD171: 0 | BE171: 0 | BF171: 0 | BG171: 0 | BH171: 0 | BI171: 0 | BJ171: 0 | BK171: 0 | BL171: 0 | BM171: 0 | BN171: 0 | BO171: 0 | BP171: 0 | BQ171: 0 | BR171: 0 | BS171: 0 | BT171: 0 | BU171: 0 | BV171: 0 | BW171: 0 | BX171: 0 | BY171: 0 | BZ171: 0 | CA171: 0 | CB171: 86.3 | CE171: 5 | CG171: 2 | CH171: 2 | CI171: 2 | CJ171: 150 | CK171: 150 | CL171: 150 | CM171: 46.8 | CN171: 46.8 | CO171: 46.8 | CP171: 0 | CQ171: 0
B172: Итого за 'Ужин' | C172: =SUM(C167:C171) -> 500 | D172: =SUM(D167:D171) -> 7.98 | E172: 3.6 | F172: 5.31 | G172: 0.95 | H172: 52.79 | I172: 283.6303618 | J172: 3.15 | K172: 0.04 | L172: 0 | M172: 0 | N172: 25.52 | O172: 23.31 | P172: 3.97 | Q172: 0 | R172: 0 | S172: 1.13 | T172: 2.74 | U172: 349.02 | V172: 523.14 | W172: 173.65 | X172: 36.87 | Y172: 157.55 | Z172: 3.32 | AA172: 32.4 | AB172: 47.2 | AC172: 41.02 | AD172: 0.66 | AE172: 0.13 | AF172: 0.22 | AG172: 0.66 | AH172: 2.12 | AI172: 10.66 | AJ172: 0 | AK172: 191.38 | AL172: 175.83 | AM172: 293.79 | AN172: 123.93 | AO172: 58.32 | AP172: 124.68 | AQ172: 45.59 | AR172: 209.88 | AS172: 157.28 | AT172: 174.06 | AU172: 259.89 | AV172: 80.94 | AW172: 161.91 | AX172: 1087.48 | AY172: 0 | AZ172: 353.73 | BA172: 185.61 | BB172: 107.28 | BC172: 82.49 | BD172: 0.05 | BE172: 0.02 | BF172: 0.01 | BG172: 0.03 | BH172: 0.03 | BI172: 0.14 | BJ172: 0 | BK172: 0.46 | BL172: 0 | BM172: 0.12 | BN172: 0 | BO172: 0 | BP172: =SUM(BP167:BP171) -> 0 | BQ172: 0.03 | BR172: 0.04 | BS172: 0.35 | BT172: 0 | BU172: 0 | BV172: 0.22 | BW172: 0.02 | BX172: 0 | BY172: 0 | BZ172: 0 | CA172: 0 | CB172: 433.61 | CC172: 0 | CD172: 0 | CE172: 40.27 | CF172: 0 | CG172: 33.35 | CH172: 17.28 | CI172: 25.32 | CJ172: 2350.69 | CK172: 1029.42 | CL172: 1690.06 | CM172: 114.76 | CN172: 83.88 | CO172: 99.32 | CP172: 10.08 | CQ172: 0.36
B173: Итого за день | C173: =C155+C158+C165+C172 -> 1585 | D173: =D155+D158+D165+D172 -> 41.33 | E173: 28.1 | F173: 43.5 | G173: 15.09 | H173: 191.05 | I173: 1293.85476 | J173: 15.23 | K173: 7.27 | L173: 0 | M173: 0 | N173: 78.9 | O173: 97.33 | P173: 14.79 | Q173: 0 | R173: 0 | S173: 2.86 | T173: 10.8 | U173: 1332.45 | V173: 2215.96 | W173: 409.59 | X173: 185.14 | Y173: 657.61 | Z173: 10.93 | AA173: 140.48 | AB173: 4453.17 | AC173: 994.56 | AD173: 8.48 | AE173: 0.61 | AF173: 0.69 | AG173: 9.92 | AH173: 20.84 | AI173: 25.9 | AJ173: 0.2 | AK173: 1433.53 | AL173: 1255.47 | AM173: 2531.35 | AN173: 1814.13 | AO173: 665.56 | AP173: 1227.69 | AQ173: 454.17 | AR173: 1428.27 | AS173: 1809.04 | AT173: 1844.25 | AU173: 2329.5 | AV173: 729.55 | AW173: 1725.01 | AX173: 6079.28 | AY173: 126.08 | AZ173: 1973.32 | BA173: 1465.47 | BB173: 1006.19 | BC173: 489.96 | BD173: 0.29 | BE173: 0.13 | BF173: 0.07 | BG173: 0.17 | BH173: 0.19 | BI173: 0.87 | BJ173: 0 | BK173: 3.42 | BL173: 0 | BM173: 1.25 | BN173: 0.04 | BO173: 0.07 | BP173: =BP155+BP158+BP165+BP172 -> 0 | BQ173: 0.17 | BR173: 0.26 | BS173: 5.27 | BT173: 0 | BU173: 0 | BV173: 7.92 | BW173: 0.06 | BX173: 0 | BY173: 0 | BZ173: 0 | CA173: 0 | CB173: 1393.36 | CC173: 0 | CD173: 0 | CE173: 882.69 | CF173: 0 | CG173: 126.08 | CH173: 71.76 | CI173: 98.94 | CJ173: 10487.23 | CK173: 5186.85 | CL173: 7837.05 | CM173: 301.22 | CN173: 187.99 | CO173: 244.6 | CP173: 31.68 | CQ173: 1.77
B175: 2 НЕДЕЛЯ
B176: 1 день
B177: Завтрак
A178: ="-" -> - | B178: Батон | C178: 40 | D178: 3.08 | E178: 0 | F178: 1.2 | G178: 1.2 | H178: 21.32 | I178: 107.808 | J178: 0.2 | K178: 0 | L178: 0 | M178: 0 | N178: 1.32 | O178: 18.72 | P178: 1.28 | Q178: 0 | R178: 0 | S178: 0.12 | T178: 0.64 | U178: 171.6 | V178: 52.4 | W178: 8.8 | X178: 13.2 | Y178: 34 | Z178: 0.8 | AA178: 0 | AB178: 0 | AC178: 0 | AD178: 0.68 | AE178: 0.06 | AF178: 0.02 | AG178: 0.64 | AH178: 1.2 | AI178: 0 | AJ178: 0 | AK178: 148.8 | AL178: 154.4 | AM178: 236.4 | AN178: 79.6 | AO178: 46.8 | AP178: 93.6 | AQ178: 35.2 | AR178: 168 | AS178: 104.4 | AT178: 145.2 | AU178: 120.4 | AV178: 64.4 | AW178: 112 | AX178: 930 | AY178: 0 | AZ178: 302.8 | BA178: 132.4 | BB178: 88.8 | BC178: 69.2 | BD178: 0 | BE178: 0 | BF178: 0 | BG178: 0 | BH178: 0 | BI178: 0.01 | BJ178: 0 | BK178: 0.13 | BL178: 0 | BM178: 0.06 | BN178: 0 | BO178: 0 | BP178: 0 | BQ178: 0 | BR178: 0 | BS178: 0.47 | BT178: 0 | BU178: 0 | BV178: 0.35 | BW178: 0.01 | BX178: 0 | BY178: 0 | BZ178: 0 | CA178: 0 | CB178: 13.64 | CE178: 0 | CG178: 0 | CH178: 0 | CI178: 0 | CJ178: 665 | CK178: 256.2 | CL178: 460.6 | CM178: 5.32 | CN178: 5.32 | CO178: 5.32 | CP178: 0 | CQ178: 0
A179: ="-" -> - | B179: Масло сливочное | C179: 5 | D179: 0.04 | E179: 0.04 | F179: 3.63 | G179: 0 | H179: 0.07 | I179: 33.032 | J179: 2.36 | K179: 0.11 | L179: 0 | M179: 0 | N179: 0.07 | O179: 0 | P179: 0 | Q179: 0 | R179: 0 | S179: 0 | T179: 0.07 | U179: 0.75 | V179: 1.5 | W179: 1.2 | X179: 0 | Y179: 1.5 | Z179: 0.01 | AA179: 20 | AB179: 15 | AC179: 22.5 | AD179: 0.05 | AE179: 0 | AF179: 0.01 | AG179: 0.01 | AH179: 0.01 | AI179: 0 | AJ179: 0 | AK179: 2.1 | AL179: 2.05 | AM179: 3.8 | AN179: 2.25 | AO179: 0.85 | AP179: 2.35 | AQ179: 2.15 | AR179: 2.1 | AS179: 1.8 | AT179: 1.3 | AU179: 2.85 | AV179: 1.75 | AW179: 1.2 | AX179: 7.1 | AY179: 0 | AZ179: 2.4 | BA179: 2.7 | BB179: 2.1 | BC179: 0.5 | BD179: 0.13 | BE179: 0.06 | BF179: 0.03 | BG179: 0.08 | BH179: 0.09 | BI179: 0.4 | BJ179: 0 | BK179: 1.1 | BL179: 0 | BM179: 0.34 | BN179: 0 | BO179: 0 | BP179: 0 | BQ179: 0.08 | BR179: 0.12 | BS179: 0.9 | BT179: 0 | BU179: 0 | BV179: 0.05 | BW179: 0 | BX179: 0 | BY179: 0 | BZ179: 0 | CA179: 0 | CB179: 1.25 | CE179: 22.5 | CG179: 0.2 | CH179: 0.05 | CI179: 0.13 | CJ179: 10 | CK179: 4.1 | CL179: 7.05 | CM179: 0.86 | CN179: 0.44 | CO179: 0.65 | CP179: 0 | CQ179: 0
A180: ="-" -> - | B180: Печенье | C180: 20 | D180: 1.5 | E180: 0 | F180: 1.96 | G180: 0 | H180: 15.34 | I180: 84.452 | J180: 0.42 | K180: 0 | L180: 0 | M180: 0 | N180: 4.72 | O180: 10.16 | P180: 0.46 | Q180: 0 | R180: 0 | S180: 0.1 | T180: 0.2 | U180: 66 | V180: 22 | W180: 5.8 | X180: 4 | Y180: 18 | Z180: 0.42 | AA180: 2 | AB180: 1.6 | AC180: 2.2 | AD180: 0.7 | AE180: 0.02 | AF180: 0.01 | AG180: 0.14 | AH180: 0.38 | AI180: 0 | AJ180: 0 | AK180: 249.4 | AL180: 185.2 | AM180: 318.8 | AN180: 286.6 | AO180: 87.6 | AP180: 162.4 | AQ180: 47.6 | AR180: 185.6 | AS180: 0 | AT180: 0 | AU180: 0 | AV180: 87.8 | AW180: 0 | AX180: 0 | AY180: 0 | AZ180: 0 | BA180: 0 | BB180: 0 | BC180: 0 | BD180: 0 | BE180: 0 | BF180: 0 | BG180: 0 | BH180: 0 | BI180: 0 | BJ180: 0 | BK180: 0 | BL180: 0 | BM180: 0 | BN180: 0 | BO180: 0 | BP180: 0 | BQ180: 0 | BR180: 0 | BS180: 0 | BT180: 0 | BU180: 0 | BV180: 0 | BW180: 0 | BX180: 0 | BY180: 0 | BZ180: 0 | CA180: 0 | CB180: 0.9 | CE180: 2.27 | CG180: 1.26 | CH180: 1.26 | CI180: 1.26 | CJ180: 648 | CK180: 414 | CL180: 531 | CM180: 6.16 | CN180: 6.16 | CO180: 6.16 | CP180: 0 | CQ180: 0
A181: ="29/10" -> 29/10 | B181: Чай с лимоном | C181: 180 | D181: 0.21 | E181: 0 | F181: 0.05 | G181: 0.05 | H181: 8.93 | I181: 35.63244878 | J181: 0 | K181: 0 | L181: 0 | M181: 0 | N181: 8.75 | O181: 0 | P181: 0.18 | Q181: 0 | R181: 0 | S181: 0.25 | T181: 0.08 | U181: 0.57 | V181: 7.35 | W181: 1.96 | X181: 0.5 | Y181: 0.9 | Z181: 0.05 | AA181: 0 | AB181: 0.4 | AC181: 0.09 | AD181: 0.01 | AE181: 0 | AF181: 0 | AG181: 0 | AH181: 0.01 | AI181: 0.7 | AJ181: 0 | AK181: 0.6 | AL181: 0.69 | AM181: 0.56 | AN181: 1.03 | AO181: 0.26 | AP181: 1.08 | AQ181: 0 | AR181: 1.38 | AS181: 0 | AT181: 0 | AU181: 0 | AV181: 0.77 | AW181: 0 | AX181: 0 | AY181: 0 | AZ181: 0 | BA181: 0 | BB181: 0 | BC181: 0 | BD181: 0 | BE181: 0 | BF181: 0 | BG181: 0 | BH181: 0 | BI181: 0 | BJ181: 0 | BK181: 0 | BL181: 0 | BM181: 0 | BN181: 0 | BO181: 0 | BP181: 0 | BQ181: 0 | BR181: 0 | BS181: 0 | BT181: 0 | BU181: 0 | BV181: 0 | BW181: 0 | BX181: 0 | BY181: 0 | BZ181: 0 | CA181: 0 | CB181: 179.55 | CE181: 0.07 | CG181: 3.21 | CH181: 3.1 | CI181: 3.16 | CJ181: 362.2 | CK181: 137.63 | CL181: 249.91 | CM181: 33.27 | CN181: 19.89 | CO181: 26.58 | CP181: 8.78 | CQ181: 0
A182: ="17/4" -> 17/4 | B182: Каша молочная ассорти (рис, пшено) с маслом сливочным | C182: 180 | D182: 5.27 | E182: 2.7 | F182: 5.51 | G182: 0.7 | H182: 28.44 | I182: 183.0142449 | J182: 3.77 | K182: 0.1 | L182: 0 | M182: 0 | N182: 8.5 | O182: 19.01 | P182: 0.93 | Q182: 0 | R182: 0 | S182: 0.09 | T182: 1.44 | U182: 224.15 | V182: 162.92 | W182: 104.48 | X182: 29.49 | Y182: 125.63 | Z182: 0.63 | AA182: 21.82 | AB182: 20.88 | AC182: 40.96 | AD182: 0.15 | AE182: 0.09 | AF182: 0.12 | AG182: 0.47 | AH182: 1.98 | AI182: 0.48 | AJ182: 0 | AK182: 130.62 | AL182: 112.73 | AM182: 328.47 | AN182: 81.19 | AO182: 68.6 | AP182: 96.74 | AQ182: 43.44 | AR182: 141.96 | AS182: 223.81 | AT182: 134.13 | AU182: 175.42 | AV182: 64.85 | AW182: 89.85 | AX182: 515.13 | AY182: 0 | AZ182: 174.11 | BA182: 156.68 | BB182: 104.48 | BC182: 46.74 | BD182: 0.11 | BE182: 0.05 | BF182: 0.03 | BG182: 0.06 | BH182: 0.07 | BI182: 0.32 | BJ182: 0 | BK182: 0.93 | BL182: 0 | BM182: 0.28 | BN182: 0 | BO182: 0 | BP182: 0 | BQ182: 0.06 | BR182: 0.09 | BS182: 0.83 | BT182: 0 | BU182: 0 | BV182: 0.38 | BW182: 0.01 | BX182: 0 | BY182: 0 | BZ182: 0 | CA182: 0 | CB182: 150.12 | CE182: 25.3 | CG182: 28.87 | CH182: 13.31 | CI182: 21.09 | CJ182: 1807.26 | CK182: 809.43 | CL182: 1308.34 | CM182: 30.52 | CN182: 13.78 | CO182: 22.15 | CP182: 4.5 | CQ182: 0.45
B183: Итого за 'Завтрак' | C183: =SUM(C178:C182) -> 425 | D183: =SUM(D178:D182) -> 10.1 | E183: 2.74 | F183: 12.35 | G183: 1.95 | H183: 74.1 | I183: 443.9386937 | J183: 6.75 | K183: 0.21 | L183: 0 | M183: 0 | N183: 23.36 | O183: 47.89 | P183: 2.85 | Q183: 0 | R183: 0 | S183: 0.56 | T183: 2.43 | U183: 463.07 | V183: 246.17 | W183: 122.24 | X183: 47.19 | Y183: 180.03 | Z183: 1.91 | AA183: 43.82 | AB183: 37.88 | AC183: 65.75 | AD183: 1.59 | AE183: 0.17 | AF183: 0.16 | AG183: 1.26 | AH183: 3.58 | AI183: 1.18 | AJ183: 0 | AK183: 531.52 | AL183: 455.07 | AM183: 888.03 | AN183: 450.67 | AO183: 204.11 | AP183: 356.17 | AQ183: 128.39 | AR183: 499.04 | AS183: 330.01 | AT183: 280.63 | AU183: 298.67 | AV183: 219.57 | AW183: 203.05 | AX183: 1452.23 | AY183: 0 | AZ183: 479.31 | BA183: 291.78 | BB183: 195.38 | BC183: 116.44 | BD183: 0.24 | BE183: 0.11 | BF183: 0.06 | BG183: 0.14 | BH183: 0.16 | BI183: 0.73 | BJ183: 0 | BK183: 2.16 | BL183: 0 | BM183: 0.68 | BN183: 0 | BO183: 0 | BP183: =SUM(BP178:BP182) -> 0 | BQ183: 0.14 | BR183: 0.21 | BS183: 2.2 | BT183: 0 | BU183: 0 | BV183: 0.78 | BW183: 0.02 | BX183: 0 | BY183: 0 | BZ183: 0 | CA183: 0 | CB183: 345.46 | CC183: 0 | CD183: 0 | CE183: 50.14 | CF183: 0 | CG183: 33.54 | CH183: 17.72 | CI183: 25.64 | CJ183: 3492.46 | CK183: 1621.36 | CL183: 2556.9 | CM183: 76.13 | CN183: 45.59 | CO183: 60.86 | CP183: 13.28 | CQ183: 0.45
B184: 10:00
A185: ="-" -> - | B185: Сок | C185: 100 | D185: 0.5 | E185: 0 | F185: 0.1 | G185: 0 | H185: 10.3 | I185: 43.24 | J185: 0 | K185: 0 | L185: 0 | M185: 0 | N185: 9.9 | O185: 0.2 | P185: 0.2 | Q185: 0 | R185: 0 | S185: 0.5 | T185: 0.3 | U185: 6 | V185: 120 | W185: 7 | X185: 4 | Y185: 7 | Z185: 1.4 | AA185: 0 | AB185: 0 | AC185: 0 | AD185: 0.1 | AE185: 0.01 | AF185: 0.01 | AG185: 0.1 | AH185: 0.2 | AI185: 2 | AJ185: 0.2 | AK185: 8 | AL185: 10 | AM185: 14 | AN185: 14 | AO185: 2 | AP185: 8 | AQ185: 2 | AR185: 7 | AS185: 13 | AT185: 8 | AU185: 58 | AV185: 5 | AW185: 11 | AX185: 32 | AY185: 0 | AZ185: 10 | BA185: 12 | BB185: 5 | BC185: 4 | BD185: 0 | BE185: 0 | BF185: 0 | BG185: 0 | BH185: 0 | BI185: 0 | BJ185: 0 | BK185: 0 | BL185: 0 | BM185: 0 | BN185: 0 | BO185: 0 | BP185: 0 | BQ185: 0 | BR185: 0 | BS185: 0 | BT185: 0 | BU185: 0 | BV185: 0 | BW185: 0 | BX185: 0 | BY185: 0 | BZ185: 0 | CA185: 0 | CB185: 88.1 | CE185: 0 | CG185: 2 | CH185: 2 | CI185: 2 | CJ185: 200 | CK185: 91 | CL185: 145.5 | CM185: 0.3 | CN185: 0.3 | CO185: 0.3 | CP185: 0 | CQ185: 0
B186: Итого за '10:00' | C186: =SUM(C185) -> 100 | D186: =SUM(D185) -> 0.5 | E186: 0 | F186: 0.1 | G186: 0 | H186: 10.3 | I186: 43.24 | J186: 0 | K186: 0 | L186: 0 | M186: 0 | N186: 9.9 | O186: 0.2 | P186: 0.2 | Q186: 0 | R186: 0 | S186: 0.5 | T186: 0.3 | U186: 6 | V186: 120 | W186: 7 | X186: 4 | Y186: 7 | Z186: 1.4 | AA186: 0 | AB186: 0 | AC186: 0 | AD186: 0.1 | AE186: 0.01 | AF186: 0.01 | AG186: 0.1 | AH186: 0.2 | AI186: 2 | AJ186: 0.2 | AK186: 8 | AL186: 10 | AM186: 14 | AN186: 14 | AO186: 2 | AP186: 8 | AQ186: 2 | AR186: 7 | AS186: 13 | AT186: 8 | AU186: 58 | AV186: 5 | AW186: 11 | AX186: 32 | AY186: 0 | AZ186: 10 | BA186: 12 | BB186: 5 | BC186: 4 | BD186: 0 | BE186: 0 | BF186: 0 | BG186: 0 | BH186: 0 | BI186: 0 | BJ186: 0 | BK186: 0 | BL186: 0 | BM186: 0 | BN186: 0 | BO186: 0 | BP186: =SUM(BP185) -> 0 | BQ186: 0 | BR186: 0 | BS186: 0 | BT186: 0 | BU186: 0 | BV186: 0 | BW186: 0 | BX186: 0 | BY186: 0 | BZ186: 0 | CA186: 0 | CB186: 88.1 | CC186: 0 | CD186: 0 | CE186: 0 | CF186: 0 | CG186: 2 | CH186: 2 | CI186: 2 | CJ186: 200 | CK186: 91 | CL186: 145.5 | CM186: 0.3 | CN186: 0.3 | CO186: 0.3 | CP186: 0 | CQ186: 0
B187: Обед
A188: ="-" -> - | B188: Хлеб пшеничный | C188: 20 | D188: 1.32 | E188: 0 | F188: 0.13 | G188: 0.13 | H188: 9.38 | I188: 44.7802 | J188: 0 | K188: 0 | L188: 0 | M188: 0 | N188: 0.22 | O188: 9.12 | P188: 0.04 | Q188: 0 | R188: 0 | S188: 0 | T188: 0.36 | U188: 0 | V188: 0 | W188: 0 | X188: 0 | Y188: 0 | Z188: 0 | AA188: 0 | AB188: 0 | AC188: 0 | AD188: 0 | AE188: 0 | AF188: 0 | AG188: 0 | AH188: 0 | AI188: 0 | AJ188: 0 | AK188: 63.86 | AL188: 66.47 | AM188: 101.79 | AN188: 33.76 | AO188: 20.01 | AP188: 40.02 | AQ188: 15.14 | AR188: 72.38 | AS188: 44.89 | AT188: 62.64 | AU188: 51.68 | AV188: 27.14 | AW188: 48.02 | AX188: 401.59 | AY188: 0 | AZ188: 130.85 | BA188: 56.9 | BB188: 37.76 | BC188: 29.93 | BD188: 0 | BE188: 0 | BF188: 0 | BG188: 0 | BH188: 0 | BI188: 0 | BJ188: 0 | BK188: 0.02 | BL188: 0 | BM188: 0 | BN188: 0 | BO188: 0 | BP188: 0 | BQ188: 0 | BR188: 0 | BS188: 0.01 | BT188: 0 | BU188: 0 | BV188: 0.06 | BW188: 0 | BX188: 0 | BY188: 0 | BZ188: 0 | CA188: 0 | CB188: 7.82 | CE188: 0 | CG188: 0 | CH188: 0 | CI188: 0 | CJ188: 380 | CK188: 146.4 | CL188: 263.2 | CM188: 3.04 | CN188: 3.04 | CO188: 3.04 | CP188: 0 | CQ188: 0
A189: ="-" -> - | B189: Хлеб ржаной | C189: 20 | D189: 1.32 | E189: 0 | F189: 0.24 | G189: 0.24 | H189: 8.34 | I189: 38.676 | J189: 0.04 | K189: 0 | L189: 0 | M189: 0 | N189: 0.24 | O189: 6.44 | P189: 1.66 | Q189: 0 | R189: 0 | S189: 0.2 | T189: 0.5 | U189: 122 | V189: 49 | W189: 7 | X189: 9.4 | Y189: 31.6 | Z189: 0.78 | AA189: 0 | AB189: 1 | AC189: 0.2 | AD189: 0.28 | AE189: 0.04 | AF189: 0.02 | AG189: 0.14 | AH189: 0.4 | AI189: 0 | AJ189: 0 | AK189: 64.4 | AL189: 49.6 | AM189: 85.4 | AN189: 44.6 | AO189: 18.6 | AP189: 39.6 | AQ189: 16 | AR189: 74.2 | AS189: 59.4 | AT189: 58.2 | AU189: 92.8 | AV189: 24.8 | AW189: 62 | AX189: 311.8 | AY189: 0 | AZ189: 105.2 | BA189: 58.2 | BB189: 36 | BC189: 26 | BD189: 0 | BE189: 0 | BF189: 0 | BG189: 0 | BH189: 0 | BI189: 0 | BJ189: 0 | BK189: 0.03 | BL189: 0 | BM189: 0 | BN189: 0 | BO189: 0 | BP189: 0 | BQ189: 0 | BR189: 0 | BS189: 0.02 | BT189: 0 | BU189: 0 | BV189: 0.1 | BW189: 0.02 | BX189: 0 | BY189: 0 | BZ189: 0 | CA189: 0 | CB189: 9.4 | CE189: 0.17 | CG189: 1 | CH189: 1 | CI189: 1 | CJ189: 190 | CK189: 73.2 | CL189: 131.6 | CM189: 1.9 | CN189: 1.58 | CO189: 1.74 | CP189: 0 | CQ189: 0
A190: ="3/10" -> 3/10 | B190: Компот из яблок | C190: 180 | D190: 0.14 | E190: 0 | F190: 0.14 | G190: 0.14 | H190: 21.67 | I190: 84.015216 | J190: 0.04 | K190: 0 | L190: 0 | M190: 0 | N190: 20.78 | O190: 0.27 | P190: 0.62 | Q190: 0 | R190: 0 | S190: 0.29 | T190: 0.2 | U190: 9.44 | V190: 99.61 | W190: 6.11 | X190: 3.08 | Y190: 3.68 | Z190: 0.82 | AA190: 0 | AB190: 9.72 | AC190: 1.8 | AD190: 0.07 | AE190: 0.01 | AF190: 0.01 | AG190: 0.09 | AH190: 0.14 | AI190: 1.44 | AJ190: 0 | AK190: 4.23 | AL190: 4.59 | AM190: 6.7 | AN190: 6.35 | AO190: 1.06 | AP190: 3.88 | AQ190: 1.06 | AR190: 3.18 | AS190: 6 | AT190: 3.53 | AU190: 27.52 | AV190: 2.47 | AW190: 4.94 | AX190: 14.82 | AY190: 0 | AZ190: 4.59 | BA190: 5.64 | BB190: 2.12 | BC190: 1.76 | BD190: 0 | BE190: 0 | BF190: 0 | BG190: 0 | BH190: 0 | BI190: 0 | BJ190: 0 | BK190: 0 | BL190: 0 | BM190: 0 | BN190: 0 | BO190: 0 | BP190: 0 | BQ190: 0 | BR190: 0 | BS190: 0 | BT190: 0 | BU190: 0 | BV190: 0 | BW190: 0 | BX190: 0 | BY190: 0 | BZ190: 0 | CA190: 0 | CB190: 220.09 | CE190: 1.62 | CG190: 3.75 | CH190: 3.75 | CI190: 3.75 | CJ190: 360 | CK190: 174.15 | CL190: 267.08 | CM190: 34.34 | CN190: 20.16 | CO190: 27.25 | CP190: 18 | CQ190: 0
A191: ="3/1" -> 3/1 | B191: Салат из белокочанной капусты с растительным маслом | C191: 50 | D191: 0.8 | E191: 0 | F191: 2.98 | G191: 2.98 | H191: 4.45 | I191: 45.782219 | J191: 0.38 | K191: 1.95 | L191: 0 | M191: 0 | N191: 3.52 | O191: 0.04 | P191: 0.89 | Q191: 0 | R191: 0 | S191: 0.13 | T191: 0.56 | U191: 100.65 | V191: 133.84 | W191: 22.35 | X191: 7.19 | Y191: 14.07 | Z191: 0.28 | AA191: 0 | AB191: 8.92 | AC191: 1.37 | AD191: 1.37 | AE191: 0.01 | AF191: 0.02 | AG191: 0.31 | AH191: 0.41 | AI191: 20.07 | AJ191: 0 | AK191: 25.86 | AL191: 22.3 | AM191: 28.54 | AN191: 27.2 | AO191: 9.81 | AP191: 20.07 | AQ191: 4.46 | AR191: 24.97 | AS191: 31.66 | AT191: 37.9 | AU191: 76.69 | AV191: 12.49 | AW191: 20.96 | AX191: 122.62 | AY191: 0 | AZ191: 26.31 | BA191: 26.31 | BB191: 22.3 | BC191: 8.92 | BD191: 0 | BE191: 0 | BF191: 0 | BG191: 0 | BH191: 0 | BI191: 0 | BJ191: 0 | BK191: 0.18 | BL191: 0 | BM191: 0.12 | BN191: 0.01 | BO191: 0.02 | BP191: 0 | BQ191: 0 | BR191: 0 | BS191: 0.7 | BT191: 0 | BU191: 0 | BV191: 1.73 | BW191: 0 | BX191: 0 | BY191: 0 | BZ191: 0 | CA191: 0 | CB191: 41.14 | CE191: 1.49 | CG191: 11.03 | CH191: 4.77 | CI191: 7.9 | CJ191: 325.07 | CK191: 77.83 | CL191: 201.45 | CM191: 5.97 | CN191: 5.77 | CO191: 5.87 | CP191: 1.5 | CQ191: 0.25
A192: ="18/2" -> 18/2 | B192: Суп картофельный с вермишелью на говяжьем бульоне | C192: 180 | D192: 1.93 | E192: 5.74 | F192: 1.72 | G192: 1.72 | H192: 14.6 | I192: 80.27548092 | J192: 0.24 | K192: 0.94 | L192: 0 | M192: 0 | N192: 1.75 | O192: 11.6 | P192: 1.25 | Q192: 0 | R192: 0 | S192: 0.14 | T192: 1.09 | U192: 142.66 | V192: 317.96 | W192: 11.24 | X192: 15.92 | Y192: 40.02 | Z192: 0.66 | AA192: 0 | AB192: 942.19 | AC192: 174.31 | AD192: 0.84 | AE192: 0.07 | AF192: 0.04 | AG192: 0.7 | AH192: 1.24 | AI192: 4.41 | AJ192: 0 | AK192: 48.91 | AL192: 52.8 | AM192: 84.78 | AN192: 50.35 | AO192: 16.42 | AP192: 44.18 | AQ192: 17.54 | AR192: 57.87 | AS192: 55.81 | AT192: 110.44 | AU192: 69.8 | AV192: 22.08 | AW192: 47.19 | AX192: 343.9 | AY192: 0 | AZ192: 85.19 | BA192: 51.12 | BB192: 33.84 | BC192: 21.41 | BD192: 0 | BE192: 0 | BF192: 0 | BG192: 0 | BH192: 0 | BI192: 0 | BJ192: 0 | BK192: 0.14 | BL192: 0 | BM192: 0.07 | BN192: 0 | BO192: 0.01 | BP192: 0 | BQ192: 0 | BR192: 0 | BS192: 0.42 | BT192: 0 | BU192: 0 | BV192: 0.9 | BW192: 0 | BX192: 0 | BY192: 0 | BZ192: 0 | CA192: 0 | CB192: 187.49 | CE192: 157.03 | CG192: 20.37 | CH192: 13.13 | CI192: 16.75 | CJ192: 622.77 | CK192: 372.86 | CL192: 497.82 | CM192: 38.79 | CN192: 19.02 | CO192: 28.9 | CP192: 0 | CQ192: 0.36
A193: ="39/3" -> 39/3 | B193: Каша гречневая рассыпчатая | C193: 150 | D193: 6.58 | E193: 0 | F193: 1.72 | G193: 1.72 | H193: 34.47 | I193: 170.9136495 | J193: 0.32 | K193: 0 | L193: 0 | M193: 0 | N193: 0.73 | O193: 28.03 | P193: 5.72 | Q193: 0 | R193: 0 | S193: 0 | T193: 1.28 | U193: 145.29 | V193: 200.36 | W193: 11.67 | X193: 101.25 | Y193: 147.84 | Z193: 3.47 | AA193: 0 | AB193: 4.79 | AC193: 1.07 | AD193: 0.43 | AE193: 0.19 | AF193: 0.1 | AG193: 1.9 | AH193: 3.83 | AI193: 0 | AJ193: 0 | AK193: 307.89 | AL193: 240.05 | AM193: 388.78 | AN193: 276.58 | AO193: 166.99 | AP193: 208.74 | AQ193: 93.93 | AR193: 308.94 | AS193: 302.67 | AT193: 584.47 | AU193: 575.08 | AV193: 156.56 | AW193: 375.73 | AX193: 1179.38 | AY193: 0 | AZ193: 260.93 | BA193: 316.24 | BB193: 224.4 | BC193: 172.21 | BD193: 0 | BE193: 0 | BF193: 0 | BG193: 0 | BH193: 0 | BI193: 0.01 | BJ193: 0 | BK193: 0.28 | BL193: 0 | BM193: 0.02 | BN193: 0.01 | BO193: 0 | BP193: 0 | BQ193: 0 | BR193: 0.01 | BS193: 0.56 | BT193: 0.01 | BU193: 0 | BV193: 0.55 | BW193: 0.05 | BX193: 0 | BY193: 0 | BZ193: 0 | CA193: 0 | CB193: 87.71 | CE193: 0.8 | CG193: 22.03 | CH193: 13.03 | CI193: 17.53 | CJ193: 2500.89 | CK193: 1230.66 | CL193: 1865.78 | CM193: 36.59 | CN193: 24.34 | CO193: 30.46 | CP193: 0 | CQ193: 0.38
A194: ="16/8" -> 16/8 | B194: Биточки (котлеты) из мяса говядины | C194: 70 | D194: 10.88 | E194: 9.15 | F194: 9.57 | G194: 3.35 | H194: 9.77 | I194: 168.495544 | J194: 4.23 | K194: 2.73 | L194: 0 | M194: 0 | N194: 0.36 | O194: 8.76 | P194: 0.65 | Q194: 0 | R194: 0 | S194: 0.09 | T194: 1.18 | U194: 153.12 | V194: 163.19 | W194: 8.15 | X194: 16.74 | Y194: 104.15 | Z194: 1.87 | AA194: 0 | AB194: 0.35 | AC194: 0.07 | AD194: 2.3 | AE194: 0.05 | AF194: 0.08 | AG194: 2.54 | AH194: 4.81 | AI194: 0 | AJ194: 0 | AK194: 553.25 | AL194: 430.55 | AM194: 797.35 | AN194: 1297.27 | AO194: 232.75 | AP194: 422.69 | AQ194: 113.75 | AR194: 441.01 | AS194: 565.3 | AT194: 556.35 | AU194: 907.06 | AV194: 368.06 | AW194: 494.13 | AX194: 1788.49 | AY194: 142.71 | AZ194: 427.1 | BA194: 422.98 | BB194: 349.78 | BC194: 148.04 | BD194: 0 | BE194: 0 | BF194: 0 | BG194: 0 | BH194: 0 | BI194: 0 | BJ194: 0 | BK194: 0.21 | BL194: 0 | BM194: 0.13 | BN194: 0.01 | BO194: 0.02 | BP194: 0 | BQ194: 0 | BR194: 0 | BS194: 0.76 | BT194: 0 | BU194: 0 | BV194: 1.89 | BW194: 0 | BX194: 0 | BY194: 0 | BZ194: 0 | CA194: 0 | CB194: 55.91 | CE194: 0.06 | CG194: 38.39 | CH194: 23.99 | CI194: 31.19 | CJ194: 4933.68 | CK194: 2996.81 | CL194: 3965.24 | CM194: 33.96 | CN194: 21.98 | CO194: 27.97 | CP194: 0 | CQ194: 0.28
B195: Итого за 'Обед' | C195: =SUM(C188:C194) -> 670 | D195: =SUM(D188:D194) -> 22.97 | E195: 14.89 | F195: 16.5 | G195: 10.28 | H195: 102.68 | I195: 632.9383094 | J195: 5.25 | K195: 5.62 | L195: 0 | M195: 0 | N195: 27.6 | O195: 64.26 | P195: 10.83 | Q195: 0 | R195: 0 | S195: 0.85 | T195: 5.17 | U195: 673.16 | V195: 963.96 | W195: 66.52 | X195: 153.58 | Y195: 341.36 | Z195: 7.88 | AA195: 0 | AB195: 966.97 | AC195: 178.82 | AD195: 5.29 | AE195: 0.37 | AF195: 0.27 | AG195: 5.68 | AH195: 10.83 | AI195: 25.92 | AJ195: 0 | AK195: 1068.4 | AL195: 866.36 | AM195: 1493.34 | AN195: 1736.11 | AO195: 465.64 | AP195: 779.18 | AQ195: 261.88 | AR195: 982.55 | AS195: 1065.73 | AT195: 1413.53 | AU195: 1800.63 | AV195: 613.6 | AW195: 1052.97 | AX195: 4162.6 | AY195: 142.71 | AZ195: 1040.17 | BA195: 937.39 | BB195: 706.2 | BC195: 408.27 | BD195: 0 | BE195: 0 | BF195: 0 | BG195: 0 | BH195: 0 | BI195: 0.01 | BJ195: 0 | BK195: 0.86 | BL195: 0 | BM195: 0.34 | BN195: 0.03 | BO195: 0.05 | BP195: =SUM(BP188:BP194) -> 0 | BQ195: 0 | BR195: 0.01 | BS195: 2.47 | BT195: 0.01 | BU195: 0 | BV195: 5.23 | BW195: 0.07 | BX195: 0 | BY195: 0 | BZ195: 0 | CA195: 0 | CB195: 609.56 | CC195: 0 | CD195: 0 | CE195: 161.17 | CF195: 0 | CG195: 96.57 | CH195: 59.67 | CI195: 78.12 | CJ195: 9312.41 | CK195: 5071.91 | CL195: 7192.17 | CM195: 154.59 | CN195: 95.89 | CO195: 125.23 | CP195: 19.5 | CQ195: 1.27
B196: Ужин
A197: ="-" -> - | B197: Хлеб пшеничный | C197: 20 | D197: 1.32 | E197: 0 | F197: 0.13 | G197: 0.13 | H197: 9.38 | I197: 44.7802 | J197: 0 | K197: 0 | L197: 0 | M197: 0 | N197: 0.22 | O197: 9.12 | P197: 0.04 | Q197: 0 | R197: 0 | S197: 0 | T197: 0.36 | U197: 0 | V197: 0 | W197: 0 | X197: 0 | Y197: 0 | Z197: 0 | AA197: 0 | AB197: 0 | AC197: 0 | AD197: 0 | AE197: 0 | AF197: 0 | AG197: 0 | AH197: 0 | AI197: 0 | AJ197: 0 | AK197: 63.86 | AL197: 66.47 | AM197: 101.79 | AN197: 33.76 | AO197: 20.01 | AP197: 40.02 | AQ197: 15.14 | AR197: 72.38 | AS197: 44.89 | AT197: 62.64 | AU197: 51.68 | AV197: 27.14 | AW197: 48.02 | AX197: 401.59 | AY197: 0 | AZ197: 130.85 | BA197: 56.9 | BB197: 37.76 | BC197: 29.93 | BD197: 0 | BE197: 0 | BF197: 0 | BG197: 0 | BH197: 0 | BI197: 0 | BJ197: 0 | BK197: 0.02 | BL197: 0 | BM197: 0 | BN197: 0 | BO197: 0 | BP197: 0 | BQ197: 0 | BR197: 0 | BS197: 0.01 | BT197: 0 | BU197: 0 | BV197: 0.06 | BW197: 0 | BX197: 0 | BY197: 0 | BZ197: 0 | CA197: 0 | CB197: 7.82 | CE197: 0 | CG197: 0 | CH197: 0 | CI197: 0 | CJ197: 665 | CK197: 256.2 | CL197: 460.6 | CM197: 5.32 | CN197: 5.32 | CO197: 5.32 | CP197: 0 | CQ197: 0
A198: ="-" -> - | B198: Хлеб ржаной | C198: 20 | D198: 1.32 | E198: 0 | F198: 0.24 | G198: 0.24 | H198: 8.34 | I198: 38.676 | J198: 0.04 | K198: 0 | L198: 0 | M198: 0 | N198: 0.24 | O198: 6.44 | P198: 1.66 | Q198: 0 | R198: 0 | S198: 0.2 | T198: 0.5 | U198: 122 | V198: 49 | W198: 7 | X198: 9.4 | Y198: 31.6 | Z198: 0.78 | AA198: 0 | AB198: 1 | AC198: 0.2 | AD198: 0.28 | AE198: 0.04 | AF198: 0.02 | AG198: 0.14 | AH198: 0.4 | AI198: 0 | AJ198: 0 | AK198: 64.4 | AL198: 49.6 | AM198: 85.4 | AN198: 44.6 | AO198: 18.6 | AP198: 39.6 | AQ198: 16 | AR198: 74.2 | AS198: 59.4 | AT198: 58.2 | AU198: 92.8 | AV198: 24.8 | AW198: 62 | AX198: 311.8 | AY198: 0 | AZ198: 105.2 | BA198: 58.2 | BB198: 36 | BC198: 26 | BD198: 0 | BE198: 0 | BF198: 0 | BG198: 0 | BH198: 0 | BI198: 0 | BJ198: 0 | BK198: 0.03 | BL198: 0 | BM198: 0 | BN198: 0 | BO198: 0 | BP198: 0 | BQ198: 0 | BR198: 0 | BS198: 0.02 | BT198: 0 | BU198: 0 | BV198: 0.1 | BW198: 0.02 | BX198: 0 | BY198: 0 | BZ198: 0 | CA198: 0 | CB198: 9.4 | CE198: 0.17 | CG198: 1.5 | CH198: 1.5 | CI198: 1.5 | CJ198: 285 | CK198: 109.8 | CL198: 197.4 | CM198: 2.85 | CN198: 2.37 | CO198: 2.61 | CP198: 0 | CQ198: 0
A199: ="27/10" -> 27/10 | B199: Чай (вариант 2) | C199: 180 | D199: 0.18 | E199: 0 | F199: 0.04 | G199: 0.04 | H199: 4.53 | I199: 18.157086 | J199: 0 | K199: 0 | L199: 0 | M199: 0 | N199: 4.44 | O199: 0 | P199: 0.09 | Q199: 0 | R199: 0 | S199: 0 | T199: 0.05 | U199: 0.04 | V199: 0.13 | W199: 0.13 | X199: 0 | Y199: 0 | Z199: 0.01 | AA199: 0 | AB199: 0 | AC199: 0 | AD199: 0 | AE199: 0 | AF199: 0 | AG199: 0 | AH199: 0 | AI199: 0 | AJ199: 0 | AK199: 0 | AL199: 0 | AM199: 0 | AN199: 0 | AO199: 0 | AP199: 0 | AQ199: 0 | AR199: 0 | AS199: 0 | AT199: 0 | AU199: 0 | AV199: 0 | AW199: 0 | AX199: 0 | AY199: 0 | AZ199: 0 | BA199: 0 | BB199: 0 | BC199: 0 | BD199: 0 | BE199: 0 | BF199: 0 | BG199: 0 | BH199: 0 | BI199: 0 | BJ199: 0 | BK199: 0 | BL199: 0 | BM199: 0 | BN199: 0 | BO199: 0 | BP199: 0 | BQ199: 0 | BR199: 0 | BS199: 0 | BT199: 0 | BU199: 0 | BV199: 0 | BW199: 0 | BX199: 0 | BY199: 0 | BZ199: 0 | CA199: 0 | CB199: 180.08 | CE199: 0 | CG199: 3.07 | CH199: 3.07 | CI199: 3.07 | CJ199: 331.88 | CK199: 130.5 | CL199: 231.19 | CM199: 33.01 | CN199: 19.51 | CO199: 26.26 | CP199: 4.5 | CQ199: 0
A200: ="10/150" -> 10/150 | B200: Сырники из творога | C200: 100 | D200: 20.83 | E200: 19.29 | F200: 5.49 | G200: 3.97 | H200: 16.41 | I200: 200.26511 | J200: 1.37 | K200: 2.6 | L200: 0 | M200: 0 | N200: 6.91 | O200: 9.03 | P200: 0.47 | Q200: 0 | R200: 0 | S200: 1.11 | T200: 1.45 | U200: 125.93 | V200: 119.49 | W200: 105.52 | X200: 22.26 | Y200: 163.64 | Z200: 0.51 | AA200: 13.3 | AB200: 3.6 | AC200: 14.68 | AD200: 2.01 | AE200: 0.05 | AF200: 0.21 | AG200: 0.49 | AH200: 4.19 | AI200: 0.23 | AJ200: 0 | AK200: 938.43 | AL200: 934.88 | AM200: 1730.03 | AN200: 1307.31 | AO200: 446.86 | AP200: 748.54 | AQ200: 174.95 | AR200: 886.43 | AS200: 447.07 | AT200: 775.66 | AU200: 946.92 | AV200: 518.32 | AW200: 284.66 | AX200: 3298.51 | AY200: 0.53 | AZ200: 1896.81 | BA200: 802.86 | BB200: 846.49 | BC200: 123.23 | BD200: 0 | BE200: 0 | BF200: 0 | BG200: 0 | BH200: 0 | BI200: 0 | BJ200: 0 | BK200: 0.25 | BL200: 0 | BM200: 0.16 | BN200: 0.01 | BO200: 0.03 | BP200: 0 | BQ200: 0 | BR200: 0 | BS200: 0.91 | BT200: 0 | BU200: 0 | BV200: 2.31 | BW200: 0 | BX200: 0 | BY200: 0 | BZ200: 0 | CA200: 0 | CB200: 72.56 | CE200: 13.9 | CG200: 10.99 | CH200: 6.05 | CI200: 8.52 | CJ200: 608.4 | CK200: 426.4 | CL200: 517.4 | CM200: 14.25 | CN200: 10.4 | CO200: 12.47 | CP200: 4 | CQ200: 0.24
A201: ="7/11" -> 7/11 | B201: Соус сметанный | C201: 30 | D201: 0.36 | E201: 0.01 | F201: 2.19 | G201: 0.02 | H201: 1.32 | I201: 26.5134855 | J201: 1.38 | K201: 0.03 | L201: 0 | M201: 0 | N201: 0.3 | O201: 0.97 | P201: 0.05 | Q201: 0 | R201: 0 | S201: 0.06 | T201: 0.31 | U201: 95.21 | V201: 10.89 | W201: 7.87 | X201: 0.92 | Y201: 6.04 | Z201: 0.04 | AA201: 13.5 | AB201: 6.75 | AC201: 14.78 | AD201: 0.06 | AE201: 0 | AF201: 0.01 | AG201: 0.02 | AH201: 0.09 | AI201: 0.01 | AJ201: 0 | AK201: 83.61 | AL201: 64.4 | AM201: 134.75 | AN201: 127.23 | AO201: 40.35 | AP201: 68.4 | AQ201: 18.86 | AR201: 66.99 | AS201: 90.13 | AT201: 85.86 | AU201: 145.78 | AV201: 56.23 | AW201: 77.97 | AX201: 290.65 | AY201: 0 | AZ201: 78.1 | BA201: 72.97 | BB201: 55.67 | BC201: 24.84 | BD201: 0.04 | BE201: 0.02 | BF201: 0.01 | BG201: 0.02 | BH201: 0.03 | BI201: 0.12 | BJ201: 0 | BK201: 0.33 | BL201: 0 | BM201: 0.1 | BN201: 0 | BO201: 0 | BP201: 0 | BQ201: 0.02 | BR201: 0.03 | BS201: 0.27 | BT201: 0 | BU201: 0 | BV201: 0.02 | BW201: 0.01 | BX201: 0 | BY201: 0 | BZ201: 0 | CA201: 0 | CB201: 28.9 | CE201: 14.63 | CG201: 10.66 | CH201: 5.81 | CI201: 8.24 | CJ201: 93.8 | CK201: 37.13 | CL201: 65.46 | CM201: 5.35 | CN201: 3.12 | CO201: 4.25 | CP201: 0 | CQ201: 0.24
A202: ="-" -> - | B202: Фрукты | C202: 100 | D202: 0.4 | E202: 0 | F202: 0.4 | G202: 0.4 | H202: 11.6 | I202: 48.68 | J202: 0.1 | K202: 0 | L202: 0 | M202: 0 | N202: 9 | O202: 0.8 | P202: 1.8 | Q202: 0 | R202: 0 | S202: 0.8 | T202: 0.5 | U202: 26 | V202: 278 | W202: 16 | X202: 9 | Y202: 11 | Z202: 2.2 | AA202: 0 | AB202: 30 | AC202: 5 | AD202: 0.2 | AE202: 0.03 | AF202: 0.02 | AG202: 0.3 | AH202: 0.4 | AI202: 10 | AJ202: 0 | AK202: 12 | AL202: 13 | AM202: 19 | AN202: 18 | AO202: 3 | AP202: 11 | AQ202: 3 | AR202: 9 | AS202: 17 | AT202: 10 | AU202: 78 | AV202: 7 | AW202: 14 | AX202: 42 | AY202: 0 | AZ202: 13 | BA202: 16 | BB202: 6 | BC202: 5 | BD202: 0 | BE202: 0 | BF202: 0 | BG202: 0 | BH202: 0 | BI202: 0 | BJ202: 0 | BK202: 0 | BL202: 0 | BM202: 0 | BN202: 0 | BO202: 0 | BP202: 0 | BQ202: 0 | BR202: 0 | BS202: 0 | BT202: 0 | BU202: 0 | BV202: 0 | BW202: 0 | BX202: 0 | BY202: 0 | BZ202: 0 | CA202: 0 | CB202: 86.3 | CE202: 5 | CG202: 2 | CH202: 2 | CI202: 2 | CJ202: 150 | CK202: 150 | CL202: 150 | CM202: 46.8 | CN202: 46.8 | CO202: 46.8 | CP202: 0 | CQ202: 0
B203: Итого за 'Ужин' | C203: =SUM(C197:C202) -> 450 | D203: =SUM(D197:D202) -> 24.41 | E203: 19.3 | F203: 8.49 | G203: 4.8 | H203: 51.58 | I203: 377.0718815 | J203: 2.89 | K203: 2.63 | L203: 0 | M203: 0 | N203: 21.11 | O203: 26.36 | P203: 4.11 | Q203: 0 | R203: 0 | S203: 2.17 | T203: 3.17 | U203: 369.18 | V203: 457.51 | W203: 136.52 | X203: 41.58 | Y203: 212.28 | Z203: 3.54 | AA203: 26.8 | AB203: 41.35 | AC203: 34.66 | AD203: 2.55 | AE203: 0.12 | AF203: 0.26 | AG203: 0.95 | AH203: 5.08 | AI203: 10.24 | AJ203: 0 | AK203: 1162.3 | AL203: 1128.35 | AM203: 2070.97 | AN203: 1530.9 | AO203: 528.82 | AP203: 907.56 | AQ203: 227.95 | AR203: 1109 | AS203: 658.49 | AT203: 992.36 | AU203: 1315.18 | AV203: 633.49 | AW203: 486.65 | AX203: 4344.55 | AY203: 0.53 | AZ203: 2223.96 | BA203: 1006.93 | BB203: 981.92 | BC203: 209 | BD203: 0.04 | BE203: 0.02 | BF203: 0.01 | BG203: 0.02 | BH203: 0.03 | BI203: 0.12 | BJ203: 0 | BK203: 0.63 | BL203: 0 | BM203: 0.26 | BN203: 0.01 | BO203: 0.03 | BP203: =SUM(BP197:BP202) -> 0 | BQ203: 0.02 | BR203: 0.03 | BS203: 1.21 | BT203: 0 | BU203: 0 | BV203: 2.49 | BW203: 0.03 | BX203: 0 | BY203: 0 | BZ203: 0 | CA203: 0 | CB203: 385.06 | CC203: 0 | CD203: 0 | CE203: 33.7 | CF203: 0 | CG203: 28.22 | CH203: 18.43 | CI203: 23.33 | CJ203: 2134.08 | CK203: 1110.03 | CL203: 1622.05 | CM203: 107.58 | CN203: 87.52 | CO203: 97.71 | CP203: 8.5 | CQ203: 0.48
B204: Итого за день | C204: =C183+C186+C195+C203 -> 1645 | D204: =D183+D186+D195+D203 -> 57.98 | E204: 36.93 | F204: 37.44 | G204: 17.03 | H204: 238.66 | I204: 1497.188885 | J204: 14.89 | K204: 8.46 | L204: 0 | M204: 0 | N204: 81.97 | O204: 138.71 | P204: 17.99 | Q204: 0 | R204: 0 | S204: 4.08 | T204: 11.07 | U204: 1511.41 | V204: 1787.64 | W204: 332.28 | X204: 246.35 | Y204: 740.67 | Z204: 14.73 | AA204: 70.62 | AB204: 1046.2 | AC204: 279.23 | AD204: 9.53 | AE204: 0.67 | AF204: 0.7 | AG204: 7.99 | AH204: 19.69 | AI204: 39.34 | AJ204: 0.2 | AK204: 2770.22 | AL204: 2459.78 | AM204: 4466.34 | AN204: 3731.68 | AO204: 1200.57 | AP204: 2050.91 | AQ204: 620.22 | AR204: 2597.59 | AS204: 2067.23 | AT204: 2694.52 | AU204: 3472.48 | AV204: 1471.66 | AW204: 1753.67 | AX204: 9991.38 | AY204: 143.24 | AZ204: 3753.44 | BA204: 2248.1 | BB204: 1888.5 | BC204: 737.71 | BD204: 0.28 | BE204: 0.13 | BF204: 0.07 | BG204: 0.16 | BH204: 0.19 | BI204: 0.86 | BJ204: 0 | BK204: 3.65 | BL204: 0 | BM204: 1.28 | BN204: 0.04 | BO204: 0.08 | BP204: =BP183+BP186+BP195+BP203 -> 0 | BQ204: 0.16 | BR204: 0.25 | BS204: 5.88 | BT204: 0.01 | BU204: 0 | BV204: 8.5 | BW204: 0.12 | BX204: 0 | BY204: 0 | BZ204: 0 | CA204: 0 | CB204: 1428.18 | CC204: 0 | CD204: 0 | CE204: 245.01 | CF204: 0 | CG204: 160.33 | CH204: 97.82 | CI204: 129.09 | CJ204: 15138.95 | CK204: 7894.3 | CL204: 11516.62 | CM204: 338.6 | CN204: 229.3 | CO204: 284.1 | CP204: 41.28 | CQ204: 2.2
B206: 2 день
B207: Завтрак
A208: ="-" -> - | B208: Батон | C208: 40 | D208: 3.08 | E208: 0 | F208: 1.2 | G208: 1.2 | H208: 21.32 | I208: 107.808 | J208: 0.2 | K208: 0 | L208: 0 | M208: 0 | N208: 1.32 | O208: 18.72 | P208: 1.28 | Q208: 0 | R208: 0 | S208: 0.12 | T208: 0.64 | U208: 171.6 | V208: 52.4 | W208: 8.8 | X208: 13.2 | Y208: 34 | Z208: 0.8 | AA208: 0 | AB208: 0 | AC208: 0 | AD208: 0.68 | AE208: 0.06 | AF208: 0.02 | AG208: 0.64 | AH208: 1.2 | AI208: 0 | AJ208: 0 | AK208: 148.8 | AL208: 154.4 | AM208: 236.4 | AN208: 79.6 | AO208: 46.8 | AP208: 93.6 | AQ208: 35.2 | AR208: 168 | AS208: 104.4 | AT208: 145.2 | AU208: 120.4 | AV208: 64.4 | AW208: 112 | AX208: 930 | AY208: 0 | AZ208: 302.8 | BA208: 132.4 | BB208: 88.8 | BC208: 69.2 | BD208: 0 | BE208: 0 | BF208: 0 | BG208: 0 | BH208: 0 | BI208: 0.01 | BJ208: 0 | BK208: 0.13 | BL208: 0 | BM208: 0.06 | BN208: 0 | BO208: 0 | BP208: 0 | BQ208: 0 | BR208: 0 | BS208: 0.47 | BT208: 0 | BU208: 0 | BV208: 0.35 | BW208: 0.01 | BX208: 0 | BY208: 0 | BZ208: 0 | CA208: 0 | CB208: 13.64 | CE208: 0 | CG208: 0 | CH208: 0 | CI208: 0 | CJ208: 665 | CK208: 256.2 | CL208: 460.6 | CM208: 5.32 | CN208: 5.32 | CO208: 5.32 | CP208: 0 | CQ208: 0
A209: ="-" -> - | B209: Масло сливочное | C209: 5 | D209: 0.04 | E209: 0.04 | F209: 3.63 | G209: 0 | H209: 0.07 | I209: 33.032 | J209: 2.36 | K209: 0.11 | L209: 0 | M209: 0 | N209: 0.07 | O209: 0 | P209: 0 | Q209: 0 | R209: 0 | S209: 0 | T209: 0.07 | U209: 0.75 | V209: 1.5 | W209: 1.2 | X209: 0 | Y209: 1.5 | Z209: 0.01 | AA209: 20 | AB209: 15 | AC209: 22.5 | AD209: 0.05 | AE209: 0 | AF209: 0.01 | AG209: 0.01 | AH209: 0.01 | AI209: 0 | AJ209: 0 | AK209: 2.1 | AL209: 2.05 | AM209: 3.8 | AN209: 2.25 | AO209: 0.85 | AP209: 2.35 | AQ209: 2.15 | AR209: 2.1 | AS209: 1.8 | AT209: 1.3 | AU209: 2.85 | AV209: 1.75 | AW209: 1.2 | AX209: 7.1 | AY209: 0 | AZ209: 2.4 | BA209: 2.7 | BB209: 2.1 | BC209: 0.5 | BD209: 0.13 | BE209: 0.06 | BF209: 0.03 | BG209: 0.08 | BH209: 0.09 | BI209: 0.4 | BJ209: 0 | BK209: 1.1 | BL209: 0 | BM209: 0.34 | BN209: 0 | BO209: 0 | BP209: 0 | BQ209: 0.08 | BR209: 0.12 | BS209: 0.9 | BT209: 0 | BU209: 0 | BV209: 0.05 | BW209: 0 | BX209: 0 | BY209: 0 | BZ209: 0 | CA209: 0 | CB209: 1.25 | CE209: 22.5 | CG209: 0.2 | CH209: 0.05 | CI209: 0.13 | CJ209: 10 | CK209: 4.1 | CL209: 7.05 | CM209: 0.86 | CN209: 0.44 | CO209: 0.65 | CP209: 0 | CQ209: 0
A210: ="" ->  | B210: Вафли | C210: 20 | D210: 0.64 | E210: 0 | F210: 4.21 | G210: 0 | H210: 0 | I210: 40.414 | J210: 0 | K210: 0 | L210: 0 | M210: 0 | N210: 0 | O210: 0 | P210: 0 | Q210: 0 | R210: 0 | S210: 0 | T210: 0 | U210: 0 | V210: 0 | W210: 0 | X210: 0 | Y210: 0 | Z210: 0 | AA210: 0 | AB210: 0 | AC210: 0 | AD210: 0 | AE210: 0 | AF210: 0 | AG210: 0 | AH210: 0 | AI210: 0 | AJ210: 0 | AK210: 0 | AL210: 0 | AM210: 0 | AN210: 0 | AO210: 0 | AP210: 0 | AQ210: 0 | AR210: 0 | AS210: 0 | AT210: 0 | AU210: 0 | AV210: 0 | AW210: 0 | AX210: 0 | AY210: 0 | AZ210: 0 | BA210: 0 | BB210: 0 | BC210: 0 | BD210: 0 | BE210: 0 | BF210: 0 | BG210: 0 | BH210: 0 | BI210: 0 | BJ210: 0 | BK210: 0 | BL210: 0 | BM210: 0 | BN210: 0 | BO210: 0 | BP210: 0 | BQ210: 0 | BR210: 0 | BS210: 0 | BT210: 0 | BU210: 0 | BV210: 0 | BW210: 0 | BX210: 0 | BY210: 0 | BZ210: 0 | CA210: 0 | CB210: 16.22 | CE210: 0 | CG210: 0 | CH210: 0 | CI210: 0 | CJ210: 0 | CK210: 0 | CL210: 0 | CM210: 0 | CN210: 0 | CO210: 0 | CP210: 0 | CQ210: 0
... 127 more rows

Sheet Dop
A1: Дата составления | B1: 2024-03-04
A2: Дата печати | B2: 2024-02-22T08:43:12
A3: Группа | B3: Сад
A4: Физ.Норма | B4: СанПиН 2.3/2.4.3590-20 3-7 лет
B5: 1
B6: 16.03.2024
